Department,Entity,Date,Expense Type,Expense Area,Supplier,Transaction Number,Amount
Home Office,Disclosure and Barring Services,01/12/2022,IT RUN COST,DBS - Disclosure & Barring Service,IBM UNITED KINGDOM LTD,2891717-5811220551-101457-22715,27258.00
Home Office,Disclosure and Barring Services,01/12/2022,IT RUN COST,DBS - Disclosure & Barring Service,IBM UNITED KINGDOM LTD,2891717-5811220552-101457-28079695,336956.34
Home Office,Disclosure and Barring Services,01/12/2022,IT RUN COST,DBS - Disclosure & Barring Service,IBM UNITED KINGDOM LTD,2891717-5811220650-101457-28987,34784.40
Home Office,Disclosure and Barring Services,01/12/2022,IT RUN COST,DBS - Disclosure & Barring Service,IBM UNITED KINGDOM LTD,2891951-5811220551-101457-35046,42055.20
Home Office,Disclosure and Barring Services,02/12/2022,CONTINGENT LABOUR OTHER,DBS - Disclosure & Barring Service,ALEXANDER MANN SOLUTIONS LIMITED,2891717-560478-560478-573355,6880.26
Home Office,Disclosure and Barring Services,02/12/2022,CONTINGENT LABOUR OTHER,DBS - Disclosure & Barring Service,ALEXANDER MANN SOLUTIONS LIMITED,2891748-560478-560478-4641708,55700.50
Home Office,Disclosure and Barring Services,02/12/2022,DBS LEGAL APPEAL,DBS - Disclosure & Barring Service,DLA PIPER UK LLP,2891802-55022951-170627-25927,31112.40
Home Office,Disclosure and Barring Services,02/12/2022,DBS LEGAL APPEAL,DBS - Disclosure & Barring Service,DLA PIPER UK LLP,2891802-55023485-170627-5728933,68747.20
Home Office,Disclosure and Barring Services,02/12/2022,DIRECT COSTS POSTAGE,DBS - Disclosure & Barring Service,SWISS POST SOLUTIONS LTD,2891102-1800017871-53641-470016,5640.19
Home Office,Disclosure and Barring Services,02/12/2022,DIRECT COSTS POSTAGE,DBS - Disclosure & Barring Service,SWISS POST SOLUTIONS LTD,2891780-1800017871-53641-80250153,963001.83
Home Office,Disclosure and Barring Services,05/12/2022,IT RUN COST,DBS - Disclosure & Barring Service,CGI IT UK LTD,2891961-GB014094253-240306-34971437,419657.24
Home Office,Disclosure and Barring Services,06/12/2022,IT RUN COST,DBS - Disclosure & Barring Service,CGI IT UK LTD,2891717-GB014094690-240306-2242431,26909.17
Home Office,Disclosure and Barring Services,06/12/2022,IT RUN COST,DBS - Disclosure & Barring Service,CGI IT UK LTD,2891725-GB014094596-240306-91832388,1101988.66
Home Office,Disclosure and Barring Services,06/12/2022,DBS LEGAL APPEAL,DBS - Disclosure & Barring Service,DLA PIPER UK LLP,2891802-55030029-170627-356995,42839.40
Home Office,Disclosure and Barring Services,06/12/2022,DBS LEGAL APPEAL,DBS - Disclosure & Barring Service,DLA PIPER UK LLP,2891802-55030331-170627-8709516,104514.19
Home Office,Disclosure and Barring Services,07/12/2022,IT RUN COST,DBS - Disclosure & Barring Service,CGI IT UK LTD,2891963-GB014094694-240306-3234346,38812.15
Home Office,Disclosure and Barring Services,07/12/2022,IT RUN COST,DBS - Disclosure & Barring Service,CGI IT UK LTD,2891963-GB014094693-240306-6123822,73485.86
Home Office,Disclosure and Barring Services,08/12/2022,RENT TO LANDLORDS,DBS - Disclosure & Barring Service,PEEL INVESTMENTS HOLDINGS LTD,2891793-PL279248-483097-25665625,307987.50
Home Office,Disclosure and Barring Services,09/12/2022,CONTINGENT LABOUR OTHER,DBS - Disclosure & Barring Service,ALEXANDER MANN SOLUTIONS LIMITED,2891717-2700542A-560478-573355,6880.26
Home Office,Disclosure and Barring Services,09/12/2022,CONTINGENT LABOUR OTHER,DBS - Disclosure & Barring Service,ALEXANDER MANN SOLUTIONS LIMITED,2891748-2700542A-560478-2643973,31727.68
Home Office,Disclosure and Barring Services,09/12/2022,IT RUN COST,DBS - Disclosure & Barring Service,ALEXANDER MANN SOLUTIONS LIMITED,2891717-2701603-560478-9631579,115578.95
Home Office,Disclosure and Barring Services,09/12/2022,IT RUN COST,DBS - Disclosure & Barring Service,CGI IT UK LTD,2891961-GB014094960-240306-61899827,742797.92
Home Office,Disclosure and Barring Services,09/12/2022,IT RUN COST,DBS - Disclosure & Barring Service,IBM UNITED KINGDOM LTD,2891717-5811220649-101457-44568,53481.60
Home Office,Disclosure and Barring Services,09/12/2022,RENT TO LANDLORDS,DBS - Disclosure & Barring Service,SHELBORN ASSET MANAGEMENT LTD,2891793-R 506964-54157-2540038,30480.46
Home Office,Disclosure and Barring Services,09/12/2022,RENT TO LANDLORDS,DBS - Disclosure & Barring Service,SHELBORN ASSET MANAGEMENT LTD,2891793-R 507275-54157-6696462,80357.54
Home Office,Disclosure and Barring Services,14/12/2022,IT RUN COST,DBS - Disclosure & Barring Service,CGI IT UK LTD,2891725-GB014095181-240306-2519522,30234.26
Home Office,Disclosure and Barring Services,14/12/2022,IT RUN COST,DBS - Disclosure & Barring Service,CGI IT UK LTD,2891725-GB014095182-240306-16049387,192592.64
Home Office,Disclosure and Barring Services,14/12/2022,DBS LEGAL APPEAL,DBS - Disclosure & Barring Service,DLA PIPER UK LLP,2891802-55031317-170627-690441,82852.92
Home Office,Disclosure and Barring Services,16/12/2022,CONTINGENT LABOUR OTHER,DBS - Disclosure & Barring Service,ALEXANDER MANN SOLUTIONS LIMITED,2891717-2705162A-560478-573355,6880.26
Home Office,Disclosure and Barring Services,16/12/2022,CONTINGENT LABOUR OTHER,DBS - Disclosure & Barring Service,ALEXANDER MANN SOLUTIONS LIMITED,2891748-2705162A-560478-3185879,38230.55
Home Office,Disclosure and Barring Services,16/12/2022,IT RUN COST,DBS - Disclosure & Barring Service,VODAFONE LTD,2891725-UK10/122022/9477-119598-1552298,186275.76
Home Office,Disclosure and Barring Services,20/12/2022,ADVICE,DBS - Disclosure & Barring Service,DELOITTE LLP,2891788-8003128025-112904-76800,92160.00
Home Office,Disclosure and Barring Services,20/12/2022,LEGAL ADVICE,DBS - Disclosure & Barring Service,EPIQ SYSTEMS LTD,2891802-90651115-54047-2375825,28509.90
Home Office,Disclosure and Barring Services,20/12/2022,IT RUN COST,DBS - Disclosure & Barring Service,VODAFONE LTD,2891951-UK10/122022/962-119598-18808273,225699.28
Home Office,Disclosure and Barring Services,21/12/2022,IT RUN COST,DBS - Disclosure & Barring Service,ENTSERV UK LTD,2891725-6122486-102438-65686761,788241.13
Home Office,Disclosure and Barring Services,21/12/2022,IT RUN COST,DBS - Disclosure & Barring Service,VODAFONE LTD,2891725-UK10/122022/954-119598-8858981,106307.77
Home Office,Disclosure and Barring Services,22/12/2022,CONTINGENT LABOUR OTHER,DBS - Disclosure & Barring Service,ALEXANDER MANN SOLUTIONS LIMITED,2891717-2709948A-560478-573355,6880.26
Home Office,Disclosure and Barring Services,22/12/2022,CONTINGENT LABOUR OTHER,DBS - Disclosure & Barring Service,ALEXANDER MANN SOLUTIONS LIMITED,2891748-2709948A-560478-2053293,24639.52
Home Office,Disclosure and Barring Services,22/12/2022,BUILDING SERVICE CHARGES,DBS - Disclosure & Barring Service,SHELBORN ASSET MANAGEMENT LTD,2891793-R507193-54157-2540038,30480.46
Home Office,Disclosure and Barring Services,22/12/2022,IT RUN COST,DBS - Disclosure & Barring Service,VODAFONE LTD,2891725-UK10/112022/6439-119598-1552298,186275.76
Home Office,Disclosure and Barring Services,23/12/2022,LEGAL ADVICE,DBS - Disclosure & Barring Service,EPIQ SYSTEMS LTD,2891802-90643777-54047-2597903,31174.83
Home Office,Disclosure and Barring Services,23/12/2022,OTHER,DBS - Disclosure & Barring Service,EPIQ SYSTEMS LTD,2891802-90643777-54047-406768,4881.22
Home Office,Disclosure and Barring Services,23/12/2022,OTHER,DBS - Disclosure & Barring Service,EPIQ SYSTEMS LTD,2891802-90662476-54047-3009445,36113.34
Home Office,Disclosure and Barring Services,23/12/2022,OTHER,DBS - Disclosure & Barring Service,EPIQ SYSTEMS LTD,2891802-90667994-54047-3739118,44869.42
Home Office,Disclosure and Barring Services,28/12/2022,DBS LEGAL APPEAL,DBS - Disclosure & Barring Service,DLA PIPER UK LLP,2891802-55033375-170627-5986096,71833.15
Home Office,Disclosure and Barring Services,28/12/2022,OTHER,DBS - Disclosure & Barring Service,EPIQ SYSTEMS LTD,2891802-90694620-54047-2433902,29206.82
Home Office,Home Office,02/12/2022,FULL COST,CE - Corporate Enablers,BROOK STREET (UK) LTD,1418032-30154712-22-100385-25598,3071.76
Home Office,Home Office,02/12/2022,FULL COST,CE - Corporate Enablers,BROOK STREET (UK) LTD,1709200-30154712-22-100385-52207,626.48
Home Office,Home Office,02/12/2022,FULL COST,CE - Corporate Enablers,BROOK STREET (UK) LTD,1681500-30154712-22-100385-108151,1297.82
Home Office,Home Office,02/12/2022,FULL COST,CE - Corporate Enablers,BROOK STREET (UK) LTD,1686201-30154712-22-100385-449261,5391.16
Home Office,Home Office,02/12/2022,FM ALLOCATION CONTROL,CE - Corporate Enablers,INTERSERVE (FACILITIES MANAGEMENT) LTD,1709200-HOEC778-100369-10130346,101303.46
Home Office,Home Office,02/12/2022,OTHER FACILITIES COSTS,CE - Corporate Enablers,"KELLOGG, BROWN AND ROOT LTD",1709200-2211CCS102-171256-28650,28650.00
Home Office,Home Office,02/12/2022,MAINTENANCE REACTIVE,CE - Corporate Enablers,MINISTRY OF JUSTICE,1709200-2333691-199603-4739304,56871.65
Home Office,Home Office,02/12/2022,MAINTENANCE REACTIVE,CE - Corporate Enablers,MINISTRY OF JUSTICE,1709200-2333689-199603-27211702,272117.02
Home Office,Home Office,02/12/2022,SYSTEM CLEARING,CE - Corporate Enablers,MINISTRY OF JUSTICE,1490000-2333700-199603-3053044,36636.53
Home Office,Home Office,05/12/2022,CONTINGENT LABOUR OTHER,CE - Corporate Enablers,ALEXANDER MANN SOLUTIONS LIMITED,1418033-2695729-560478-259924,3119.09
Home Office,Home Office,05/12/2022,ADVICE,CE - Corporate Enablers,ARCADIS LLP,1490000-14170824-50267-388612,46633.44
Home Office,Home Office,05/12/2022,SECURITY GUARDS,CE - Corporate Enablers,MITIE LTD,1491012-205458/92657528-54840-633702,76044.24
Home Office,Home Office,05/12/2022,SECURITY GUARDS,CE - Corporate Enablers,MITIE LTD,1491012-205458/92657482-54840-30139391,361672.69
Home Office,Home Office,06/12/2022,OCCUPATIONAL HEALTH,CE - Corporate Enablers,HEALTH MANAGEMENT LTD,1682113-INV540645-215148-8125789,97509.47
Home Office,Home Office,08/12/2022,FM ALLOCATION CONTROL,CE - Corporate Enablers,CUSHMAN & WAKEFIELD DEBENHAM TIE LEUNG LTD,1709200-HOEC578-112730-1448588321,14485883.21
Home Office,Home Office,08/12/2022,FM ALLOCATION CONTROL,CE - Corporate Enablers,CUSHMAN & WAKEFIELD DEBENHAM TIE LEUNG LTD,1709200-UKVIEURO272-112730-2559669,25596.69
Home Office,Home Office,08/12/2022,MAINTENANCE PLANNED,CE - Corporate Enablers,INTERSERVE (FACILITIES MANAGEMENT) LTD,1709200-229920/92659393-100369-2680364,32164.37
Home Office,Home Office,08/12/2022,MAINTENANCE PLANNED,CE - Corporate Enablers,INTERSERVE (FACILITIES MANAGEMENT) LTD,1709200-229920/92659383-100369-3010402,30104.02
Home Office,Home Office,08/12/2022,MAINTENANCE REACTIVE,CE - Corporate Enablers,INTERSERVE (FACILITIES MANAGEMENT) LTD,1709200-229920/92659219-100369-9103808,109245.70
Home Office,Home Office,08/12/2022,MAINTENANCE REACTIVE,CE - Corporate Enablers,INTERSERVE (FACILITIES MANAGEMENT) LTD,1709200-229920/92659352-100369-14307337,143073.37
Home Office,Home Office,08/12/2022,SYSTEM CLEARING,CE - Corporate Enablers,MINISTRY OF JUSTICE,1490000-2333693-199603-5048702,60584.42
Home Office,Home Office,09/12/2022,CONTINGENT LABOUR OTHER,CE - Corporate Enablers,ALEXANDER MANN SOLUTIONS LIMITED,1418033-2700542-560478-259924,3119.09
Home Office,Home Office,09/12/2022,IT LICENCES (PFI),CE - Corporate Enablers,CUSHMAN & WAKEFIELD DEBENHAM TIE LEUNG LTD,1709200-GB3002-CI-22-12775-112730-265825,318990.00
Home Office,Home Office,09/12/2022,OTHER FACILITIES COSTS,CE - Corporate Enablers,INTERSERVE (FACILITIES MANAGEMENT) LTD,1709200-231605/210000087-100369-5587231,55872.31
Home Office,Home Office,09/12/2022,IT RUN COST,CE - Corporate Enablers,ISSURED LTD,1751063-ISSUREDSERVICES/HO/PMSYNERGY/INV002-58323-72900,87480.00
Home Office,Home Office,12/12/2022,FULL COST,CE - Corporate Enablers,BROOK STREET (UK) LTD,1418032-30166256-22-100385-272769,3273.24
Home Office,Home Office,12/12/2022,FULL COST,CE - Corporate Enablers,BROOK STREET (UK) LTD,1709200-30166256-22-100385-52207,626.48
Home Office,Home Office,12/12/2022,FULL COST,CE - Corporate Enablers,BROOK STREET (UK) LTD,1681500-30166256-22-100385-123417,1481.01
Home Office,Home Office,12/12/2022,FULL COST,CE - Corporate Enablers,BROOK STREET (UK) LTD,1686201-30166256-22-100385-422118,5065.43
Home Office,Home Office,13/12/2022,IT RUN COST,CE - Corporate Enablers,SHARED SERVICES CONNECTED LTD (SSCL),1751064-100033428-378790-187500,225000.00
Home Office,Home Office,13/12/2022,IT RUN COST,CE - Corporate Enablers,SHARED SERVICES CONNECTED LTD (SSCL),1751064-100033426-378790-71411806,714118.06
Home Office,Home Office,13/12/2022,IT RUN COST,CE - Corporate Enablers,SHARED SERVICES CONNECTED LTD (SSCL),1751064-100033427-378790-76146354,761463.54
Home Office,Home Office,14/12/2022,PROCUREMENT CARD - GPC,CE - Corporate Enablers,RBS,0000000-GPC1312221135-102384-0,319475.79
Home Office,Home Office,15/12/2022,IT LICENCES (PFI),CE - Corporate Enablers,CUSHMAN & WAKEFIELD DEBENHAM TIE LEUNG LTD,1709200-GB3002-CI-22-13358-112730-17784975,213419.70
Home Office,Home Office,15/12/2022,FM ALLOCATION CONTROL,CE - Corporate Enablers,CUSHMAN & WAKEFIELD DEBENHAM TIE LEUNG LTD,1709200-HOEC579-112730-316328055,3163280.55
Home Office,Home Office,15/12/2022,SYSTEM CLEARING,CE - Corporate Enablers,KIER CONSTRUCTION NORTHERN,1490000-10301597-54211-27150251,325803.01
Home Office,Home Office,16/12/2022,CONTINGENT LABOUR OTHER,CE - Corporate Enablers,ALEXANDER MANN SOLUTIONS LIMITED,1418033-2705162-560478-259924,3119.09
Home Office,Home Office,16/12/2022,FULL COST,CE - Corporate Enablers,BROOK STREET (UK) LTD,1418032-30178143-22-100385-349356,4192.28
Home Office,Home Office,16/12/2022,FULL COST,CE - Corporate Enablers,BROOK STREET (UK) LTD,1709200-30178143-22-100385-52207,626.48
Home Office,Home Office,16/12/2022,FULL COST,CE - Corporate Enablers,BROOK STREET (UK) LTD,1681500-30178143-22-100385-122837,1474.05
Home Office,Home Office,16/12/2022,FULL COST,CE - Corporate Enablers,BROOK STREET (UK) LTD,1686201-30178143-22-100385-464954,5579.46
Home Office,Home Office,16/12/2022,EXTERNAL,CE - Corporate Enablers,ERNST AND YOUNG LLP,1703116-GB01G000367626-113852-1890045,226805.40
Home Office,Home Office,19/12/2022,OCCUPATIONAL HEALTH,CE - Corporate Enablers,HEALTH MANAGEMENT LTD,1682113-INV541291-215148-9371364,112456.37
Home Office,Home Office,19/12/2022,SYSTEM CLEARING,CE - Corporate Enablers,MINISTRY OF JUSTICE,1490000-2333842-199603-4453774,53445.29
Home Office,Home Office,19/12/2022,SYSTEM CLEARING,CE - Corporate Enablers,MINISTRY OF JUSTICE,1490000-2333864-199603-76000,91200.00
Home Office,Home Office,19/12/2022,SYSTEM CLEARING,CE - Corporate Enablers,MINISTRY OF JUSTICE,1490000-2333830-199603-14310535,171726.42
Home Office,Home Office,20/12/2022,OTHER FACILITIES COSTS,CE - Corporate Enablers,INTERSERVE (FACILITIES MANAGEMENT) LTD,1709200-229920/92667010-100369-151056993,1510569.93
Home Office,Home Office,20/12/2022,CAPITAL GRANTS TO CENTRAL GOVERNMENT,CE - Corporate Enablers,UNIVERSAL SECURITY SYSTEMS LTD,1491012-2289-102651-2322407,27868.88
Home Office,Home Office,21/12/2022,EXTERNAL,CE - Corporate Enablers,CABINET OFFICE,1681105-3824542-113009-127660,127660.00
Home Office,Home Office,21/12/2022,BASIC SALARY,CE - Corporate Enablers,CABINET OFFICE,1752000-3824435-113009-154388,154388.00
Home Office,Home Office,21/12/2022,SYSTEM CLEARING,CE - Corporate Enablers,FAITHFUL AND GOULD,1490000-22052471-53010-74361,89233.20
Home Office,Home Office,21/12/2022,FM ALLOCATION CONTROL,CE - Corporate Enablers,INTERSERVE (FACILITIES MANAGEMENT) LTD,1709200-HOEC779-100369-35421179,354211.79
Home Office,Home Office,21/12/2022,SYSTEM CLEARING,CE - Corporate Enablers,TILBURY DOUGLAS CONSTRUCTION LTD,1490000-22120147-208981-54773819,657285.83
Home Office,Home Office,22/12/2022,CONTINGENT LABOUR OTHER,CE - Corporate Enablers,ALEXANDER MANN SOLUTIONS LIMITED,1418033-2709948-560478-129962,1559.54
Home Office,Home Office,22/12/2022,OBILGATIONS UNDER FINANCE LEASES AND HIRE PURCHASE CONTRACTS,CE - Corporate Enablers,GOVERNMENT PROPERTY AGENCY (GPA),1709200-00000001/21230-555960-52382691,523826.91
Home Office,Home Office,22/12/2022,BUILDING SERVICE CHARGES,CE - Corporate Enablers,GOVERNMENT PROPERTY AGENCY (GPA),1709200-00000001/21230-555960-395079,3950.79
Home Office,Home Office,22/12/2022,BUSINESS RATES,CE - Corporate Enablers,GOVERNMENT PROPERTY AGENCY (GPA),1709200-00000001/21230-555960-23252104,232521.04
Home Office,Home Office,22/12/2022,OBILGATIONS UNDER FINANCE LEASES AND HIRE PURCHASE CONTRACTS,CE - Corporate Enablers,GOVERNMENT PROPERTY AGENCY (GPA),1709200-00000001/22300-555960-2711228,2711228.00
Home Office,Home Office,22/12/2022,OTHER PROFESSIONAL SERVICES,CE - Corporate Enablers,GOVERNMENT PROPERTY AGENCY (GPA),1709200-00000001/22300-555960-1126314,112631.40
Home Office,Home Office,22/12/2022,BUILDING SERVICE CHARGES,CE - Corporate Enablers,GOVERNMENT PROPERTY AGENCY (GPA),1709200-00000001/22300-555960-224047189,2240471.89
Home Office,Home Office,22/12/2022,BUSINESS RATES,CE - Corporate Enablers,GOVERNMENT PROPERTY AGENCY (GPA),1709200-00000001/22300-555960-149052967,1490529.67
Home Office,Home Office,22/12/2022,SYSTEM CLEARING,CE - Corporate Enablers,KIER CONSTRUCTION NORTHERN,1490000-10302292-54211-33208071,398496.85
Home Office,Home Office,22/12/2022,CONTINGENT LABOUR OTHER,CE - Corporate Enablers,VERACITY OSI UK LIMITED,1752000-INV-00001515-50153-263958,316749.60
Home Office,Home Office,23/12/2022,FULL COST,CE - Corporate Enablers,BROOK STREET (UK) LTD,1418032-30190871-22-100385-26689,3202.69
Home Office,Home Office,23/12/2022,FULL COST,CE - Corporate Enablers,BROOK STREET (UK) LTD,1709200-30190871-22-100385-69892,838.70
Home Office,Home Office,23/12/2022,FULL COST,CE - Corporate Enablers,BROOK STREET (UK) LTD,1681500-30190871-22-100385-128082,1536.99
Home Office,Home Office,23/12/2022,FULL COST,CE - Corporate Enablers,BROOK STREET (UK) LTD,1686201-30190871-22-100385-473653,5683.86
Home Office,Home Office,23/12/2022,EXTERNAL,CE - Corporate Enablers,CSL - KPMG LLP,1703109-5502545136-478245-52266,52266.00
Home Office,Home Office,28/12/2022,EXTERNAL,CE - Corporate Enablers,CABINET OFFICE,1750000-3824533-113009-27895,27895.00
Home Office,Home Office,29/12/2022,OBILGATIONS UNDER FINANCE LEASES AND HIRE PURCHASE CONTRACTS,CE - Corporate Enablers,GOVERNMENT PROPERTY AGENCY (GPA),1709200-00000001/22297-555960-52382691,523826.91
Home Office,Home Office,29/12/2022,BUILDING SERVICE CHARGES,CE - Corporate Enablers,GOVERNMENT PROPERTY AGENCY (GPA),1709200-00000001/22297-555960-36275,3627.50
Home Office,Home Office,29/12/2022,BUSINESS RATES,CE - Corporate Enablers,GOVERNMENT PROPERTY AGENCY (GPA),1709200-00000001/22297-555960-23252104,232521.04
Home Office,Home Office,29/12/2022,MAINTENANCE REACTIVE,CE - Corporate Enablers,INTERSERVE (FACILITIES MANAGEMENT) LTD,1709200-231605/210000094-100369-2552493,25524.93
Home Office,Home Office,29/12/2022,MAINTENANCE REACTIVE,CE - Corporate Enablers,INTERSERVE (FACILITIES MANAGEMENT) LTD,1709200-231605/210000090-100369-3716187,37161.87
Home Office,Home Office,29/12/2022,MAINTENANCE PLANNED,CE - Corporate Enablers,INTERSERVE (FACILITIES MANAGEMENT) LTD,1709200-229920/92676999-100369-4726901,47269.01
Home Office,Home Office,29/12/2022,MAINTENANCE REACTIVE,CE - Corporate Enablers,INTERSERVE (FACILITIES MANAGEMENT) LTD,1709200-229920/92676995-100369-14916293,149162.93
Home Office,Home Office,29/12/2022,MAINTENANCE PLANNED,CE - Corporate Enablers,INTERSERVE (FACILITIES MANAGEMENT) LTD,1709200-229920/92677000-100369-107678784,1292145.41
Home Office,Home Office,29/12/2022,SYSTEM CLEARING,CE - Corporate Enablers,INTERSERVE (FACILITIES MANAGEMENT) LTD,1490000-229920/92677004-100369-3897861,46774.33
Home Office,Home Office,29/12/2022,SYSTEM CLEARING,CE - Corporate Enablers,INTERSERVE (FACILITIES MANAGEMENT) LTD,1490000-229920/92676998-100369-7809889,93718.67
Home Office,Home Office,29/12/2022,MAINTENANCE REACTIVE,CE - Corporate Enablers,MINISTRY OF JUSTICE,1709200-2333908-199603-6282749,75392.99
Home Office,Home Office,29/12/2022,ELECTRICITY,CE - Corporate Enablers,MINISTRY OF JUSTICE,1709200-2333913-199603-9348136,112177.63
Home Office,Home Office,29/12/2022,MAINTENANCE PLANNED,CE - Corporate Enablers,MINISTRY OF JUSTICE,1709200-2333904-199603-9374109,112489.31
Home Office,Home Office,29/12/2022,OTHER FACILITIES COSTS,CE - Corporate Enablers,MINISTRY OF JUSTICE,1709200-2333895-199603-17779405,177794.05
Home Office,Home Office,29/12/2022,OTHER FACILITIES COSTS,CE - Corporate Enablers,MINISTRY OF JUSTICE,1709200-2333893-199603-29099563,290995.63
Home Office,Home Office,29/12/2022,MAINTENANCE REACTIVE,CE - Corporate Enablers,MINISTRY OF JUSTICE,1709200-2333899-199603-36256608,362566.08
Home Office,Home Office,29/12/2022,OTHER FACILITIES COSTS,CE - Corporate Enablers,MINISTRY OF JUSTICE,1709200-2333892-199603-77720399,777203.99
Home Office,Home Office,29/12/2022,OTHER FACILITIES COSTS,CE - Corporate Enablers,MINISTRY OF JUSTICE,1709200-2333891-199603-92736978,927369.78
Home Office,Home Office,29/12/2022,ELECTRICITY,CE - Corporate Enablers,MINISTRY OF JUSTICE,1709200-2333898-199603-147027293,1470272.93
Home Office,Home Office,29/12/2022,SYSTEM CLEARING,CE - Corporate Enablers,MINISTRY OF JUSTICE,1490000-2333906-199603-11609943,139319.32
Home Office,Home Office,29/12/2022,SYSTEM CLEARING,CE - Corporate Enablers,MINISTRY OF JUSTICE,1490000-2333905-199603-19752435,237029.22
Home Office,Home Office,30/12/2022,FULL COST,CE - Corporate Enablers,BROOK STREET (UK) LTD,1491012-30203681-22-100385-69338,832.06
Home Office,Home Office,30/12/2022,FULL COST,CE - Corporate Enablers,BROOK STREET (UK) LTD,1418032-30203681-22-100385-26689,3202.69
Home Office,Home Office,30/12/2022,FULL COST,CE - Corporate Enablers,BROOK STREET (UK) LTD,1709200-30203681-22-100385-4233,507.96
Home Office,Home Office,30/12/2022,FULL COST,CE - Corporate Enablers,BROOK STREET (UK) LTD,1681500-30203681-22-100385-128082,1536.99
Home Office,Home Office,30/12/2022,FULL COST,CE - Corporate Enablers,BROOK STREET (UK) LTD,1686201-30203681-22-100385-455205,5462.46
Home Office,Home Office,30/12/2022,OTHER FACILITIES COSTS,CE - Corporate Enablers,"KELLOGG, BROWN AND ROOT LTD",1709200-2212CCS103-171256-28650,28650.00
Home Office,Home Office,02/12/2022,AD PRODUCTION,COMMS - Communications Directorate,23RED LTD,1810000-04867-58535-45450,45450.00
Home Office,Home Office,06/12/2022,AD PRODUCTION,COMMS - Communications Directorate,KINDRED AGENCY,1810000-118524-407025-4614639,46146.39
Home Office,Home Office,13/12/2022,AD PRODUCTION,COMMS - Communications Directorate,OMNICOM MEDIA GROUP UK,1810000-E82909-258111-25755,25755.00
Home Office,Home Office,13/12/2022,AD PRODUCTION,COMMS - Communications Directorate,OMNICOM MEDIA GROUP UK,1810000-E82908-258111-33330,33330.00
Home Office,Home Office,16/12/2022,CONTINGENT LABOUR OTHER,COMMS - Communications Directorate,ALEXANDER MANN SOLUTIONS LIMITED,1812000-2705162-560478-3285,3942.00
Home Office,Home Office,16/12/2022,AD PRODUCTION,COMMS - Communications Directorate,OMNICOM MEDIA GROUP UK,1819999-E73255-258111-6168667,61686.67
Home Office,Home Office,21/12/2022,AD PRODUCTION,COMMS - Communications Directorate,KINDRED AGENCY,1810000-118538-407025-4118031,41180.31
Home Office,Home Office,22/12/2022,CONTINGENT LABOUR OTHER,COMMS - Communications Directorate,ALEXANDER MANN SOLUTIONS LIMITED,1812000-2709948-560478-238163,2857.96
Home Office,Home Office,23/12/2022,AD PRODUCTION,COMMS - Communications Directorate,23RED LTD,1810000-04907-58535-5043334,50433.34
Home Office,Home Office,23/12/2022,AD PRODUCTION,COMMS - Communications Directorate,OMNICOM MEDIA GROUP UK,1810000-E75857-258111-14814965,148149.65
Home Office,Home Office,23/12/2022,AD PRODUCTION,COMMS - Communications Directorate,OMNICOM MEDIA GROUP UK,1810000-E77210-258111-290481,29048.10
Home Office,Home Office,23/12/2022,AD PRODUCTION,COMMS - Communications Directorate,OMNICOM MEDIA GROUP UK,1810000-E81714-258111-4069762,40697.62
Home Office,Home Office,29/12/2022,RESEARCH,COMMS - Communications Directorate,IPSOS (MARKET RESEARCH) LTD,1810000-22003080-106668-34260,41112.00
Home Office,Home Office,01/12/2022,SYSTEM CLEARING,DDaT - Digital Data & Technology,BASIS TECHNOLOGY LTD,1709140-BILL5443-493842-3718177,37181.77
Home Office,Home Office,01/12/2022,RENT TO LANDLORDS,DDaT - Digital Data & Technology,CROWN HOSTING DATA CENTRE LTD,1816002-17811-414197-8619464,103433.57
Home Office,Home Office,01/12/2022,RENT TO LANDLORDS,DDaT - Digital Data & Technology,CROWN HOSTING DATA CENTRE LTD,1816002-17812-414197-8619464,103433.57
Home Office,Home Office,01/12/2022,IT RUN COST,DDaT - Digital Data & Technology,FUJITSU SERVICES LTD,1709140-1010003137-106173-21010959,210109.59
Home Office,Home Office,01/12/2022,IT RUN COST,DDaT - Digital Data & Technology,FUJITSU SERVICES LTD,1709140-1010002942-106173-23283459,232834.59
Home Office,Home Office,01/12/2022,IT RUN COST,DDaT - Digital Data & Technology,FUJITSU SERVICES LTD,1709140-1010002939-106173-30668261,306682.61
Home Office,Home Office,01/12/2022,IT RUN COST,DDaT - Digital Data & Technology,FUJITSU SERVICES LTD,1709140-1010002943-106173-3069048,306904.80
Home Office,Home Office,01/12/2022,IT RUN COST,DDaT - Digital Data & Technology,FUJITSU SERVICES LTD,1709140-1010002940-106173-30753586,307535.86
Home Office,Home Office,01/12/2022,IT RUN COST,DDaT - Digital Data & Technology,FUJITSU SERVICES LTD,1709140-1030004780-106173-12807242,128072.42
Home Office,Home Office,01/12/2022,IT RUN COST,DDaT - Digital Data & Technology,FUJITSU SERVICES LTD,1709140-1030005580-106173-30869422,308694.22
Home Office,Home Office,01/12/2022,IT RUN COST,DDaT - Digital Data & Technology,FUJITSU SERVICES LTD,1709140-1030005581-106173-34669703,346697.03
Home Office,Home Office,01/12/2022,IT LICENCES (PFI),DDaT - Digital Data & Technology,SOFTCAT LTD,1709125-INVUK520146-242804-102795,123354.00
Home Office,Home Office,01/12/2022,OTHER ICT COSTS,DDaT - Digital Data & Technology,SPARTA GLOBAL LTD,1488305-SIN023450-522016-80652,96782.40
Home Office,Home Office,01/12/2022,END USER COMPUTER HARDWARE,DDaT - Digital Data & Technology,XMA LTD,1709143-LD11094-101207-2800686,33608.22
Home Office,Home Office,02/12/2022,OTHER ICT COSTS,DDaT - Digital Data & Technology,CAPGEMINI UK PLC,1709166-2600110346436-112696-21435,25722.00
Home Office,Home Office,02/12/2022,OTHER ICT COSTS,DDaT - Digital Data & Technology,CAPGEMINI UK PLC,1709166-2600110347093-112696-35016,42019.20
Home Office,Home Office,02/12/2022,OTHER ICT COSTS,DDaT - Digital Data & Technology,CAPGEMINI UK PLC,1709166-2600110347099-112696-7972164,95665.98
Home Office,Home Office,02/12/2022,IT RUN COST,DDaT - Digital Data & Technology,CAPGEMINI UK PLC,1709166-2600110347105-112696-39375,47250.00
Home Office,Home Office,02/12/2022,OTHER ICT COSTS,DDaT - Digital Data & Technology,DELOITTE LLP,1486658-8003091651-112904-153000,153000.00
Home Office,Home Office,02/12/2022,SYSTEM CLEARING,DDaT - Digital Data & Technology,DELOITTE LLP,1486658-8003091662-112904-130000,130000.00
Home Office,Home Office,02/12/2022,IT RUN COST,DDaT - Digital Data & Technology,DELOITTE LLP,1709101-8003096788-112904-220875,26505.00
Home Office,Home Office,02/12/2022,IT RUN COST,DDaT - Digital Data & Technology,DELOITTE LLP,1709101-8003096789-112904-22500,27000.00
Home Office,Home Office,02/12/2022,IT RUN COST,DDaT - Digital Data & Technology,DELOITTE LLP,1709101-8003096792-112904-55800,66960.00
Home Office,Home Office,02/12/2022,IT RUN COST,DDaT - Digital Data & Technology,INTEROUTE NETWORKS LTD,1816002-3887911-52280-2711421,27114.21
Home Office,Home Office,02/12/2022,IT RUN COST,DDaT - Digital Data & Technology,KRONOS SYSTEMS LTD,1709140-50041518-230596-4672965,46729.65
Home Office,Home Office,02/12/2022,IT RUN COST,DDaT - Digital Data & Technology,LEIDOS INNOVATIONS UK LTD,1709130-INV02-000456729-136199-4766986,47669.86
Home Office,Home Office,02/12/2022,IT RUN COST,DDaT - Digital Data & Technology,MADE TECH LTD,1475209-INV003411-56527-36275,36275.00
Home Office,Home Office,02/12/2022,IT RUN COST,DDaT - Digital Data & Technology,NEC SOFTWARE SOLUTIONS UK LTD,1892015-91467057-102086-271875,27187.50
Home Office,Home Office,02/12/2022,IT RUN COST,DDaT - Digital Data & Technology,VODAFONE LTD,1709500-383353-119598-5543125,66517.50
Home Office,Home Office,02/12/2022,IT RUN COST,DDaT - Digital Data & Technology,XEROX (UK) LTD,1486655-900224364-100997-12973753,129737.53
Home Office,Home Office,05/12/2022,CONTINGENT LABOUR OTHER,DDaT - Digital Data & Technology,ALEXANDER MANN SOLUTIONS LIMITED,1892015-2695729-560478-85623,10274.76
Home Office,Home Office,05/12/2022,CONTINGENT LABOUR OTHER,DDaT - Digital Data & Technology,ALEXANDER MANN SOLUTIONS LIMITED,1475212-2695729-560478-34653,4158.36
Home Office,Home Office,05/12/2022,CONTINGENT LABOUR OTHER,DDaT - Digital Data & Technology,ALEXANDER MANN SOLUTIONS LIMITED,1486655-2695729-560478-624655,7495.86
Home Office,Home Office,05/12/2022,CONTINGENT LABOUR OTHER,DDaT - Digital Data & Technology,ALEXANDER MANN SOLUTIONS LIMITED,1486665-2695729-560478-1609121,19309.45
Home Office,Home Office,05/12/2022,CONTINGENT LABOUR OTHER,DDaT - Digital Data & Technology,ALEXANDER MANN SOLUTIONS LIMITED,1488303-2695729-560478-456343,5476.12
Home Office,Home Office,05/12/2022,CONTINGENT LABOUR OTHER,DDaT - Digital Data & Technology,ALEXANDER MANN SOLUTIONS LIMITED,1488305-2695729-560478-1110439,13325.26
Home Office,Home Office,05/12/2022,CONTINGENT LABOUR OTHER,DDaT - Digital Data & Technology,ALEXANDER MANN SOLUTIONS LIMITED,1701006-2695729-560478-1411246,16934.95
Home Office,Home Office,05/12/2022,CONTINGENT LABOUR OTHER,DDaT - Digital Data & Technology,ALEXANDER MANN SOLUTIONS LIMITED,1709125-2695729-560478-581715,6980.58
Home Office,Home Office,05/12/2022,CONTINGENT LABOUR OTHER,DDaT - Digital Data & Technology,ALEXANDER MANN SOLUTIONS LIMITED,1709141-2695729-560478-4452399,53428.79
Home Office,Home Office,05/12/2022,CONTINGENT LABOUR OTHER,DDaT - Digital Data & Technology,ALEXANDER MANN SOLUTIONS LIMITED,1709160-2695729-560478-97727,11727.24
Home Office,Home Office,05/12/2022,CONTINGENT LABOUR OTHER,DDaT - Digital Data & Technology,ALEXANDER MANN SOLUTIONS LIMITED,1709161-2695729-560478-33363,4003.56
Home Office,Home Office,05/12/2022,CONTINGENT LABOUR OTHER,DDaT - Digital Data & Technology,ALEXANDER MANN SOLUTIONS LIMITED,1709163-2695729-560478-42004,504.05
Home Office,Home Office,05/12/2022,CONTINGENT LABOUR OTHER,DDaT - Digital Data & Technology,ALEXANDER MANN SOLUTIONS LIMITED,1709500-2695729-560478-28376,3405.12
Home Office,Home Office,05/12/2022,CONTINGENT LABOUR OTHER,DDaT - Digital Data & Technology,ALEXANDER MANN SOLUTIONS LIMITED,1710001-2695729-560478-2709988,32519.85
Home Office,Home Office,05/12/2022,CONTINGENT LABOUR OTHER,DDaT - Digital Data & Technology,ALEXANDER MANN SOLUTIONS LIMITED,1816000-2695729-560478-1621763,19461.16
Home Office,Home Office,05/12/2022,CONTINGENT LABOUR OTHER,DDaT - Digital Data & Technology,ALEXANDER MANN SOLUTIONS LIMITED,1816002-2695729-560478-2506019,30072.22
Home Office,Home Office,05/12/2022,CONTINGENT LABOUR OTHER,DDaT - Digital Data & Technology,ALEXANDER MANN SOLUTIONS LIMITED,1816010-2695729-560478-782745,9392.94
Home Office,Home Office,05/12/2022,CONTINGENT LABOUR OTHER,DDaT - Digital Data & Technology,ALEXANDER MANN SOLUTIONS LIMITED,1709166-2695729-560478-3282068,39384.81
Home Office,Home Office,05/12/2022,IT RUN COST,DDaT - Digital Data & Technology,CAPGEMINI UK PLC,1816002-2600110347845-112696-331768,331768.00
Home Office,Home Office,05/12/2022,IT RUN COST,DDaT - Digital Data & Technology,IBM UNITED KINGDOM LTD,1709166-5811220533-101457-58877675,588776.75
Home Office,Home Office,05/12/2022,IT RUN COST,DDaT - Digital Data & Technology,ITM COMMUNICATIONS LTD,1816002-71213-103279-3248561,32485.61
Home Office,Home Office,05/12/2022,IT RUN COST,DDaT - Digital Data & Technology,MADE TECH LTD,1475209-INV003394-56527-242625,29115.00
Home Office,Home Office,05/12/2022,IT RUN COST,DDaT - Digital Data & Technology,MADE TECH LTD,1475209-INV003388-56527-46380,55656.00
Home Office,Home Office,05/12/2022,IT RUN COST,DDaT - Digital Data & Technology,METHODS  BUSINESS AND DIGITAL TECH LTD,1816006-SIN067349-119732-191850,191850.00
Home Office,Home Office,05/12/2022,IT RUN COST,DDaT - Digital Data & Technology,METHODS  BUSINESS AND DIGITAL TECH LTD,1816006-SIN069875-119732-3165027,31650.27
Home Office,Home Office,05/12/2022,IT RUN COST,DDaT - Digital Data & Technology,NATS SERVICES LTD,1432007-90658754-349529-56564,67876.80
Home Office,Home Office,06/12/2022,IT RUN COST,DDaT - Digital Data & Technology,BLOOM PROCUREMENT SERVICES LIMITED,1710001-SIN038487-518536-225614,225614.00
Home Office,Home Office,06/12/2022,IT RUN COST,DDaT - Digital Data & Technology,CGI IT UK LTD,1892015-GB014094595-240306-43582,43582.00
Home Office,Home Office,06/12/2022,OTHER ICT COSTS,DDaT - Digital Data & Technology,CLARASYS LTD,1486658-INV104343-56484-54285,54285.00
Home Office,Home Office,06/12/2022,END USER COMPUTER SOFTWARE,DDaT - Digital Data & Technology,CSC COMPUTER SCIENCES CORPORATION,1709140-5201821786-222226-15101586,151015.86
Home Office,Home Office,06/12/2022,END USER COMPUTER SOFTWARE,DDaT - Digital Data & Technology,CSC COMPUTER SCIENCES CORPORATION,1709140-5201821805-222226-3163337,31633.37
Home Office,Home Office,06/12/2022,CONTINGENT LABOUR OTHER,DDaT - Digital Data & Technology,DELOITTE LLP,1709163-8003106627-112904-4955123,59461.48
Home Office,Home Office,06/12/2022,IT RUN COST,DDaT - Digital Data & Technology,FUJITSU SERVICES LTD,1816006-1030005973-106173-372275,446730.00
Home Office,Home Office,06/12/2022,IT RUN COST,DDaT - Digital Data & Technology,FUJITSU SERVICES LTD,1816008-1030005977-106173-2708071,32496.85
Home Office,Home Office,06/12/2022,IT RUN COST,DDaT - Digital Data & Technology,IBM UNITED KINGDOM LTD,1475209-5811221473-101457-323525,38823.00
Home Office,Home Office,06/12/2022,IT RUN COST,DDaT - Digital Data & Technology,MADE TECH LTD,1475209-INV003332-56527-27000,32400.00
Home Office,Home Office,06/12/2022,SYSTEM CLEARING,DDaT - Digital Data & Technology,MASTEK (UK) LTD,1486658-90396535-351665-4507172,450717.20
Home Office,Home Office,06/12/2022,IT RUN COST,DDaT - Digital Data & Technology,PHOENIX SOFTWARE LTD,1816006-OP/I949966-343631-31485875,314858.75
Home Office,Home Office,06/12/2022,IT RUN COST,DDaT - Digital Data & Technology,REDCENTRIC SOLUTIONS LTD,1892015-FTI004249-58178-412000,412000.00
Home Office,Home Office,06/12/2022,IT RUN COST,DDaT - Digital Data & Technology,VISION-BOX SYSTEMS LTD,1709140-22020144-332210-262995,31559.40
Home Office,Home Office,06/12/2022,IT RUN COST,DDaT - Digital Data & Technology,VISION-BOX SYSTEMS LTD,1709140-22020145-332210-768455,92214.60
Home Office,Home Office,06/12/2022,IT RUN COST,DDaT - Digital Data & Technology,VISION-BOX SYSTEMS LTD,1709140-22020143-332210-23829094,238290.94
Home Office,Home Office,06/12/2022,IT RUN COST,DDaT - Digital Data & Technology,VYSIION LTD,1816008-37271-55229-68453,68453.00
Home Office,Home Office,07/12/2022,OTHER ICT COSTS,DDaT - Digital Data & Technology,AKER SYSTEMS LTD,1488305-SI-000156-512178-72150,72150.00
Home Office,Home Office,07/12/2022,SYSTEM CLEARING,DDaT - Digital Data & Technology,AKER SYSTEMS LTD,1488303-SI-000157-512178-2741675,274167.50
Home Office,Home Office,07/12/2022,IT,DDaT - Digital Data & Technology,DAINTTA LTD,1709125-1152-57990-18776767,225321.20
Home Office,Home Office,07/12/2022,SYSTEM CLEARING,DDaT - Digital Data & Technology,DATALYNX LTD,1892015-1122-184817-54277,54277.00
Home Office,Home Office,07/12/2022,IT RUN COST,DDaT - Digital Data & Technology,FINCORE LTD,1432007-HO2211M52-125945-4709032,47090.32
Home Office,Home Office,07/12/2022,IT RUN COST,DDaT - Digital Data & Technology,FSP CONSULTING SERVICES LTD,1433058-INV-205449-54884-2110429,21104.29
Home Office,Home Office,07/12/2022,OTHER ICT COSTS,DDaT - Digital Data & Technology,MASTEK (UK) LTD,1486658-90396541-351665-418147,418147.00
Home Office,Home Office,07/12/2022,IT RUN COST,DDaT - Digital Data & Technology,MASTEK (UK) LTD,1486658-90396543-351665-279535,279535.00
Home Office,Home Office,07/12/2022,CONTINGENT LABOUR OTHER,DDaT - Digital Data & Technology,MTI TECHNOLOGY LTD,1486665-SI014781-54171-21890,26268.00
Home Office,Home Office,07/12/2022,IT RUN COST,DDaT - Digital Data & Technology,MTI TECHNOLOGY LTD,1709125-SI014716-54171-3372375,40468.50
Home Office,Home Office,07/12/2022,IT RUN COST,DDaT - Digital Data & Technology,MTI TECHNOLOGY LTD,1709125-SI014720-54171-36980,44376.00
Home Office,Home Office,07/12/2022,IT RUN COST,DDaT - Digital Data & Technology,MTI TECHNOLOGY LTD,1709125-SI014719-54171-394675,47361.00
Home Office,Home Office,07/12/2022,IT RUN COST,DDaT - Digital Data & Technology,MTI TECHNOLOGY LTD,1709125-SI014718-54171-405075,48609.00
Home Office,Home Office,07/12/2022,IT RUN COST,DDaT - Digital Data & Technology,MTI TECHNOLOGY LTD,1709125-SI014722-54171-45980,55176.00
Home Office,Home Office,07/12/2022,IT RUN COST,DDaT - Digital Data & Technology,MTI TECHNOLOGY LTD,1709125-SI014717-54171-47970,57564.00
Home Office,Home Office,07/12/2022,IT RUN COST,DDaT - Digital Data & Technology,MTI TECHNOLOGY LTD,1709125-SI014721-54171-4979375,59752.50
Home Office,Home Office,07/12/2022,IT RUN COST,DDaT - Digital Data & Technology,MTI TECHNOLOGY LTD,1709125-SI014795-54171-504425,60531.00
Home Office,Home Office,07/12/2022,IT RUN COST,DDaT - Digital Data & Technology,SILEX CONSULTING LTD,1709140-231-420152-36030,36030.00
Home Office,Home Office,07/12/2022,IT RUN COST,DDaT - Digital Data & Technology,SOFTCAT LTD,1816011-INVUK514443-242804-110478556,1325742.66
Home Office,Home Office,07/12/2022,IT RUN COST,DDaT - Digital Data & Technology,VODAFONE LTD,1709130-UK10/112022/8331-119598-3252113,39025.36
Home Office,Home Office,07/12/2022,IT RUN COST,DDaT - Digital Data & Technology,VODAFONE LTD,1709130-383841-119598-8270112,82701.12
Home Office,Home Office,08/12/2022,IT RUN COST,DDaT - Digital Data & Technology,CAPGEMINI UK PLC,1709125-2600110341805-112696-59505,71406.00
Home Office,Home Office,08/12/2022,SYSTEM CLEARING,DDaT - Digital Data & Technology,COMPUTACENTER (UK) LTD,1814004-3883889393-100028-26162,31394.40
Home Office,Home Office,08/12/2022,RENT TO LANDLORDS,DDaT - Digital Data & Technology,CROWN HOSTING DATA CENTRE LTD,1816002-18052-414197-3214622,38575.46
Home Office,Home Office,08/12/2022,RENT TO LANDLORDS,DDaT - Digital Data & Technology,CROWN HOSTING DATA CENTRE LTD,1816002-18053-414197-3336226,40034.71
Home Office,Home Office,08/12/2022,IT RUN COST,DDaT - Digital Data & Technology,ENGINE PARTNERS UK LLP T/A TRANSFORM,1709140-TRN1PI000296-382357-95575,95575.00
Home Office,Home Office,08/12/2022,IT RUN COST,DDaT - Digital Data & Technology,FUJITSU SERVICES LTD,1816002-1010002835-106173-4652181,46521.81
Home Office,Home Office,08/12/2022,SYSTEM CLEARING,DDaT - Digital Data & Technology,LEIDOS INNOVATIONS UK LTD,1709140-INV02-000456697-136199-3823463,38234.63
Home Office,Home Office,08/12/2022,IT RUN COST,DDaT - Digital Data & Technology,LEIDOS INNOVATIONS UK LTD,1709140-INV02-000456718-136199-31274622,312746.22
Home Office,Home Office,08/12/2022,IT RUN COST,DDaT - Digital Data & Technology,NETCOMPANY UK LIMITED,1486655-NCUK60717-465524-36095,43314.00
Home Office,Home Office,08/12/2022,END USER COMPUTER SOFTWARE,DDaT - Digital Data & Technology,PHOENIX SOFTWARE LTD,1486655-OP/I951033-343631-43680,52416.00
Home Office,Home Office,08/12/2022,IT RUN COST,DDaT - Digital Data & Technology,SPECIALIST COMPUTER CENTRES PLC,1709130-OP/N276466-100774-25148136,301777.63
Home Office,Home Office,09/12/2022,CONTINGENT LABOUR OTHER,DDaT - Digital Data & Technology,ALEXANDER MANN SOLUTIONS LIMITED,1892015-2700542-560478-41878,5025.36
Home Office,Home Office,09/12/2022,CONTINGENT LABOUR OTHER,DDaT - Digital Data & Technology,ALEXANDER MANN SOLUTIONS LIMITED,1475212-2700542-560478-34653,4158.36
Home Office,Home Office,09/12/2022,CONTINGENT LABOUR OTHER,DDaT - Digital Data & Technology,ALEXANDER MANN SOLUTIONS LIMITED,1486655-2700542-560478-1719395,20632.74
Home Office,Home Office,09/12/2022,CONTINGENT LABOUR OTHER,DDaT - Digital Data & Technology,ALEXANDER MANN SOLUTIONS LIMITED,1486665-2700542-560478-911065,10932.78
Home Office,Home Office,09/12/2022,CONTINGENT LABOUR OTHER,DDaT - Digital Data & Technology,ALEXANDER MANN SOLUTIONS LIMITED,1488303-2700542-560478-1285313,15423.76
Home Office,Home Office,09/12/2022,CONTINGENT LABOUR OTHER,DDaT - Digital Data & Technology,ALEXANDER MANN SOLUTIONS LIMITED,1488305-2700542-560478-1190795,14289.54
Home Office,Home Office,09/12/2022,CONTINGENT LABOUR OTHER,DDaT - Digital Data & Technology,ALEXANDER MANN SOLUTIONS LIMITED,1701006-2701602-560478-127655,153186.00
Home Office,Home Office,09/12/2022,CONTINGENT LABOUR OTHER,DDaT - Digital Data & Technology,ALEXANDER MANN SOLUTIONS LIMITED,1709125-2700542-560478-55434,6652.08
Home Office,Home Office,09/12/2022,CONTINGENT LABOUR OTHER,DDaT - Digital Data & Technology,ALEXANDER MANN SOLUTIONS LIMITED,1709141-2700542-560478-4389393,52672.72
Home Office,Home Office,09/12/2022,CONTINGENT LABOUR OTHER,DDaT - Digital Data & Technology,ALEXANDER MANN SOLUTIONS LIMITED,1709160-2700542-560478-874075,10488.90
Home Office,Home Office,09/12/2022,CONTINGENT LABOUR OTHER,DDaT - Digital Data & Technology,ALEXANDER MANN SOLUTIONS LIMITED,1709161-2700542-560478-33363,4003.56
Home Office,Home Office,09/12/2022,CONTINGENT LABOUR OTHER,DDaT - Digital Data & Technology,ALEXANDER MANN SOLUTIONS LIMITED,1709163-2700542-560478-269472,3233.66
Home Office,Home Office,09/12/2022,CONTINGENT LABOUR OTHER,DDaT - Digital Data & Technology,ALEXANDER MANN SOLUTIONS LIMITED,1709500-2700542-560478-276666,3319.99
Home Office,Home Office,09/12/2022,CONTINGENT LABOUR OTHER,DDaT - Digital Data & Technology,ALEXANDER MANN SOLUTIONS LIMITED,1710001-2700542-560478-5968557,71622.69
Home Office,Home Office,09/12/2022,CONTINGENT LABOUR OTHER,DDaT - Digital Data & Technology,ALEXANDER MANN SOLUTIONS LIMITED,1816000-2700542-560478-1621763,19461.16
Home Office,Home Office,09/12/2022,CONTINGENT LABOUR OTHER,DDaT - Digital Data & Technology,ALEXANDER MANN SOLUTIONS LIMITED,1816002-2700542-560478-1789025,21468.30
Home Office,Home Office,09/12/2022,CONTINGENT LABOUR OTHER,DDaT - Digital Data & Technology,ALEXANDER MANN SOLUTIONS LIMITED,1816010-2700542-560478-1041901,12502.81
Home Office,Home Office,09/12/2022,CONTINGENT LABOUR OTHER,DDaT - Digital Data & Technology,ALEXANDER MANN SOLUTIONS LIMITED,1709166-2700542-560478-11748513,140982.15
Home Office,Home Office,09/12/2022,OTHER ICT COSTS,DDaT - Digital Data & Technology,ALEXANDER MANN SOLUTIONS LIMITED,1488305-2701609-560478-22836,22836.00
Home Office,Home Office,09/12/2022,OTHER ICT COSTS,DDaT - Digital Data & Technology,ALEXANDER MANN SOLUTIONS LIMITED,1488305-2701608-560478-23472,23472.00
Home Office,Home Office,09/12/2022,IT RUN COST,DDaT - Digital Data & Technology,AMAZON WEB SERVICES,1816006-EUMPINGB22-4199-401829-3297198,32971.98
Home Office,Home Office,09/12/2022,IT RUN COST,DDaT - Digital Data & Technology,AMAZON WEB SERVICES,1816006-EUINGB22-5155836-401829-9670858,96708.58
Home Office,Home Office,09/12/2022,IT RUN COST,DDaT - Digital Data & Technology,DATALYNX LTD,1709130-1125-184817-25808,25808.00
Home Office,Home Office,09/12/2022,IT RUN COST,DDaT - Digital Data & Technology,DATALYNX LTD,1709130-1126-184817-27658,27658.00
Home Office,Home Office,09/12/2022,IT RUN COST,DDaT - Digital Data & Technology,DATALYNX LTD,1709130-1127-184817-32348,32348.00
Home Office,Home Office,09/12/2022,IT RUN COST,DDaT - Digital Data & Technology,DATALYNX LTD,1709130-1124-184817-85314,85314.00
Home Office,Home Office,09/12/2022,IT RUN COST,DDaT - Digital Data & Technology,DELOITTE LLP,1710001-8003119775-112904-1610655,161065.50
Home Office,Home Office,09/12/2022,IT RUN COST,DDaT - Digital Data & Technology,FSP CONSULTING SERVICES LTD,1709138-INV-205459-54884-329625,39555.00
Home Office,Home Office,09/12/2022,IT RUN COST,DDaT - Digital Data & Technology,FSP CONSULTING SERVICES LTD,1709138-INV-205460-54884-8355429,100265.15
Home Office,Home Office,09/12/2022,CONTINGENT LABOUR OTHER,DDaT - Digital Data & Technology,PIXEL GROUP LTD,1701006-HO-SCM-PIX09-58416-22233,26679.60
Home Office,Home Office,09/12/2022,CONTINGENT LABOUR OTHER,DDaT - Digital Data & Technology,PIXEL GROUP LTD,1701006-HO-SCM-PIX10-58416-225495,270594.00
Home Office,Home Office,09/12/2022,IT RUN COST,DDaT - Digital Data & Technology,SPECIALIST COMPUTER CENTRES PLC,1816010-OP/N246778-100774-119565,143478.00
Home Office,Home Office,09/12/2022,IT RUN COST,DDaT - Digital Data & Technology,SPECIALIST COMPUTER CENTRES PLC,1816010-OP/N265999-100774-121105,145326.00
Home Office,Home Office,12/12/2022,OTHER ICT COSTS,DDaT - Digital Data & Technology,CAPGEMINI UK PLC,1709166-2600110347086-112696-46965,56358.00
Home Office,Home Office,12/12/2022,SYSTEM CLEARING,DDaT - Digital Data & Technology,CGI IT UK LTD,1892015-GB014093818-240306-2300733,23007.33
Home Office,Home Office,12/12/2022,SYSTEM CLEARING,DDaT - Digital Data & Technology,CGI IT UK LTD,1892015-GB014093817-240306-2559347,25593.47
Home Office,Home Office,12/12/2022,SYSTEM CLEARING,DDaT - Digital Data & Technology,CGI IT UK LTD,1892015-GB014094755-240306-2873085,287308.50
Home Office,Home Office,12/12/2022,IT RUN COST,DDaT - Digital Data & Technology,FINCORE LTD,1709140-HO2211M53-125945-6376482,76517.78
Home Office,Home Office,12/12/2022,IT RUN COST,DDaT - Digital Data & Technology,IBM UNITED KINGDOM LTD,1709166-5811222043-101457-5211618,52116.18
Home Office,Home Office,12/12/2022,SYSTEM CLEARING,DDaT - Digital Data & Technology,MASTEK (UK) LTD,1486658-90396586-351665-4629228,462922.80
Home Office,Home Office,12/12/2022,OTHER ICT COSTS,DDaT - Digital Data & Technology,PA CONSULTING SERVICES LTD,1486658-0000021183-100039-34078,40893.60
Home Office,Home Office,12/12/2022,OTHER ICT COSTS,DDaT - Digital Data & Technology,PA CONSULTING SERVICES LTD,1709166-0000020293-100039-33180,39816.00
Home Office,Home Office,12/12/2022,OTHER ICT COSTS,DDaT - Digital Data & Technology,PA CONSULTING SERVICES LTD,1709166-0000020532-100039-80487,96584.40
Home Office,Home Office,12/12/2022,OTHER ICT COSTS,DDaT - Digital Data & Technology,PA CONSULTING SERVICES LTD,1709166-0000020983-100039-1035865,124303.80
Home Office,Home Office,12/12/2022,OTHER ICT COSTS,DDaT - Digital Data & Technology,PA CONSULTING SERVICES LTD,1709166-0000021008-100039-33970,40764.00
Home Office,Home Office,12/12/2022,SYSTEM CLEARING,DDaT - Digital Data & Technology,PA CONSULTING SERVICES LTD,1709166-0000021129-100039-28600,28600.00
Home Office,Home Office,12/12/2022,END USER COMPUTER HARDWARE,DDaT - Digital Data & Technology,PURE TECHNOLOGY GROUP,1814004-SINV00226814-1-55943-4084087,49009.04
Home Office,Home Office,12/12/2022,IT RUN COST,DDaT - Digital Data & Technology,SYRENIS LTD,1475209-INV-006606-200839-22200,26640.00
Home Office,Home Office,12/12/2022,SYSTEM CLEARING,DDaT - Digital Data & Technology,VALCON GROUP UK LTD,1488303-622110053-54145-198700,198700.00
Home Office,Home Office,13/12/2022,IT RUN COST,DDaT - Digital Data & Technology,ATOS IT SERVICES UK LTD,1709140-5584407145-108063-25034,25034.00
Home Office,Home Office,13/12/2022,OTHER ICT COSTS,DDaT - Digital Data & Technology,BAE SYSTEMS APPLIED INTELLIGENCE LIMITED,1488305-1001051757-136604-1035090,1035090.00
Home Office,Home Office,13/12/2022,OTHER ICT COSTS,DDaT - Digital Data & Technology,CAPGEMINI UK PLC,1486658-2600110349967-112696-50325,50325.00
Home Office,Home Office,13/12/2022,SYSTEM CLEARING,DDaT - Digital Data & Technology,CAPGEMINI UK PLC,1488303-2600110349437-112696-19208344,192083.44
Home Office,Home Office,13/12/2022,SYSTEM CLEARING,DDaT - Digital Data & Technology,COMPUTACENTER (UK) LTD,1814004-3883886193-100028-1621480,1945776.00
Home Office,Home Office,13/12/2022,IT RUN COST,DDaT - Digital Data & Technology,CSC COMPUTER SCIENCES CORPORATION,1709140-5201824334-222226-7881546,78815.46
Home Office,Home Office,13/12/2022,IT RUN COST,DDaT - Digital Data & Technology,CSC COMPUTER SCIENCES CORPORATION,1709140-5201824333-222226-8431984,84319.84
Home Office,Home Office,13/12/2022,IT RUN COST,DDaT - Digital Data & Technology,CSC COMPUTER SCIENCES CORPORATION,1709140-5201824338-222226-1680265,168026.50
Home Office,Home Office,13/12/2022,IT RUN COST,DDaT - Digital Data & Technology,CSC COMPUTER SCIENCES CORPORATION,1709140-5201824336-222226-27529938,275299.38
Home Office,Home Office,13/12/2022,IT RUN COST,DDaT - Digital Data & Technology,FSP CONSULTING SERVICES LTD,1475209-INV-205452-54884-361552,43386.24
Home Office,Home Office,13/12/2022,IT RUN COST,DDaT - Digital Data & Technology,FUJITSU SERVICES LTD,1709142-1030006231-106173-30120665,301206.65
Home Office,Home Office,13/12/2022,OTHER ICT COSTS,DDaT - Digital Data & Technology,IBM UNITED KINGDOM LTD,1709166-5811221659-101457-52600,52600.00
Home Office,Home Office,13/12/2022,SYSTEM CLEARING,DDaT - Digital Data & Technology,KAINOS,1488303-KSUK03283-207476-138940,138940.00
Home Office,Home Office,13/12/2022,OTHER ICT COSTS,DDaT - Digital Data & Technology,PA CONSULTING SERVICES LTD,1709166-0000020812-100039-22236,26683.20
Home Office,Home Office,13/12/2022,OTHER ICT COSTS,DDaT - Digital Data & Technology,PA CONSULTING SERVICES LTD,1709166-0000021172-100039-26487,31784.40
Home Office,Home Office,13/12/2022,SYSTEM CLEARING,DDaT - Digital Data & Technology,PA CONSULTING SERVICES LTD,1709161-0000021254-100039-81600,97920.00
Home Office,Home Office,13/12/2022,END USER COMPUTER SOFTWARE,DDaT - Digital Data & Technology,PEGASYSTEMS LTD,1486658-90084109-56728-792000,792000.00
Home Office,Home Office,13/12/2022,IT RUN COST,DDaT - Digital Data & Technology,PWM TRAINING (UK) LTD,1709138-SI-6050-55538-36295,43554.00
Home Office,Home Office,13/12/2022,END USER COMPUTER SOFTWARE,DDaT - Digital Data & Technology,SOFTCAT LTD,1486658-INVUK620028-242804-11718555,117185.55
Home Office,Home Office,13/12/2022,IT RUN COST,DDaT - Digital Data & Technology,SYRENIS LTD,1475209-INV-006605-200839-31851,31851.00
Home Office,Home Office,13/12/2022,OTHER ICT COSTS,DDaT - Digital Data & Technology,VALCON GROUP UK LTD,1488305-622110054-54145-1484014,178081.68
Home Office,Home Office,14/12/2022,SYSTEM CLEARING,DDaT - Digital Data & Technology,AKER SYSTEMS LTD,1488305-SI-000154-512178-195915109,1959151.09
Home Office,Home Office,14/12/2022,IT RUN COST,DDaT - Digital Data & Technology,BASWARE HOLDINGS LTD,1710001-86112314-504653-58632,58632.00
Home Office,Home Office,14/12/2022,IT RUN COST,DDaT - Digital Data & Technology,CAPGEMINI UK PLC,1892015-2600110349326-112696-22264,22264.00
Home Office,Home Office,14/12/2022,IT RUN COST,DDaT - Digital Data & Technology,CIVICA UK LIMITED,1892015-C/GM258770-421184-21450,21450.00
Home Office,Home Office,14/12/2022,IT RUN COST,DDaT - Digital Data & Technology,CIVICA UK LIMITED,1892015-C/GM258769-421184-22260,22260.00
Home Office,Home Office,14/12/2022,SYSTEM CLEARING,DDaT - Digital Data & Technology,COGNIZANT WORLDWIDE LTD,1486658-CW101-0001282629-468613-36550,43860.00
Home Office,Home Office,14/12/2022,SYSTEM CLEARING,DDaT - Digital Data & Technology,COGNIZANT WORLDWIDE LTD,1486658-CW101-0001282627-468613-2714125,325695.00
Home Office,Home Office,14/12/2022,SYSTEM CLEARING,DDaT - Digital Data & Technology,COMPUTACENTER (UK) LTD,1709166-3883898261-100028-799668,95960.16
Home Office,Home Office,14/12/2022,IT RUN COST,DDaT - Digital Data & Technology,IBM UNITED KINGDOM LTD,1709168-5810221901-101457-118944,118944.00
Home Office,Home Office,14/12/2022,IT RUN COST,DDaT - Digital Data & Technology,INFORM LTD,1709138-SI-1498-53937-30950,37140.00
Home Office,Home Office,14/12/2022,IT RUN COST,DDaT - Digital Data & Technology,LEIDOS INNOVATIONS UK LTD,1709140-INV02-000461030-136199-20858822,208588.22
Home Office,Home Office,14/12/2022,IT RUN COST,DDaT - Digital Data & Technology,LEIDOS INNOVATIONS UK LTD,1709140-INV02-000461032-136199-20858822,208588.22
Home Office,Home Office,14/12/2022,TELEPHONE,DDaT - Digital Data & Technology,LUMEN TECHNOLOGIES UK LTD,1486655-288104194/1079513-100991-22937,27524.40
Home Office,Home Office,14/12/2022,TELEPHONE,DDaT - Digital Data & Technology,LUMEN TECHNOLOGIES UK LTD,1486655-620026056/1116691-100991-2400834,28810.00
Home Office,Home Office,14/12/2022,TELEPHONE,DDaT - Digital Data & Technology,LUMEN TECHNOLOGIES UK LTD,1486655-620020555/1117062-100991-24125,28950.00
Home Office,Home Office,14/12/2022,TELEPHONE,DDaT - Digital Data & Technology,LUMEN TECHNOLOGIES UK LTD,1486655-620026717/1117129-100991-4341543,52098.51
Home Office,Home Office,14/12/2022,TELEPHONE,DDaT - Digital Data & Technology,LUMEN TECHNOLOGIES UK LTD,1486655-620025239/1119608-100991-279907,335888.40
Home Office,Home Office,14/12/2022,OTHER ICT COSTS,DDaT - Digital Data & Technology,PA CONSULTING SERVICES LTD,1486658-0000021259-100039-376620,376620.00
Home Office,Home Office,14/12/2022,CONTINGENT LABOUR OTHER,DDaT - Digital Data & Technology,PA CONSULTING SERVICES LTD,1709160-0000021299-100039-24830,29796.00
Home Office,Home Office,14/12/2022,IT RUN COST,DDaT - Digital Data & Technology,PA CONSULTING SERVICES LTD,1709125-0000020957-100039-100000,100000.00
Home Office,Home Office,14/12/2022,IT RUN COST,DDaT - Digital Data & Technology,POLICE DIGITAL SERVICE (PDS),1892015-INV-2363-505506-27100248,271002.48
Home Office,Home Office,14/12/2022,END USER COMPUTER HARDWARE,DDaT - Digital Data & Technology,SOFTCAT LTD,1816002-INVUK657641-242804-3928272,47139.26
Home Office,Home Office,14/12/2022,IT RUN COST,DDaT - Digital Data & Technology,UK CLOUD LTD,1709125-123303-323064-6617755,79413.06
Home Office,Home Office,14/12/2022,IT RUN COST,DDaT - Digital Data & Technology,VAAMG CONSULTING LTD,1710001-1117-26112022-57455-106100,127320.00
Home Office,Home Office,15/12/2022,IT RUN COST,DDaT - Digital Data & Technology,BSI CYBERSECURITY AND INFORMATION RESILIANCE (UK) LIMITED,1486665-96145768-312175-253875,30465.00
Home Office,Home Office,15/12/2022,OTHER ICT COSTS,DDaT - Digital Data & Technology,CAPGEMINI UK PLC,1486658-2600110350074-112696-16656297,166562.97
Home Office,Home Office,15/12/2022,OTHER ICT COSTS,DDaT - Digital Data & Technology,CAPGEMINI UK PLC,1486658-2600110350118-112696-148143754,1777725.06
Home Office,Home Office,15/12/2022,SYSTEM CLEARING,DDaT - Digital Data & Technology,COMPUTACENTER (UK) LTD,1814004-3883901398-100028-287050,344460.00
Home Office,Home Office,15/12/2022,IT RUN COST,DDaT - Digital Data & Technology,METHODS  BUSINESS AND DIGITAL TECH LTD,1710001-SIN073303-119732-38870,38870.00
Home Office,Home Office,15/12/2022,IT RUN COST,DDaT - Digital Data & Technology,METHODS  BUSINESS AND DIGITAL TECH LTD,1710001-SIN073302-119732-4896125,48961.25
Home Office,Home Office,15/12/2022,IT RUN COST,DDaT - Digital Data & Technology,NDI TECHNOLOGIES LTD,1709140-1856822-102265-14407311,144073.11
Home Office,Home Office,15/12/2022,SYSTEM CLEARING,DDaT - Digital Data & Technology,PA CONSULTING SERVICES LTD,1488303-0000021163-100039-58093,58093.00
Home Office,Home Office,16/12/2022,CONTINGENT LABOUR OTHER,DDaT - Digital Data & Technology,ALEXANDER MANN SOLUTIONS LIMITED,1892015-2705162-560478-85623,10274.76
Home Office,Home Office,16/12/2022,CONTINGENT LABOUR OTHER,DDaT - Digital Data & Technology,ALEXANDER MANN SOLUTIONS LIMITED,1475212-2705162-560478-34653,4158.36
Home Office,Home Office,16/12/2022,CONTINGENT LABOUR OTHER,DDaT - Digital Data & Technology,ALEXANDER MANN SOLUTIONS LIMITED,1486655-2705162-560478-624655,7495.86
Home Office,Home Office,16/12/2022,CONTINGENT LABOUR OTHER,DDaT - Digital Data & Technology,ALEXANDER MANN SOLUTIONS LIMITED,1486665-2705162-560478-78018,9362.16
Home Office,Home Office,16/12/2022,CONTINGENT LABOUR OTHER,DDaT - Digital Data & Technology,ALEXANDER MANN SOLUTIONS LIMITED,1488303-2705162-560478-65631,7875.72
Home Office,Home Office,16/12/2022,CONTINGENT LABOUR OTHER,DDaT - Digital Data & Technology,ALEXANDER MANN SOLUTIONS LIMITED,1488305-2705162-560478-1400815,16809.78
Home Office,Home Office,16/12/2022,CONTINGENT LABOUR OTHER,DDaT - Digital Data & Technology,ALEXANDER MANN SOLUTIONS LIMITED,1709125-2705162-560478-581715,6980.58
Home Office,Home Office,16/12/2022,CONTINGENT LABOUR OTHER,DDaT - Digital Data & Technology,ALEXANDER MANN SOLUTIONS LIMITED,1709138-2705162-560478-102861,12343.32
Home Office,Home Office,16/12/2022,CONTINGENT LABOUR OTHER,DDaT - Digital Data & Technology,ALEXANDER MANN SOLUTIONS LIMITED,1709140-2705162-560478-69306,8316.72
Home Office,Home Office,16/12/2022,CONTINGENT LABOUR OTHER,DDaT - Digital Data & Technology,ALEXANDER MANN SOLUTIONS LIMITED,1709141-2705162-560478-477268,57272.16
Home Office,Home Office,16/12/2022,CONTINGENT LABOUR OTHER,DDaT - Digital Data & Technology,ALEXANDER MANN SOLUTIONS LIMITED,1709160-2705162-560478-262525,3150.30
Home Office,Home Office,16/12/2022,CONTINGENT LABOUR OTHER,DDaT - Digital Data & Technology,ALEXANDER MANN SOLUTIONS LIMITED,1709161-2705162-560478-33363,4003.56
Home Office,Home Office,16/12/2022,CONTINGENT LABOUR OTHER,DDaT - Digital Data & Technology,ALEXANDER MANN SOLUTIONS LIMITED,1709163-2705162-560478-500448,6005.37
Home Office,Home Office,16/12/2022,CONTINGENT LABOUR OTHER,DDaT - Digital Data & Technology,ALEXANDER MANN SOLUTIONS LIMITED,1709500-2705162-560478-148974,1787.69
Home Office,Home Office,16/12/2022,CONTINGENT LABOUR OTHER,DDaT - Digital Data & Technology,ALEXANDER MANN SOLUTIONS LIMITED,1710001-2705162-560478-2934803,35217.64
Home Office,Home Office,16/12/2022,CONTINGENT LABOUR OTHER,DDaT - Digital Data & Technology,ALEXANDER MANN SOLUTIONS LIMITED,1816000-2705162-560478-1621763,19461.16
Home Office,Home Office,16/12/2022,CONTINGENT LABOUR OTHER,DDaT - Digital Data & Technology,ALEXANDER MANN SOLUTIONS LIMITED,1816002-2705162-560478-2089805,25077.66
Home Office,Home Office,16/12/2022,CONTINGENT LABOUR OTHER,DDaT - Digital Data & Technology,ALEXANDER MANN SOLUTIONS LIMITED,1816010-2705162-560478-1124025,13488.30
Home Office,Home Office,16/12/2022,CONTINGENT LABOUR OTHER,DDaT - Digital Data & Technology,ALEXANDER MANN SOLUTIONS LIMITED,1709166-2705162-560478-6133425,73601.10
Home Office,Home Office,16/12/2022,IT RUN COST,DDaT - Digital Data & Technology,AMAZON WEB SERVICES,1816006-EUINGB22-5512669-401829-14962565,149625.65
Home Office,Home Office,16/12/2022,IT RUN COST,DDaT - Digital Data & Technology,ATOS IT SERVICES UK LTD,1486658-5584407498-108063-10982989,109829.89
Home Office,Home Office,16/12/2022,IT RUN COST,DDaT - Digital Data & Technology,ATOS IT SERVICES UK LTD,1709140-5584407496-108063-7268959,726895.90
Home Office,Home Office,16/12/2022,OTHER ICT COSTS,DDaT - Digital Data & Technology,CGI IT UK LTD,1709166-GB014095217-240306-38158,45789.60
Home Office,Home Office,16/12/2022,OTHER ICT COSTS,DDaT - Digital Data & Technology,CGI IT UK LTD,1709166-GB014095435-240306-55638,66765.60
Home Office,Home Office,16/12/2022,IT RUN COST,DDaT - Digital Data & Technology,CLARASYS LTD,1710001-INV104375-56484-6383193,76598.32
Home Office,Home Office,16/12/2022,SYSTEM CLEARING,DDaT - Digital Data & Technology,DELOITTE LLP,1486658-8003139052-112904-130000,130000.00
Home Office,Home Office,16/12/2022,IT RUN COST,DDaT - Digital Data & Technology,DELOITTE LLP,1709101-8003132719-112904-38475,46170.00
Home Office,Home Office,16/12/2022,IT RUN COST,DDaT - Digital Data & Technology,DELOITTE LLP,1709101-8003132717-112904-42000,50400.00
Home Office,Home Office,16/12/2022,IT RUN COST,DDaT - Digital Data & Technology,DELOITTE LLP,1709101-8003132718-112904-596125,71535.00
Home Office,Home Office,16/12/2022,IT RUN COST,DDaT - Digital Data & Technology,DELOITTE LLP,1709101-8003132716-112904-150525,180630.00
Home Office,Home Office,16/12/2022,IT RUN COST,DDaT - Digital Data & Technology,DELOITTE LLP,1710001-8003118100-112904-334945,33494.50
Home Office,Home Office,16/12/2022,IT RUN COST,DDaT - Digital Data & Technology,DELOITTE LLP,1710001-8003131223-112904-165419,165419.00
Home Office,Home Office,16/12/2022,IT RUN COST,DDaT - Digital Data & Technology,FUJITSU SERVICES LTD,1816002-1010003980-106173-7753635,77536.35
Home Office,Home Office,16/12/2022,IT RUN COST,DDaT - Digital Data & Technology,FUJITSU SERVICES LTD,1816002-1010003989-106173-3101454,31014.54
Home Office,Home Office,16/12/2022,IT RUN COST,DDaT - Digital Data & Technology,LEIDOS INNOVATIONS UK LTD,1709140-INV02-000463289-136199-20858822,208588.22
Home Office,Home Office,16/12/2022,IT RUN COST,DDaT - Digital Data & Technology,REDCENTRIC SOLUTIONS LTD,1892015-FTI004383-58178-56290,56290.00
Home Office,Home Office,16/12/2022,TELEPHONE,DDaT - Digital Data & Technology,VODAFONE LTD,1486655-101890718-119598-1110871,130459.90
Home Office,Home Office,19/12/2022,IT RUN COST,DDaT - Digital Data & Technology,6POINT6 LTD,1709125-3351-338678-396475,39647.50
Home Office,Home Office,19/12/2022,IT RUN COST,DDaT - Digital Data & Technology,6POINT6 LTD,1709125-3397-338678-6277251,62772.51
Home Office,Home Office,19/12/2022,IT RUN COST,DDaT - Digital Data & Technology,GAMMA TELECOM LTD,1892015-GA1686964-194326-2648695,26486.95
Home Office,Home Office,19/12/2022,IT RUN COST,DDaT - Digital Data & Technology,GAMMA TELECOM LTD,1892015-GA1696624-194326-2648702,26487.02
Home Office,Home Office,19/12/2022,OTHER ICT COSTS,DDaT - Digital Data & Technology,MOBILISE CLOUD SERVICES LTD,1709166-HOMINV026-56273-69835,69835.00
Home Office,Home Office,19/12/2022,IT RUN COST,DDaT - Digital Data & Technology,MOBILISE CLOUD SERVICES LTD,1816010-HOMINV025-56273-26823875,321886.50
Home Office,Home Office,19/12/2022,IT RUN COST,DDaT - Digital Data & Technology,MOBILISE CLOUD SERVICES LTD,1816010-HOMINV025A-56273-846051,101526.12
Home Office,Home Office,19/12/2022,IT RUN COST,DDaT - Digital Data & Technology,NCC GROUP SECURITY SERVICES LTD,1709125-00079113-100598-31700,38040.00
Home Office,Home Office,19/12/2022,TELEPHONE,DDaT - Digital Data & Technology,VODAFONE LTD,1486655-102688104-119598-11356999,134174.55
Home Office,Home Office,19/12/2022,IT RUN COST,DDaT - Digital Data & Technology,VODAFONE LTD,1709130-UK10/112022/7672-119598-29157,29157.00
Home Office,Home Office,19/12/2022,IT RUN COST,DDaT - Digital Data & Technology,VODAFONE LTD,1709130-IB054948-119598-3089075,30890.75
Home Office,Home Office,19/12/2022,IT RUN COST,DDaT - Digital Data & Technology,VODAFONE LTD,1709130-384368-119598-5187862,51878.62
Home Office,Home Office,20/12/2022,OTHER ICT COSTS,DDaT - Digital Data & Technology,ACCENTURE (UK) LTD,1486658-3003586814-106767-280931,28093.10
Home Office,Home Office,20/12/2022,OTHER ICT COSTS,DDaT - Digital Data & Technology,ACCENTURE (UK) LTD,1486658-3003586811-106767-121991,121991.00
Home Office,Home Office,20/12/2022,OTHER ICT COSTS,DDaT - Digital Data & Technology,BAE SYSTEMS APPLIED INTELLIGENCE LIMITED,1488305-1001051896-136604-19342625,193426.25
Home Office,Home Office,20/12/2022,CONTINGENT LABOUR OTHER,DDaT - Digital Data & Technology,CAPGEMINI UK PLC,1709161-2600110350695-112696-6443895,77326.74
Home Office,Home Office,20/12/2022,IT RUN COST,DDaT - Digital Data & Technology,CGI IT UK LTD,1709130-GB014094627-240306-620614,620614.00
Home Office,Home Office,20/12/2022,IT RUN COST,DDaT - Digital Data & Technology,ENTSERV UK LTD,1486665-6121585-102438-30800,36960.00
Home Office,Home Office,20/12/2022,IT RUN COST,DDaT - Digital Data & Technology,ENTSERV UK LTD,1709125-6121585-102438-15840,19008.00
Home Office,Home Office,20/12/2022,IT RUN COST,DDaT - Digital Data & Technology,FUJITSU SERVICES LTD,1892015-1030005976-106173-589607,58960.70
Home Office,Home Office,20/12/2022,IT RUN COST,DDaT - Digital Data & Technology,GAMMA TELECOM LTD,1892015-GA1686975-194326-438579,43857.90
Home Office,Home Office,20/12/2022,IT RUN COST,DDaT - Digital Data & Technology,GAMMA TELECOM LTD,1892015-GA1686973-194326-17462359,174623.59
Home Office,Home Office,20/12/2022,IT RUN COST,DDaT - Digital Data & Technology,IDENTITY E2E LTD,1709101-101812-384232-6728535,80742.42
Home Office,Home Office,20/12/2022,END USER COMPUTER SOFTWARE,DDaT - Digital Data & Technology,INTERNET INVESTIGATIONS SOLUTIONS LTD,1486658-INV-01144-52479-10461256,104612.56
Home Office,Home Office,20/12/2022,IT RUN COST,DDaT - Digital Data & Technology,KYNDRYL UK LTD,1709140-3112220331-56948-4748673,47486.73
Home Office,Home Office,20/12/2022,TELEPHONE,DDaT - Digital Data & Technology,LUMEN TECHNOLOGIES UK LTD,1486655-616387559/1116219-100991-3795102,45541.22
Home Office,Home Office,20/12/2022,IT RUN COST,DDaT - Digital Data & Technology,NCC GROUP SECURITY SERVICES LTD,1709125-00081161-100598-26400,31680.00
Home Office,Home Office,20/12/2022,IT RUN COST,DDaT - Digital Data & Technology,NCC GROUP SECURITY SERVICES LTD,1709125-00081120-100598-30800,36960.00
Home Office,Home Office,20/12/2022,OTHER ICT COSTS,DDaT - Digital Data & Technology,PA CONSULTING SERVICES LTD,1709166-0000021352-100039-159241,191089.20
Home Office,Home Office,20/12/2022,IT RUN COST,DDaT - Digital Data & Technology,VISION-BOX SYSTEMS LTD,1709140-22020154-332210-2629965,31559.58
Home Office,Home Office,20/12/2022,IT RUN COST,DDaT - Digital Data & Technology,VISION-BOX SYSTEMS LTD,1709140-22020155-332210-768455,92214.60
Home Office,Home Office,20/12/2022,IT RUN COST,DDaT - Digital Data & Technology,VISION-BOX SYSTEMS LTD,1709140-22020153-332210-23846818,238468.18
Home Office,Home Office,20/12/2022,SYSTEM CLEARING,DDaT - Digital Data & Technology,VODAFONE LTD,1892015-1000002157-119598-129600,129600.00
Home Office,Home Office,20/12/2022,IT RUN COST,DDaT - Digital Data & Technology,VODAFONE LTD,1709130-384367-119598-8270112,82701.12
Home Office,Home Office,21/12/2022,OTHER ICT COSTS,DDaT - Digital Data & Technology,6POINT6 LTD,1488305-3409-338678-4131025,413102.50
Home Office,Home Office,21/12/2022,IT RUN COST,DDaT - Digital Data & Technology,ATOS IT SERVICES UK LTD,1709130-5584408021-108063-15257916,152579.16
Home Office,Home Office,21/12/2022,IT RUN COST,DDaT - Digital Data & Technology,ATOS IT SERVICES UK LTD,1892007-5584408160-108063-31250,37500.00
Home Office,Home Office,21/12/2022,IT RUN COST,DDaT - Digital Data & Technology,ATOS IT SERVICES UK LTD,1892007-5584408159-108063-36410,43692.00
Home Office,Home Office,21/12/2022,IT RUN COST,DDaT - Digital Data & Technology,ATOS IT SERVICES UK LTD,1892007-5584408161-108063-172224,206668.80
Home Office,Home Office,21/12/2022,IT RUN COST,DDaT - Digital Data & Technology,FUJITSU SERVICES LTD,1710001-1010004028-106173-376542,37654.20
Home Office,Home Office,21/12/2022,IT RUN COST,DDaT - Digital Data & Technology,GOSS INTERACTIVE LTD,1475209-20889-58090-47922,47922.00
Home Office,Home Office,21/12/2022,IT RUN COST,DDaT - Digital Data & Technology,ITM COMMUNICATIONS LTD,1816002-71245-103279-4449619,53395.43
Home Office,Home Office,21/12/2022,IT RUN COST,DDaT - Digital Data & Technology,ITM COMMUNICATIONS LTD,1816002-71244-103279-4979548,49795.48
Home Office,Home Office,21/12/2022,IT RUN COST,DDaT - Digital Data & Technology,ITM COMMUNICATIONS LTD,1816002-71242-103279-7452247,74522.47
Home Office,Home Office,21/12/2022,IT RUN COST,DDaT - Digital Data & Technology,LA INTERNATIONAL COMPUTER CONSULTANTS LTD,1709101-LA702213-108950-22344,26812.80
Home Office,Home Office,21/12/2022,ADVICE,DDaT - Digital Data & Technology,NETCOMPANY UK LIMITED,1816009-NCUK60728-465524-1227705,147324.60
Home Office,Home Office,21/12/2022,OTHER ICT COSTS,DDaT - Digital Data & Technology,PA CONSULTING SERVICES LTD,1709166-0000021544-100039-169784,203740.80
Home Office,Home Office,21/12/2022,IT RUN COST,DDaT - Digital Data & Technology,PWM TRAINING (UK) LTD,1709138-SI-6058-55538-21420,25704.00
Home Office,Home Office,21/12/2022,IT RUN COST,DDaT - Digital Data & Technology,REED PROFESSIONAL SERVICES,1816002-661035518M-52801-22350,26820.00
Home Office,Home Office,21/12/2022,IT RUN COST,DDaT - Digital Data & Technology,REED PROFESSIONAL SERVICES,1816002-661035517M-52801-55700,66840.00
Home Office,Home Office,22/12/2022,CONTINGENT LABOUR OTHER,DDaT - Digital Data & Technology,ALEXANDER MANN SOLUTIONS LIMITED,1892015-2709948-560478-120619,14474.28
Home Office,Home Office,22/12/2022,CONTINGENT LABOUR OTHER,DDaT - Digital Data & Technology,ALEXANDER MANN SOLUTIONS LIMITED,1475212-2709948-560478-34653,4158.36
Home Office,Home Office,22/12/2022,CONTINGENT LABOUR OTHER,DDaT - Digital Data & Technology,ALEXANDER MANN SOLUTIONS LIMITED,1486655-2709948-560478-624655,7495.86
Home Office,Home Office,22/12/2022,CONTINGENT LABOUR OTHER,DDaT - Digital Data & Technology,ALEXANDER MANN SOLUTIONS LIMITED,1486665-2709948-560478-911065,10932.78
Home Office,Home Office,22/12/2022,CONTINGENT LABOUR OTHER,DDaT - Digital Data & Technology,ALEXANDER MANN SOLUTIONS LIMITED,1488303-2709948-560478-871886,10462.64
Home Office,Home Office,22/12/2022,CONTINGENT LABOUR OTHER,DDaT - Digital Data & Technology,ALEXANDER MANN SOLUTIONS LIMITED,1488305-2709948-560478-1400815,16809.77
Home Office,Home Office,22/12/2022,CONTINGENT LABOUR OTHER,DDaT - Digital Data & Technology,ALEXANDER MANN SOLUTIONS LIMITED,1709125-2709948-560478-581715,6980.58
Home Office,Home Office,22/12/2022,CONTINGENT LABOUR OTHER,DDaT - Digital Data & Technology,ALEXANDER MANN SOLUTIONS LIMITED,1709140-2709948-560478-23102,2772.24
Home Office,Home Office,22/12/2022,CONTINGENT LABOUR OTHER,DDaT - Digital Data & Technology,ALEXANDER MANN SOLUTIONS LIMITED,1709141-2709948-560478-4951614,59419.37
Home Office,Home Office,22/12/2022,CONTINGENT LABOUR OTHER,DDaT - Digital Data & Technology,ALEXANDER MANN SOLUTIONS LIMITED,1709160-2709948-560478-262525,3150.30
Home Office,Home Office,22/12/2022,CONTINGENT LABOUR OTHER,DDaT - Digital Data & Technology,ALEXANDER MANN SOLUTIONS LIMITED,1709161-2709948-560478-33363,4003.56
Home Office,Home Office,22/12/2022,CONTINGENT LABOUR OTHER,DDaT - Digital Data & Technology,ALEXANDER MANN SOLUTIONS LIMITED,1709500-2709948-560478-219914,2638.96
Home Office,Home Office,22/12/2022,CONTINGENT LABOUR OTHER,DDaT - Digital Data & Technology,ALEXANDER MANN SOLUTIONS LIMITED,1710001-2709948-560478-3218875,38626.50
Home Office,Home Office,22/12/2022,CONTINGENT LABOUR OTHER,DDaT - Digital Data & Technology,ALEXANDER MANN SOLUTIONS LIMITED,1816000-2709948-560478-1621763,19461.16
Home Office,Home Office,22/12/2022,CONTINGENT LABOUR OTHER,DDaT - Digital Data & Technology,ALEXANDER MANN SOLUTIONS LIMITED,1816002-2709948-560478-1999571,23994.85
Home Office,Home Office,22/12/2022,CONTINGENT LABOUR OTHER,DDaT - Digital Data & Technology,ALEXANDER MANN SOLUTIONS LIMITED,1816010-2709948-560478-1124025,13488.30
Home Office,Home Office,22/12/2022,CONTINGENT LABOUR OTHER,DDaT - Digital Data & Technology,ALEXANDER MANN SOLUTIONS LIMITED,1709166-2709948-560478-7710813,92529.75
Home Office,Home Office,22/12/2022,OTHER ICT COSTS,DDaT - Digital Data & Technology,ALEXANDER MANN SOLUTIONS LIMITED,1488305-2710978-560478-22836,22836.00
Home Office,Home Office,22/12/2022,OTHER ICT COSTS,DDaT - Digital Data & Technology,ALEXANDER MANN SOLUTIONS LIMITED,1488305-2710977-560478-23472,23472.00
Home Office,Home Office,22/12/2022,IT RUN COST,DDaT - Digital Data & Technology,ALEXANDER MANN SOLUTIONS LIMITED,1709163-2710974-560478-37994,37994.00
Home Office,Home Office,22/12/2022,IT RUN COST,DDaT - Digital Data & Technology,ALEXANDER MANN SOLUTIONS LIMITED,1709166-2710975-560478-76874,92248.80
Home Office,Home Office,22/12/2022,IT RUN COST,DDaT - Digital Data & Technology,BOXXE,1486655-INV0019663-100762-107370,107370.00
Home Office,Home Office,22/12/2022,SYSTEM CLEARING,DDaT - Digital Data & Technology,CAPGEMINI UK PLC,1709500-2600110338067-112696-503315,50331.50
Home Office,Home Office,22/12/2022,SYSTEM CLEARING,DDaT - Digital Data & Technology,CAPGEMINI UK PLC,1709500-2600110338569-112696-47199,47199.00
Home Office,Home Office,22/12/2022,SYSTEM CLEARING,DDaT - Digital Data & Technology,CAPGEMINI UK PLC,1709500-2600110351201-112696-43634,43634.00
Home Office,Home Office,22/12/2022,IT RUN COST,DDaT - Digital Data & Technology,IBM UNITED KINGDOM LTD,1709140-5812220802-101457-2319204,23192.04
Home Office,Home Office,22/12/2022,IT RUN COST,DDaT - Digital Data & Technology,LEIDOS INNOVATIONS UK LTD,1709130-INV02-000465799-136199-4766986,47669.86
Home Office,Home Office,22/12/2022,OTHER ICT COSTS,DDaT - Digital Data & Technology,MASTEK (UK) LTD,1486658-90396635-351665-4380535,438053.50
Home Office,Home Office,22/12/2022,SYSTEM CLEARING,DDaT - Digital Data & Technology,MASTEK (UK) LTD,1486658-90396631-351665-5077684,507768.40
Home Office,Home Office,22/12/2022,IT RUN COST,DDaT - Digital Data & Technology,MASTEK (UK) LTD,1486658-90396636-351665-34032031,340320.31
Home Office,Home Office,22/12/2022,IT RUN COST,DDaT - Digital Data & Technology,NEC SOFTWARE SOLUTIONS UK LTD,1709130-91468214-102086-54914633,549146.33
Home Office,Home Office,22/12/2022,IT RUN COST,DDaT - Digital Data & Technology,THALES UK LTD,1486658-237878-189526-118813,142575.60
Home Office,Home Office,22/12/2022,TELEPHONE,DDaT - Digital Data & Technology,VODAFONE LTD,1486655-102156604-119598-10324458,122943.15
Home Office,Home Office,22/12/2022,TELEPHONE,DDaT - Digital Data & Technology,VODAFONE LTD,1486655-102401998-119598-10602851,126319.47
Home Office,Home Office,23/12/2022,TELEPHONE,DDaT - Digital Data & Technology,BRITISH TELECOMMUNICATIONS LTD,1709500-VP50302270M223ME-112676-234459,28135.08
Home Office,Home Office,23/12/2022,IT RUN COST,DDaT - Digital Data & Technology,LEIDOS INNOVATIONS UK LTD,1709130-INV02-000465783-136199-74150126,741501.26
Home Office,Home Office,23/12/2022,IT RUN COST,DDaT - Digital Data & Technology,LEIDOS INNOVATIONS UK LTD,1709130-INV02-000465784-136199-74150126,741501.26
Home Office,Home Office,23/12/2022,IT RUN COST,DDaT - Digital Data & Technology,LEIDOS INNOVATIONS UK LTD,1709130-INV02-000465785-136199-74150126,741501.26
Home Office,Home Office,23/12/2022,IT RUN COST,DDaT - Digital Data & Technology,LEIDOS INNOVATIONS UK LTD,1709140-INV02-000465782-136199-35490111,354901.11
Home Office,Home Office,23/12/2022,TELEPHONE,DDaT - Digital Data & Technology,VODAFONE LTD,1486655-101605342-119598-12891564,149113.26
Home Office,Home Office,23/12/2022,IT RUN COST,DDaT - Digital Data & Technology,VODAFONE LTD,1709130-384540-119598-17192287,171922.87
Home Office,Home Office,23/12/2022,IT RUN COST,DDaT - Digital Data & Technology,VODAFONE LTD,1709130-384541-119598-7705773,770577.30
Home Office,Home Office,28/12/2022,SYSTEM CLEARING,DDaT - Digital Data & Technology,PA CONSULTING SERVICES LTD,1488303-0000021593-100039-98000,98000.00
Home Office,Home Office,29/12/2022,IT RUN COST,DDaT - Digital Data & Technology,BT GLOBAL SERVICES,1816002-615452-113921-52181526,521815.26
Home Office,Home Office,29/12/2022,END USER COMPUTER HARDWARE,DDaT - Digital Data & Technology,CCS MEDIA LTD,1709143-4741084-146079-261849,31421.88
Home Office,Home Office,29/12/2022,IT RUN COST,DDaT - Digital Data & Technology,IBM UNITED KINGDOM LTD,1709166-5812221833-101457-7817428,78174.28
Home Office,Home Office,29/12/2022,IT RUN COST,DDaT - Digital Data & Technology,PHOENIX SOFTWARE LTD,1816006-OP/I953020-343631-40773465,407734.65
Home Office,Home Office,30/12/2022,CONTINGENT LABOUR OTHER,DDaT - Digital Data & Technology,ALEXANDER MANN SOLUTIONS LIMITED,1475212-2714359-560478-277224,3326.69
Home Office,Home Office,30/12/2022,CONTINGENT LABOUR OTHER,DDaT - Digital Data & Technology,ALEXANDER MANN SOLUTIONS LIMITED,1486655-2714359-560478-63006,756.07
Home Office,Home Office,30/12/2022,CONTINGENT LABOUR OTHER,DDaT - Digital Data & Technology,ALEXANDER MANN SOLUTIONS LIMITED,1486665-2714359-560478-174514,2094.17
Home Office,Home Office,30/12/2022,CONTINGENT LABOUR OTHER,DDaT - Digital Data & Technology,ALEXANDER MANN SOLUTIONS LIMITED,1488303-2714359-560478-78757,945.08
Home Office,Home Office,30/12/2022,CONTINGENT LABOUR OTHER,DDaT - Digital Data & Technology,ALEXANDER MANN SOLUTIONS LIMITED,1488305-2714359-560478-985485,11825.75
Home Office,Home Office,30/12/2022,CONTINGENT LABOUR OTHER,DDaT - Digital Data & Technology,ALEXANDER MANN SOLUTIONS LIMITED,1709141-2714359-560478-493547,5922.56
Home Office,Home Office,30/12/2022,CONTINGENT LABOUR OTHER,DDaT - Digital Data & Technology,ALEXANDER MANN SOLUTIONS LIMITED,1709500-2714359-560478-185863,2230.36
Home Office,Home Office,30/12/2022,CONTINGENT LABOUR OTHER,DDaT - Digital Data & Technology,ALEXANDER MANN SOLUTIONS LIMITED,1710001-2714359-560478-562549,6750.59
Home Office,Home Office,30/12/2022,CONTINGENT LABOUR OTHER,DDaT - Digital Data & Technology,ALEXANDER MANN SOLUTIONS LIMITED,1816002-2714359-560478-30078,3609.36
Home Office,Home Office,30/12/2022,CONTINGENT LABOUR OTHER,DDaT - Digital Data & Technology,ALEXANDER MANN SOLUTIONS LIMITED,1709166-2714359-560478-325505,39060.61
Home Office,Home Office,30/12/2022,OTHER ICT COSTS,DDaT - Digital Data & Technology,BAE SYSTEMS APPLIED INTELLIGENCE LIMITED,1488305-1001052030-136604-1085582,1085582.00
Home Office,Home Office,30/12/2022,IT RUN COST,DDaT - Digital Data & Technology,BT GLOBAL SERVICES,1816002-615449-113921-35512869,355128.69
Home Office,Home Office,30/12/2022,SYSTEM CLEARING,DDaT - Digital Data & Technology,CAPGEMINI UK PLC,1488303-2600110351647-112696-1257466,125746.60
Home Office,Home Office,30/12/2022,RENT TO LANDLORDS,DDaT - Digital Data & Technology,CROWN HOSTING DATA CENTRE LTD,1816002-18263-414197-8619179,103430.15
Home Office,Home Office,30/12/2022,RENT TO LANDLORDS,DDaT - Digital Data & Technology,CROWN HOSTING DATA CENTRE LTD,1816002-18264-414197-8619179,103430.15
Home Office,Home Office,30/12/2022,IT RUN COST,DDaT - Digital Data & Technology,FUJITSU SERVICES LTD,1710001-1010004171-106173-18745278,187452.78
Home Office,Home Office,30/12/2022,IT RUN COST,DDaT - Digital Data & Technology,VISION-BOX SYSTEMS LTD,1709140-22020157-332210-90000,108000.00
Home Office,Home Office,30/12/2022,IT RUN COST,DDaT - Digital Data & Technology,VISION-BOX SYSTEMS LTD,1709140-22020156-332210-180000,216000.00
Home Office,Home Office,05/12/2022,CONTINGENT LABOUR OTHER,DG - Delivery,ALEXANDER MANN SOLUTIONS LIMITED,1220014-2695729-560478-1388271,16659.25
Home Office,Home Office,08/12/2022,LEGAL ADVICE,DG - Delivery,TEMPLE GARDEN CHAMBERS,1220014-280655-299555-3293333,32933.33
Home Office,Home Office,09/12/2022,CONTINGENT LABOUR OTHER,DG - Delivery,ALEXANDER MANN SOLUTIONS LIMITED,1220014-2700542-560478-2261245,27134.94
Home Office,Home Office,09/12/2022,IT RUN COST,DG - Delivery,BLOOM PROCUREMENT SERVICES LIMITED,1263000-SIN038595-518536-3221028,38652.34
Home Office,Home Office,09/12/2022,OTHER,DG - Delivery,OFFICE OF THE POLICE & CRIME COMMISSIONER FOR NORFOLK,1298000-9412006988-102354-10107309,101073.09
Home Office,Home Office,12/12/2022,FULL COST,DG - Delivery,BROOK STREET (UK) LTD,1298009-30166256-22-100385-44226,530.71
Home Office,Home Office,12/12/2022,OTHER,DG - Delivery,NOMENSA LTD,1298000-7575-419318-2600067,31200.80
Home Office,Home Office,14/12/2022,LEGAL REPRESENTATION,DG - Delivery,BIRNBERG PEIRCE & PARTNERS,1220014-BPP/HW/05/2022-113963-55650,66780.00
Home Office,Home Office,14/12/2022,EXPENSES (RC),DG - Delivery,HH ASSOCIATES LTD,1298000-260148286-56638-4399826,43998.26
Home Office,Home Office,14/12/2022,LEGAL REPRESENTATION,DG - Delivery,SAUNDERS SOLICITORS LTD,1220014-SS/RP/05/2022-436301-28745,34494.00
Home Office,Home Office,14/12/2022,LEGAL REPRESENTATION,DG - Delivery,SAUNDERS SOLICITORS LTD,1220014-SS/RP/04/2022-436301-2852167,34226.00
Home Office,Home Office,15/12/2022,END USER COMPUTER SOFTWARE,DG - Delivery,IDEAGEN HUDDLE LTD,1263000-SIHUD1195-57481-55000,66000.00
Home Office,Home Office,16/12/2022,CONTINGENT LABOUR OTHER,DG - Delivery,ALEXANDER MANN SOLUTIONS LIMITED,1220014-2705162-560478-1410491,16925.89
Home Office,Home Office,16/12/2022,IT RUN COST,DG - Delivery,ALEXANDER MANN SOLUTIONS LIMITED,1263000-2706161-560478-2505272,30063.26
Home Office,Home Office,16/12/2022,FULL COST,DG - Delivery,BROOK STREET (UK) LTD,1263000-30178143-22-100385-12588,151.06
Home Office,Home Office,16/12/2022,FULL COST,DG - Delivery,BROOK STREET (UK) LTD,1220014-30178143-22-100385-227212,2726.55
Home Office,Home Office,16/12/2022,BASIC SALARY,DG - Delivery,POLICE SCOTLAND,1735996-S0023929-491652-2791483,27914.83
Home Office,Home Office,22/12/2022,CONTINGENT LABOUR OTHER,DG - Delivery,ALEXANDER MANN SOLUTIONS LIMITED,1220014-2709948-560478-1945285,23343.42
Home Office,Home Office,22/12/2022,IT RUN COST,DG - Delivery,CENTIANT INTL LTD,1220014-INV-2324-464402-4690674,56288.09
Home Office,Home Office,23/12/2022,FULL COST,DG - Delivery,BROOK STREET (UK) LTD,1263000-30190871-22-100385-75528,906.34
Home Office,Home Office,23/12/2022,FULL COST,DG - Delivery,BROOK STREET (UK) LTD,1220014-30190871-22-100385-233265,2799.17
Home Office,Home Office,28/12/2022,IT RUN COST,DG - Delivery,CENTIANT INTL LTD,1220014-INV-2337-464402-362459,43495.08
Home Office,Home Office,30/12/2022,CONTINGENT LABOUR OTHER,DG - Delivery,ALEXANDER MANN SOLUTIONS LIMITED,1220014-2714359-560478-1469615,17635.38
Home Office,Home Office,30/12/2022,FULL COST,DG - Delivery,BROOK STREET (UK) LTD,1263000-30203681-22-100385-75528,906.34
Home Office,Home Office,30/12/2022,FULL COST,DG - Delivery,BROOK STREET (UK) LTD,1220014-30203681-22-100385-29402,3528.23
Home Office,Home Office,01/12/2022,ADVICE,HSG - Homeland Security Group,DELOITTE LLP,1286600-8002825467-112904-62250,62250.00
Home Office,Home Office,05/12/2022,CONTINGENT LABOUR OTHER,HSG - Homeland Security Group,ALEXANDER MANN SOLUTIONS LIMITED,1282017-2695729-560478-2599,3118.80
Home Office,Home Office,05/12/2022,CONTINGENT LABOUR OTHER,HSG - Homeland Security Group,ALEXANDER MANN SOLUTIONS LIMITED,1283020-2695729-560478-304095,3649.14
Home Office,Home Office,05/12/2022,CONTINGENT LABOUR OTHER,HSG - Homeland Security Group,ALEXANDER MANN SOLUTIONS LIMITED,1283024-2695729-560478-27645,3317.40
Home Office,Home Office,06/12/2022,CONFERENCES,HSG - Homeland Security Group,CALDER CONFERENCES LTD,1282019-465349-112824-10497114,104971.14
Home Office,Home Office,09/12/2022,CONTINGENT LABOUR OTHER,HSG - Homeland Security Group,ALEXANDER MANN SOLUTIONS LIMITED,1282017-2700542-560478-15594,1871.28
Home Office,Home Office,09/12/2022,CONTINGENT LABOUR OTHER,HSG - Homeland Security Group,ALEXANDER MANN SOLUTIONS LIMITED,1283020-2700542-560478-304095,3649.14
Home Office,Home Office,09/12/2022,CONTINGENT LABOUR OTHER,HSG - Homeland Security Group,ALEXANDER MANN SOLUTIONS LIMITED,1283024-2700542-560478-512817,6153.80
Home Office,Home Office,16/12/2022,CONTINGENT LABOUR OTHER,HSG - Homeland Security Group,ALEXANDER MANN SOLUTIONS LIMITED,1282017-2705162-560478-10396,1247.52
Home Office,Home Office,16/12/2022,CONTINGENT LABOUR OTHER,HSG - Homeland Security Group,ALEXANDER MANN SOLUTIONS LIMITED,1283020-2705162-560478-304095,3649.14
Home Office,Home Office,16/12/2022,CONTINGENT LABOUR OTHER,HSG - Homeland Security Group,ALEXANDER MANN SOLUTIONS LIMITED,1283024-2705162-560478-762316,9147.79
Home Office,Home Office,16/12/2022,OTHER,HSG - Homeland Security Group,FERA SCIENCE LTD,1287000-6138060813-414818-5117775,51177.75
Home Office,Home Office,16/12/2022,ADVICE,HSG - Homeland Security Group,NAIMURI LTD,1282033-SI-1162-54310-3079618,36955.42
Home Office,Home Office,16/12/2022,IT RUN COST,HSG - Homeland Security Group,NAIMURI LTD,1282033-1995-54310-9475305,94753.05
Home Office,Home Office,22/12/2022,CONTINGENT LABOUR OTHER,HSG - Homeland Security Group,ALEXANDER MANN SOLUTIONS LIMITED,1282017-2709948-560478-2599,3118.80
Home Office,Home Office,22/12/2022,CONTINGENT LABOUR OTHER,HSG - Homeland Security Group,ALEXANDER MANN SOLUTIONS LIMITED,1283020-2709948-560478-83964,10075.68
Home Office,Home Office,22/12/2022,CONTINGENT LABOUR OTHER,HSG - Homeland Security Group,ALEXANDER MANN SOLUTIONS LIMITED,1283024-2709948-560478-525949,6311.39
Home Office,Home Office,22/12/2022,OTHER,HSG - Homeland Security Group,CAPITA BUSINESS SERVICES LTD,1287000-6004131388-138018-6406575,64065.75
Home Office,Home Office,30/12/2022,CONTINGENT LABOUR OTHER,HSG - Homeland Security Group,ALEXANDER MANN SOLUTIONS LIMITED,1283020-2714359-560478-421791,5061.49
Home Office,Home Office,30/12/2022,CONTINGENT LABOUR OTHER,HSG - Homeland Security Group,ALEXANDER MANN SOLUTIONS LIMITED,1283024-2714359-560478-218396,2620.75
Home Office,Home Office,30/12/2022,CONTINGENT LABOUR OTHER,HSG - Homeland Security Group,ALEXANDER MANN SOLUTIONS LIMITED,1286600-2714359-560478-31279,3753.50
Home Office,Home Office,07/12/2022,COMP STAFF PERSONAL INJURY,LS - Legal Services,GOVERNMENT LEGAL DEPARTMENT,1497000-HOLFT-805-113504-9500,9500.00
Home Office,Home Office,12/12/2022,COMP STAFF PERSONAL INJURY,LS - Legal Services,GOVERNMENT LEGAL DEPARTMENT,1497000-HOLFT-806-113504-30000,30000.00
Home Office,Home Office,14/12/2022,LEGAL ADVICE,LS - Legal Services,GOVERNMENT LEGAL DEPARTMENT,1870000-A363840-1-113504-501500,501500.00
Home Office,Home Office,19/12/2022,ADVERSE LEGAL,LS - Legal Services,GOVERNMENT LEGAL DEPARTMENT,1497000-HOLFT-807-113504-91468,9146.80
Home Office,Home Office,19/12/2022,COMP STAFF PERSONAL INJURY,LS - Legal Services,GOVERNMENT LEGAL DEPARTMENT,1497000-HOLFT-807-113504-1500,1500.00
Home Office,Home Office,29/12/2022,LEGAL REPRESENTATION,LS - Legal Services,GOVERNMENT LEGAL DEPARTMENT,1497000-502871-113504-2582864,25828.64
Home Office,Home Office,29/12/2022,LEGAL ADVICE,LS - Legal Services,GOVERNMENT LEGAL DEPARTMENT,1497000-502871-113504-4734515,47345.15
Home Office,Home Office,29/12/2022,LEGAL REPRESENTATION,LS - Legal Services,GOVERNMENT LEGAL DEPARTMENT,1497000-504670-113504-1081312,10813.12
Home Office,Home Office,29/12/2022,LEGAL ADVICE,LS - Legal Services,GOVERNMENT LEGAL DEPARTMENT,1497000-504670-113504-382206,38220.60
Home Office,Home Office,29/12/2022,LEGAL REPRESENTATION,LS - Legal Services,GOVERNMENT LEGAL DEPARTMENT,1497000-506633-113504-2670155,26701.55
Home Office,Home Office,29/12/2022,LEGAL ADVICE,LS - Legal Services,GOVERNMENT LEGAL DEPARTMENT,1497000-506633-113504-122109,122109.00
Home Office,Home Office,29/12/2022,LEGAL REPRESENTATION,LS - Legal Services,GOVERNMENT LEGAL DEPARTMENT,1497000-508162-113504-2614656,26146.56
Home Office,Home Office,29/12/2022,LEGAL ADVICE,LS - Legal Services,GOVERNMENT LEGAL DEPARTMENT,1497000-508162-113504-80718,80718.00
Home Office,Home Office,29/12/2022,LEGAL REPRESENTATION,LS - Legal Services,GOVERNMENT LEGAL DEPARTMENT,1497000-510243-113504-1426359,14263.59
Home Office,Home Office,29/12/2022,LEGAL ADVICE,LS - Legal Services,GOVERNMENT LEGAL DEPARTMENT,1497000-510243-113504-426982,42698.20
Home Office,Home Office,29/12/2022,LEGAL REPRESENTATION,LS - Legal Services,GOVERNMENT LEGAL DEPARTMENT,1497000-511459-113504-2922084,29220.84
Home Office,Home Office,29/12/2022,LEGAL ADVICE,LS - Legal Services,GOVERNMENT LEGAL DEPARTMENT,1497000-511459-113504-4364125,43641.25
Home Office,Home Office,29/12/2022,LEGAL REPRESENTATION,LS - Legal Services,GOVERNMENT LEGAL DEPARTMENT,1497000-514152-113504-2997373,29973.73
Home Office,Home Office,29/12/2022,LEGAL ADVICE,LS - Legal Services,GOVERNMENT LEGAL DEPARTMENT,1497000-514152-113504-2982345,29823.45
Home Office,Home Office,29/12/2022,LEGAL REPRESENTATION,LS - Legal Services,GOVERNMENT LEGAL DEPARTMENT,1497000-515196-113504-1003554,10035.54
Home Office,Home Office,29/12/2022,LEGAL ADVICE,LS - Legal Services,GOVERNMENT LEGAL DEPARTMENT,1497000-515196-113504-26141,26141.00
Home Office,Home Office,29/12/2022,LEGAL REPRESENTATION,LS - Legal Services,GOVERNMENT LEGAL DEPARTMENT,1497000-516258-113504-676562,6765.62
Home Office,Home Office,29/12/2022,LEGAL ADVICE,LS - Legal Services,GOVERNMENT LEGAL DEPARTMENT,1497000-516258-113504-35575,35575.00
Home Office,Home Office,29/12/2022,LEGAL REPRESENTATION,LS - Legal Services,GOVERNMENT LEGAL DEPARTMENT,1497000-517533-113504-1892588,18925.88
Home Office,Home Office,29/12/2022,LEGAL ADVICE,LS - Legal Services,GOVERNMENT LEGAL DEPARTMENT,1497000-517533-113504-3635965,36359.65
Home Office,Home Office,29/12/2022,LEGAL REPRESENTATION,LS - Legal Services,GOVERNMENT LEGAL DEPARTMENT,1497000-518803-113504-1334578,13345.78
Home Office,Home Office,29/12/2022,LEGAL ADVICE,LS - Legal Services,GOVERNMENT LEGAL DEPARTMENT,1497000-518803-113504-283465,28346.50
Home Office,Home Office,29/12/2022,LEGAL REPRESENTATION,LS - Legal Services,GOVERNMENT LEGAL DEPARTMENT,1497000-519739-113504-305983,30598.30
Home Office,Home Office,29/12/2022,LEGAL ADVICE,LS - Legal Services,GOVERNMENT LEGAL DEPARTMENT,1497000-519739-113504-283101,28310.10
Home Office,Home Office,02/12/2022,FULL COST,MBG - Migration & Borders Group,BROOK STREET (UK) LTD,1431878-30154712-22-100385-3551473,42617.69
Home Office,Home Office,02/12/2022,FULL COST,MBG - Migration & Borders Group,BROOK STREET (UK) LTD,1433407-30154712-22-100385-76646,919.75
Home Office,Home Office,02/12/2022,OTHER ICT COSTS,MBG - Migration & Borders Group,DELOITTE LLP,1701015-8003082209-112904-35000,42000.00
Home Office,Home Office,02/12/2022,SYSTEM CLEARING,MBG - Migration & Borders Group,DELOITTE LLP,1418268-8003082210-112904-665000,798000.00
Home Office,Home Office,02/12/2022,SYSTEM CLEARING,MBG - Migration & Borders Group,DELOITTE LLP,1431882-8003091425-112904-335000,402000.00
Home Office,Home Office,02/12/2022,SYSTEM CLEARING,MBG - Migration & Borders Group,DELOITTE LLP,1431882-8003091427-112904-335000,402000.00
Home Office,Home Office,02/12/2022,SYSTEM CLEARING,MBG - Migration & Borders Group,DELOITTE LLP,1431882-8003091655-112904-335000,402000.00
Home Office,Home Office,02/12/2022,SYSTEM CLEARING,MBG - Migration & Borders Group,DELOITTE LLP,1701015-8003082211-112904-1065000,1065000.00
Home Office,Home Office,02/12/2022,SYSTEM CLEARING,MBG - Migration & Borders Group,DELOITTE LLP,1701015-8003082209-112904-1240000,1488000.00
Home Office,Home Office,02/12/2022,SYSTEM CLEARING,MBG - Migration & Borders Group,DELOITTE LLP,1701015-8003091682-112904-325000,390000.00
Home Office,Home Office,02/12/2022,SYSTEM CLEARING,MBG - Migration & Borders Group,DELOITTE LLP,1701015-8003091654-112904-375000,375000.00
Home Office,Home Office,02/12/2022,SYSTEM CLEARING,MBG - Migration & Borders Group,LEIDOS INNOVATIONS UK LTD,1701015-INV02-000456675-136199-221463,22146.30
Home Office,Home Office,05/12/2022,CONTINGENT LABOUR OTHER,MBG - Migration & Borders Group,ALEXANDER MANN SOLUTIONS LIMITED,1771021-2695729-560478-98548,11825.76
Home Office,Home Office,05/12/2022,CONTINGENT LABOUR OTHER,MBG - Migration & Borders Group,ALEXANDER MANN SOLUTIONS LIMITED,1431122-2696733-560478-71976916,863722.99
Home Office,Home Office,05/12/2022,CONTINGENT LABOUR OTHER,MBG - Migration & Borders Group,ALEXANDER MANN SOLUTIONS LIMITED,1771104-2695729-560478-27645,3317.40
Home Office,Home Office,05/12/2022,CONTINGENT LABOUR OTHER,MBG - Migration & Borders Group,WE ARE SNOOK LTD,1771098-91465452-54458-29600,35520.00
Home Office,Home Office,06/12/2022,ADVICE,MBG - Migration & Borders Group,DELOITTE LLP,1771118-8003106641-112904-31550,37860.00
Home Office,Home Office,06/12/2022,SYSTEM CLEARING,MBG - Migration & Borders Group,MASTEK (UK) LTD,1701015-90396534-351665-6657373,665737.30
Home Office,Home Office,07/12/2022,OTHER ICT COSTS,MBG - Migration & Borders Group,MASTEK (UK) LTD,1701015-90396549-351665-79450,79450.00
Home Office,Home Office,07/12/2022,SYSTEM CLEARING,MBG - Migration & Borders Group,MASTEK (UK) LTD,1701015-90396542-351665-4865938,48659.38
Home Office,Home Office,07/12/2022,SYSTEM CLEARING,MBG - Migration & Borders Group,MASTEK (UK) LTD,1701015-90396550-351665-510293,510293.00
Home Office,Home Office,07/12/2022,SYSTEM CLEARING,MBG - Migration & Borders Group,MASTEK (UK) LTD,1701015-90396536-351665-6779987,677998.70
Home Office,Home Office,07/12/2022,SYSTEM CLEARING,MBG - Migration & Borders Group,PA CONSULTING SERVICES LTD,1431882-0000020700-100039-1966833,23602.00
Home Office,Home Office,07/12/2022,SYSTEM CLEARING,MBG - Migration & Borders Group,PA CONSULTING SERVICES LTD,1701015-0000020700-100039-16509833,198118.00
Home Office,Home Office,08/12/2022,IT,MBG - Migration & Borders Group,BLOOM PROCUREMENT SERVICES LIMITED,1771115-SIN038172-518536-49876404,598516.85
Home Office,Home Office,08/12/2022,IT,MBG - Migration & Borders Group,BLOOM PROCUREMENT SERVICES LIMITED,1771115-SIN038655-518536-54924311,659091.73
Home Office,Home Office,08/12/2022,SYSTEM CLEARING,MBG - Migration & Borders Group,CAPGEMINI UK PLC,1701015-2600110347058-112696-2401068,240106.80
Home Office,Home Office,09/12/2022,CONTINGENT LABOUR OTHER,MBG - Migration & Borders Group,ALEXANDER MANN SOLUTIONS LIMITED,1771021-2700542-560478-49274,5912.88
Home Office,Home Office,09/12/2022,CONTINGENT LABOUR OTHER,MBG - Migration & Borders Group,ALEXANDER MANN SOLUTIONS LIMITED,1431122-2701607-560478-73964756,887577.07
Home Office,Home Office,09/12/2022,CONTINGENT LABOUR OTHER,MBG - Migration & Borders Group,ALEXANDER MANN SOLUTIONS LIMITED,1771104-2700542-560478-27645,3317.40
Home Office,Home Office,09/12/2022,SYSTEM CLEARING,MBG - Migration & Borders Group,PA CONSULTING SERVICES LTD,1701015-0000021112-100039-46395,46395.00
Home Office,Home Office,09/12/2022,SYSTEM CLEARING,MBG - Migration & Borders Group,PA CONSULTING SERVICES LTD,1701015-0000021113-100039-46395,46395.00
Home Office,Home Office,12/12/2022,FULL COST,MBG - Migration & Borders Group,BROOK STREET (UK) LTD,1431878-30166256-22-100385-3161091,37933.08
Home Office,Home Office,12/12/2022,FULL COST,MBG - Migration & Borders Group,BROOK STREET (UK) LTD,1433407-30166256-22-100385-7362,883.44
Home Office,Home Office,13/12/2022,SYSTEM CLEARING,MBG - Migration & Borders Group,CAPGEMINI UK PLC,1701015-2600110349878-112696-16388827,163888.27
Home Office,Home Office,13/12/2022,SYSTEM CLEARING,MBG - Migration & Borders Group,CAPGEMINI UK PLC,1701015-2600110349949-112696-24695882,246958.82
Home Office,Home Office,14/12/2022,TRANSLATOR,MBG - Migration & Borders Group,BIG INTEGRATION PARTNERSHIP,1407007-HO007-1-57594-238700,238700.00
Home Office,Home Office,14/12/2022,OTHER ICT COSTS,MBG - Migration & Borders Group,BJSS LIMITED,1701015-INV-UK022289-508104-126723,126723.00
Home Office,Home Office,14/12/2022,SYSTEM CLEARING,MBG - Migration & Borders Group,CAPGEMINI UK PLC,1701015-2600110349852-112696-692757,69275.70
Home Office,Home Office,14/12/2022,OTHER ICT COSTS,MBG - Migration & Borders Group,COGNIZANT WORLDWIDE LTD,1701015-CW101-0001282628-468613-73100,73100.00
Home Office,Home Office,14/12/2022,SYSTEM CLEARING,MBG - Migration & Borders Group,PA CONSULTING SERVICES LTD,1701015-0000020637-100039-477919,477919.00
Home Office,Home Office,15/12/2022,SYSTEM CLEARING,MBG - Migration & Borders Group,PA CONSULTING SERVICES LTD,1431882-0000021340-100039-1966833,23602.00
Home Office,Home Office,15/12/2022,SYSTEM CLEARING,MBG - Migration & Borders Group,PA CONSULTING SERVICES LTD,1701015-0000021329-100039-100516,100516.00
Home Office,Home Office,15/12/2022,SYSTEM CLEARING,MBG - Migration & Borders Group,PA CONSULTING SERVICES LTD,1701015-0000021319-100039-114057,114057.00
Home Office,Home Office,15/12/2022,SYSTEM CLEARING,MBG - Migration & Borders Group,PA CONSULTING SERVICES LTD,1701015-0000021340-100039-16509833,198118.00
Home Office,Home Office,15/12/2022,RUN COST DEVICE PFI,MBG - Migration & Borders Group,REFUGEE BETTER OUTCOMES PARTNERSHIP LTD,1407007-HO008-57559-231150,231150.00
Home Office,Home Office,16/12/2022,CONTINGENT LABOUR OTHER,MBG - Migration & Borders Group,ALEXANDER MANN SOLUTIONS LIMITED,1771021-2705162-560478-554333,6652.00
Home Office,Home Office,16/12/2022,CONTINGENT LABOUR OTHER,MBG - Migration & Borders Group,ALEXANDER MANN SOLUTIONS LIMITED,1771104-2705162-560478-27645,3317.40
Home Office,Home Office,16/12/2022,IT,MBG - Migration & Borders Group,BARINGA PARTNERS LLP,1771111-31260-58339-2802695,336323.40
Home Office,Home Office,16/12/2022,IT,MBG - Migration & Borders Group,BARINGA PARTNERS LLP,1771111-31607-58339-29081322,348975.86
Home Office,Home Office,16/12/2022,IT,MBG - Migration & Borders Group,BARINGA PARTNERS LLP,1771111-32009-58339-3053045,366365.40
Home Office,Home Office,16/12/2022,FULL COST,MBG - Migration & Borders Group,BROOK STREET (UK) LTD,1431878-30178143-22-100385-3324664,39895.99
Home Office,Home Office,16/12/2022,FULL COST,MBG - Migration & Borders Group,BROOK STREET (UK) LTD,1433407-30178143-22-100385-91773,1101.28
Home Office,Home Office,16/12/2022,OTHER ICT COSTS,MBG - Migration & Borders Group,MASTEK (UK) LTD,1701015-90396624-351665-87400,87400.00
Home Office,Home Office,16/12/2022,SYSTEM CLEARING,MBG - Migration & Borders Group,MASTEK (UK) LTD,1701015-90396625-351665-556576,556576.00
Home Office,Home Office,19/12/2022,OTHER ICT COSTS,MBG - Migration & Borders Group,PA CONSULTING SERVICES LTD,1701015-0000021454-100039-74040,74040.00
Home Office,Home Office,19/12/2022,SYSTEM CLEARING,MBG - Migration & Borders Group,PA CONSULTING SERVICES LTD,1701015-0000021455-100039-172760,172760.00
Home Office,Home Office,20/12/2022,SYSTEM CLEARING,MBG - Migration & Borders Group,ATOS IT SERVICES UK LTD,1701015-5584407769-108063-4782625,47826.25
Home Office,Home Office,20/12/2022,SYSTEM CLEARING,MBG - Migration & Borders Group,CIVICA UK LIMITED,1771133-C/MM259222-421184-41426,41426.00
Home Office,Home Office,20/12/2022,SYSTEM CLEARING,MBG - Migration & Borders Group,DELOITTE LLP,1418268-8003140008-112904-665000,798000.00
Home Office,Home Office,20/12/2022,OTHER ICT COSTS,MBG - Migration & Borders Group,PA CONSULTING SERVICES LTD,1701015-0000021268-100039-111520,111520.00
Home Office,Home Office,20/12/2022,OTHER ICT COSTS,MBG - Migration & Borders Group,PA CONSULTING SERVICES LTD,1701015-0000021465-100039-44670,44670.00
Home Office,Home Office,20/12/2022,SYSTEM CLEARING,MBG - Migration & Borders Group,PA CONSULTING SERVICES LTD,1701015-0000021466-100039-104230,104230.00
Home Office,Home Office,21/12/2022,ADVICE,MBG - Migration & Borders Group,BARINGA PARTNERS LLP,1701015-31011-58339-2040715,244885.80
Home Office,Home Office,21/12/2022,ADVICE,MBG - Migration & Borders Group,BARINGA PARTNERS LLP,1701015-31676-58339-33552124,402625.49
Home Office,Home Office,21/12/2022,ADVICE,MBG - Migration & Borders Group,BARINGA PARTNERS LLP,1701015-32019-58339-403776,484531.20
Home Office,Home Office,22/12/2022,CONTINGENT LABOUR OTHER,MBG - Migration & Borders Group,ALEXANDER MANN SOLUTIONS LIMITED,1771021-2709948-560478-615925,7391.10
Home Office,Home Office,22/12/2022,CONTINGENT LABOUR OTHER,MBG - Migration & Borders Group,ALEXANDER MANN SOLUTIONS LIMITED,1431122-2710976-560478-75548341,906580.09
Home Office,Home Office,22/12/2022,CONTINGENT LABOUR OTHER,MBG - Migration & Borders Group,ALEXANDER MANN SOLUTIONS LIMITED,1771104-2709948-560478-27645,3317.40
Home Office,Home Office,22/12/2022,SYSTEM CLEARING,MBG - Migration & Borders Group,MASTEK (UK) LTD,1701015-90396634-351665-43500,43500.00
Home Office,Home Office,22/12/2022,SYSTEM CLEARING,MBG - Migration & Borders Group,MASTEK (UK) LTD,1701015-90396630-351665-7490986,749098.60
Home Office,Home Office,23/12/2022,FULL COST,MBG - Migration & Borders Group,BROOK STREET (UK) LTD,1431878-30190871-22-100385-365443,43853.17
Home Office,Home Office,23/12/2022,FULL COST,MBG - Migration & Borders Group,BROOK STREET (UK) LTD,1433407-30190871-22-100385-76646,919.75
Home Office,Home Office,28/12/2022,SYSTEM CLEARING,MBG - Migration & Borders Group,ACCENTURE (UK) LTD,1701015-3003587154-106767-1854525,185452.50
Home Office,Home Office,28/12/2022,SYSTEM CLEARING,MBG - Migration & Borders Group,ACCENTURE (UK) LTD,1701015-3003587118-106767-140602563,1406025.63
Home Office,Home Office,28/12/2022,IT,MBG - Migration & Borders Group,BLOOM PROCUREMENT SERVICES LIMITED,1771115-SIN039131-518536-35787897,429454.76
Home Office,Home Office,29/12/2022,MINOR WORK,MBG - Migration & Borders Group,INTERSERVE (FACILITIES MANAGEMENT) LTD,1431878-229920/92676988-100369-3341379,40096.55
Home Office,Home Office,30/12/2022,CONTINGENT LABOUR OTHER,MBG - Migration & Borders Group,ALEXANDER MANN SOLUTIONS LIMITED,1771021-2714359-560478-369555,4434.66
Home Office,Home Office,30/12/2022,CONTINGENT LABOUR OTHER,MBG - Migration & Borders Group,ALEXANDER MANN SOLUTIONS LIMITED,1771104-2714359-560478-27645,3317.40
Home Office,Home Office,30/12/2022,ADVICE,MBG - Migration & Borders Group,BARINGA PARTNERS LLP,1771102-32202-58339-55552,66662.40
Home Office,Home Office,30/12/2022,ADVICE,MBG - Migration & Borders Group,BARINGA PARTNERS LLP,1771102-32201-58339-25713333,308560.01
Home Office,Home Office,30/12/2022,FULL COST,MBG - Migration & Borders Group,BROOK STREET (UK) LTD,1431878-30203681-22-100385-3078553,36942.65
Home Office,Home Office,30/12/2022,FULL COST,MBG - Migration & Borders Group,BROOK STREET (UK) LTD,1433407-30203681-22-100385-7362,883.44
Home Office,Home Office,30/12/2022,SYSTEM CLEARING,MBG - Migration & Borders Group,PA CONSULTING SERVICES LTD,1701015-0000021167-100039-346275,41553.00
Home Office,Home Office,01/12/2022,IT RUN COST,PSG - Public Safety Group,BLOOM PROCUREMENT SERVICES LIMITED,1486609-SIN038102-518536-8972996,107675.95
Home Office,Home Office,01/12/2022,SYSTEM CLEARING,PSG - Public Safety Group,LEIDOS INNOVATIONS UK LTD,1486609-INV02-000456676-136199-16643703,166437.03
Home Office,Home Office,02/12/2022,FULL COST,PSG - Public Safety Group,BROOK STREET (UK) LTD,1262100-30154712-22-100385-183949,1839.49
Home Office,Home Office,02/12/2022,IT RUN COST,PSG - Public Safety Group,EE LTD,1262100-1800289537-425623-5062938,50629.38
Home Office,Home Office,02/12/2022,SYSTEM CLEARING,PSG - Public Safety Group,NEC SOFTWARE SOLUTIONS UK LTD,1486609-91467476-102086-28660,28660.00
Home Office,Home Office,05/12/2022,CONTINGENT LABOUR OTHER,PSG - Public Safety Group,ALEXANDER MANN SOLUTIONS LIMITED,1262100-2695729-560478-12526657,125266.57
Home Office,Home Office,05/12/2022,CONTINGENT LABOUR OTHER,PSG - Public Safety Group,ALEXANDER MANN SOLUTIONS LIMITED,1262115-2695729-560478-337185,4046.22
Home Office,Home Office,05/12/2022,SYSTEM CLEARING,PSG - Public Safety Group,EE LTD,1262100-1800286118-425623-12787211,127872.11
Home Office,Home Office,05/12/2022,SYSTEM CLEARING,PSG - Public Safety Group,EE LTD,1262100-1800289519-425623-11476368,114763.68
Home Office,Home Office,05/12/2022,IT RUN COST,PSG - Public Safety Group,EE LTD,1262100-1800283323-425623-176565,176565.00
Home Office,Home Office,05/12/2022,IT RUN COST,PSG - Public Safety Group,EE LTD,1262100-1800289547-425623-9103168,91031.68
Home Office,Home Office,05/12/2022,IT RUN COST,PSG - Public Safety Group,ROKE MANOR RESEARCH LIMITED,1262100-90031261-101796-16539014,165390.14
Home Office,Home Office,06/12/2022,IT RUN COST,PSG - Public Safety Group,6POINT6 LTD,1262100-3373-338678-1153925,115392.50
Home Office,Home Office,06/12/2022,IT RUN COST,PSG - Public Safety Group,MASTEK (UK) LTD,1486609-90396533-351665-226809,249489.90
Home Office,Home Office,06/12/2022,IT RUN COST,PSG - Public Safety Group,QINETIQ LTD,1262100-117069901-112688-100000,100000.00
Home Office,Home Office,07/12/2022,IT RUN COST,PSG - Public Safety Group,TELENT TECHNOLOGY SERVICES,1262100-166322-461800-9164958,91649.58
Home Office,Home Office,07/12/2022,LEGAL ADVICE,PSG - Public Safety Group,TLT LLP,1262100-1328544-56259-14376906,143769.06
Home Office,Home Office,07/12/2022,LEGAL ADVICE,PSG - Public Safety Group,TLT LLP,1262100-1364498-56259-10192137,101921.37
Home Office,Home Office,07/12/2022,LEGAL ADVICE,PSG - Public Safety Group,TLT LLP,1262100-1364511-56259-6007907,60079.07
Home Office,Home Office,07/12/2022,LEGAL ADVICE,PSG - Public Safety Group,TLT LLP,1262100-1364488-56259-5327228,53272.28
Home Office,Home Office,08/12/2022,IT RUN COST,PSG - Public Safety Group,AIRWAVE SOLUTIONS LTD,1709505-HO-055-153581-643976,64397.60
Home Office,Home Office,08/12/2022,IT RUN COST,PSG - Public Safety Group,AIRWAVE SOLUTIONS LTD,1709505-HO-051-153581-5909894,59098.94
Home Office,Home Office,08/12/2022,IT RUN COST,PSG - Public Safety Group,AMETHYST RISK MANAGEMENT LTD,1709505-3286-51699-4815434,48154.34
Home Office,Home Office,09/12/2022,CONTINGENT LABOUR OTHER,PSG - Public Safety Group,ALEXANDER MANN SOLUTIONS LIMITED,1262100-2700542-560478-17943811,179438.11
Home Office,Home Office,09/12/2022,CONTINGENT LABOUR OTHER,PSG - Public Safety Group,ALEXANDER MANN SOLUTIONS LIMITED,1262115-2700542-560478-337185,4046.22
Home Office,Home Office,09/12/2022,IT RUN COST,PSG - Public Safety Group,CAPITA SSS LTD,1262100-6060057476-57527-208125,208125.00
Home Office,Home Office,12/12/2022,SYSTEM CLEARING,PSG - Public Safety Group,AIRWAVE SOLUTIONS LTD,1262100-HO-050-153581-39959936,399599.36
Home Office,Home Office,12/12/2022,FULL COST,PSG - Public Safety Group,BROOK STREET (UK) LTD,1262100-30166256-22-100385-188145,1881.45
Home Office,Home Office,12/12/2022,IT RUN COST,PSG - Public Safety Group,HANDSFREE GROUP LTD,1262100-2032541-55082-5578513,55785.13
Home Office,Home Office,12/12/2022,SYSTEM CLEARING,PSG - Public Safety Group,IDENTITY E2E LTD,1486609-101807-384232-34084773,340847.73
Home Office,Home Office,12/12/2022,IT RUN COST,PSG - Public Safety Group,IDENTITY E2E LTD,1486609-101807-384232-44325,4875.75
Home Office,Home Office,12/12/2022,IT RUN COST,PSG - Public Safety Group,IDENTITY E2E LTD,1486609-101807-384232-1296,155.52
Home Office,Home Office,12/12/2022,IT RUN COST,PSG - Public Safety Group,MASON ADVISORY LTD,1262100-INV003668-51190-46605333,466053.33
Home Office,Home Office,12/12/2022,SYSTEM CLEARING,PSG - Public Safety Group,NEC SOFTWARE SOLUTIONS UK LTD,1486609-91464559-102086-6450625,64506.25
Home Office,Home Office,12/12/2022,SYSTEM CLEARING,PSG - Public Safety Group,PA CONSULTING SERVICES LTD,1486609-0000019358-100039-36765,36765.00
Home Office,Home Office,12/12/2022,IT RUN COST,PSG - Public Safety Group,PA CONSULTING SERVICES LTD,1486609-0000019358-100039-164565,1974.78
Home Office,Home Office,12/12/2022,IT RUN COST,PSG - Public Safety Group,POLICE & CRIME COMMISSIONER FOR CHESHIRE,1262100-64000626-101718-7816737,78167.37
Home Office,Home Office,12/12/2022,IT RUN COST,PSG - Public Safety Group,VODAFONE LTD,1262100-1000002078-119598-3644418,36444.18
Home Office,Home Office,12/12/2022,IT RUN COST,PSG - Public Safety Group,VODAFONE LTD,1262100-1000002080-119598-29370,29370.00
Home Office,Home Office,12/12/2022,IT RUN COST,PSG - Public Safety Group,VODAFONE LTD,1262100-UK10/112022/6591-119598-25381,25381.00
Home Office,Home Office,13/12/2022,SYSTEM CLEARING,PSG - Public Safety Group,NEC SOFTWARE SOLUTIONS UK LTD,1486609-91464558-102086-28660,28660.00
Home Office,Home Office,14/12/2022,IT RUN COST,PSG - Public Safety Group,CERTUS ADVISORY LIMITED,1262100-358-566163-631578,63157.80
Home Office,Home Office,14/12/2022,IT RUN COST,PSG - Public Safety Group,CERTUS ADVISORY LIMITED,1262100-358-566163-57467,57467.00
Home Office,Home Office,15/12/2022,SYSTEM CLEARING,PSG - Public Safety Group,IDEMIA IDENTITY & SECURITY UK LTD,1486609-797-218398-707140,707140.00
Home Office,Home Office,15/12/2022,IT RUN COST,PSG - Public Safety Group,IDENTITY E2E LTD,1262100-101808-384232-102799,102799.00
Home Office,Home Office,15/12/2022,IT RUN COST,PSG - Public Safety Group,TELENT TECHNOLOGY SERVICES,1262100-166210-461800-981664,98166.40
Home Office,Home Office,15/12/2022,IT RUN COST,PSG - Public Safety Group,TELENT TECHNOLOGY SERVICES,1262100-166132-461800-2607598,26075.98
Home Office,Home Office,16/12/2022,SYSTEM CLEARING,PSG - Public Safety Group,AIRWAVE SOLUTIONS LTD,1262100-HO-054-153581-23967004,239670.04
Home Office,Home Office,16/12/2022,CONTINGENT LABOUR OTHER,PSG - Public Safety Group,ALEXANDER MANN SOLUTIONS LIMITED,1262100-2705162-560478-15035672,150356.72
Home Office,Home Office,16/12/2022,CONTINGENT LABOUR OTHER,PSG - Public Safety Group,ALEXANDER MANN SOLUTIONS LIMITED,1262115-2705162-560478-269748,3236.98
Home Office,Home Office,16/12/2022,FULL COST,PSG - Public Safety Group,BROOK STREET (UK) LTD,1262100-30178143-22-100385-174508,1745.08
Home Office,Home Office,16/12/2022,IT RUN COST,PSG - Public Safety Group,CAPITA RESOURCING LTD,1262100-EP10013478-158585-329175,32917.50
Home Office,Home Office,16/12/2022,IT RUN COST,PSG - Public Safety Group,ROKE MANOR RESEARCH LIMITED,1262100-90031505-101796-14249632,142496.32
Home Office,Home Office,19/12/2022,IT RUN COST,PSG - Public Safety Group,6POINT6 LTD,1262100-3403-338678-1397475,139747.50
Home Office,Home Office,19/12/2022,SYSTEM CLEARING,PSG - Public Safety Group,EE LTD,1262100-1800292385-425623-34225516,342255.16
Home Office,Home Office,19/12/2022,SYSTEM CLEARING,PSG - Public Safety Group,EE LTD,1262100-1800283345-425623-4536002,45360.02
Home Office,Home Office,19/12/2022,SYSTEM CLEARING,PSG - Public Safety Group,EE LTD,1262100-1800289546-425623-2107083,21070.83
Home Office,Home Office,19/12/2022,IT RUN COST,PSG - Public Safety Group,EE LTD,1262100-1800289534-425623-1312268,131226.80
Home Office,Home Office,19/12/2022,IT RUN COST,PSG - Public Safety Group,EE LTD,1262100-1800283326-425623-2201267,22012.67
Home Office,Home Office,19/12/2022,IT RUN COST,PSG - Public Safety Group,EE LTD,1262100-1800289516-425623-214759,21475.90
Home Office,Home Office,20/12/2022,IT RUN COST,PSG - Public Safety Group,FIELD FISHER WATERHOUSE LLP T/A FIELDFISHER,1262100-UK01-INV-000239179-119710-280671,28067.10
Home Office,Home Office,20/12/2022,SYSTEM CLEARING,PSG - Public Safety Group,LEIDOS INNOVATIONS UK LTD,1486609-INV02-000431869-136199-7479221,747922.10
Home Office,Home Office,20/12/2022,SYSTEM CLEARING,PSG - Public Safety Group,LEIDOS INNOVATIONS UK LTD,1486609-INV02-000452014-136199-48356361,483563.61
Home Office,Home Office,20/12/2022,SYSTEM CLEARING,PSG - Public Safety Group,LEIDOS INNOVATIONS UK LTD,1486609-INV02-000463363-136199-79790747,797907.47
Home Office,Home Office,20/12/2022,IT RUN COST,PSG - Public Safety Group,LEIDOS INNOVATIONS UK LTD,1486609-INV02-000431869-136199-19011711,190117.11
Home Office,Home Office,20/12/2022,IT RUN COST,PSG - Public Safety Group,MERSEYSIDE FIRE AND RESCUE SERVICE,1262100-I0025023-100545-3026289,30262.89
Home Office,Home Office,20/12/2022,IT RUN COST,PSG - Public Safety Group,MOTOROLA LIMITED,1262100-1980003540-100573-20854586,2085458.60
Home Office,Home Office,20/12/2022,IT RUN COST,PSG - Public Safety Group,MOTOROLA LIMITED,1262100-1980003541-100573-20854586,2085458.60
Home Office,Home Office,20/12/2022,IT RUN COST,PSG - Public Safety Group,MOTOROLA LIMITED,1262100-1980003558-100573-885089,885089.00
Home Office,Home Office,20/12/2022,IT RUN COST,PSG - Public Safety Group,MOTOROLA LIMITED,1262100-1980003558-100573-23144665,231446.65
Home Office,Home Office,21/12/2022,IT RUN COST,PSG - Public Safety Group,AIRWAVE SOLUTIONS LTD,1202509-0930000001-942-153581-206822686,2068226.86
Home Office,Home Office,21/12/2022,IT RUN COST,PSG - Public Safety Group,AIRWAVE SOLUTIONS LTD,1709505-HO-049-153581-137839453,1378394.53
Home Office,Home Office,21/12/2022,IT RUN COST,PSG - Public Safety Group,AIRWAVE SOLUTIONS LTD,1709505-0900000281-197-153581-83030936,830309.36
Home Office,Home Office,21/12/2022,IT RUN COST,PSG - Public Safety Group,AIRWAVE SOLUTIONS LTD,1709505-0900000280-200-153581-76359618,763596.18
Home Office,Home Office,21/12/2022,IT RUN COST,PSG - Public Safety Group,AIRWAVE SOLUTIONS LTD,1709505-0900000282-341-153581-47795094,477950.94
Home Office,Home Office,21/12/2022,IT RUN COST,PSG - Public Safety Group,AIRWAVE SOLUTIONS LTD,1202509-0931000001-890-153581-45739025,457390.25
Home Office,Home Office,21/12/2022,IT RUN COST,PSG - Public Safety Group,AIRWAVE SOLUTIONS LTD,1709505-0900000279-489-153581-22032303,220323.03
Home Office,Home Office,21/12/2022,IT RUN COST,PSG - Public Safety Group,AIRWAVE SOLUTIONS LTD,1202509-0932000001-721-153581-21960591,219605.91
Home Office,Home Office,21/12/2022,IT RUN COST,PSG - Public Safety Group,AIRWAVE SOLUTIONS LTD,1709505-0910000279-125-153581-11515613,115156.13
Home Office,Home Office,21/12/2022,IT RUN COST,PSG - Public Safety Group,AIRWAVE SOLUTIONS LTD,1709505-0900000283-199-153581-3172572,31725.72
Home Office,Home Office,21/12/2022,IT RUN COST,PSG - Public Safety Group,DELOITTE LLP,1262100-8003105248-112904-1258090,1258090.00
Home Office,Home Office,21/12/2022,IT RUN COST,PSG - Public Safety Group,EE LTD,1262100-1800293477-425623-638835517,6388355.17
Home Office,Home Office,21/12/2022,SYSTEM CLEARING,PSG - Public Safety Group,LEIDOS INNOVATIONS UK LTD,1486609-INV02-000454378-136199-40081622,400816.22
Home Office,Home Office,21/12/2022,IT RUN COST,PSG - Public Safety Group,LEIDOS INNOVATIONS UK LTD,1486609-INV02-000465776-136199-5281423,63377.08
Home Office,Home Office,21/12/2022,IT RUN COST,PSG - Public Safety Group,MASTEK (UK) LTD,1486609-90396532-351665-154772,170249.20
Home Office,Home Office,21/12/2022,LEGAL ADVICE,PSG - Public Safety Group,TLT LLP,1262100-1370248-56259-10750503,107505.03
Home Office,Home Office,21/12/2022,LEGAL ADVICE,PSG - Public Safety Group,TLT LLP,1262100-1370307-56259-8577661,85776.61
Home Office,Home Office,21/12/2022,LEGAL ADVICE,PSG - Public Safety Group,TLT LLP,1262100-1370199-56259-7110423,71104.23
Home Office,Home Office,21/12/2022,IT RUN COST,PSG - Public Safety Group,VODAFONE LTD,1262100-1000002152-119598-3644418,36444.18
Home Office,Home Office,21/12/2022,IT RUN COST,PSG - Public Safety Group,VODAFONE LTD,1262100-1000002154-119598-29370,29370.00
Home Office,Home Office,22/12/2022,CONTINGENT LABOUR OTHER,PSG - Public Safety Group,ALEXANDER MANN SOLUTIONS LIMITED,1262100-2709948-560478-13438806,134388.06
Home Office,Home Office,22/12/2022,CONTINGENT LABOUR OTHER,PSG - Public Safety Group,ALEXANDER MANN SOLUTIONS LIMITED,1262115-2709948-560478-337185,4046.22
Home Office,Home Office,22/12/2022,IT RUN COST,PSG - Public Safety Group,EE LTD,1262100-1800292386-425623-3488908,34889.08
Home Office,Home Office,22/12/2022,IT RUN COST,PSG - Public Safety Group,EE LTD,1262100-1800277757-425623-259755,25975.50
Home Office,Home Office,22/12/2022,SYSTEM CLEARING,PSG - Public Safety Group,IDEMIA IDENTITY & SECURITY UK LTD,1486609-804-218398-21350,23485.00
Home Office,Home Office,23/12/2022,IT RUN COST,PSG - Public Safety Group,BLOOM PROCUREMENT SERVICES LIMITED,1486609-SIN039043-518536-4855857,58270.28
Home Office,Home Office,23/12/2022,FULL COST,PSG - Public Safety Group,BROOK STREET (UK) LTD,1262100-30190871-22-100385-188145,1881.45
Home Office,Home Office,23/12/2022,SYSTEM CLEARING,PSG - Public Safety Group,LEIDOS INNOVATIONS UK LTD,1486609-INV02-000463325-136199-12102231,121022.31
Home Office,Home Office,23/12/2022,IT RUN COST,PSG - Public Safety Group,SAMSUNG ELECTRONICS,1262100-3058245547-109099-40000,40000.00
Home Office,Home Office,29/12/2022,IT RUN COST,PSG - Public Safety Group,AIRWAVE SOLUTIONS LTD,1709505-1000000009-234-153581-1838792351,18387923.51
Home Office,Home Office,29/12/2022,IT RUN COST,PSG - Public Safety Group,AIRWAVE SOLUTIONS LTD,1709505-1000000010-227-153581-29323413,293234.13
Home Office,Home Office,30/12/2022,CONTINGENT LABOUR OTHER,PSG - Public Safety Group,ALEXANDER MANN SOLUTIONS LIMITED,1262100-2714359-560478-1394619,13946.19
Home Office,Home Office,30/12/2022,FULL COST,PSG - Public Safety Group,BROOK STREET (UK) LTD,1262100-30203681-22-100385-44805,448.05
Home Office,Home Office,30/12/2022,SYSTEM CLEARING,PSG - Public Safety Group,EE LTD,1262100-1800292377-425623-7642445,76424.45
Home Office,Home Office,30/12/2022,SYSTEM CLEARING,PSG - Public Safety Group,EE LTD,1262100-1800292378-425623-6421393,64213.93
Home Office,Home Office,30/12/2022,IT RUN COST,PSG - Public Safety Group,EE LTD,1262100-1800292373-425623-612158,61215.80
Home Office,Home Office,30/12/2022,IT RUN COST,PSG - Public Safety Group,EE LTD,1262100-1800292404-425623-3501441,35014.41
Home Office,Home Office,02/12/2022,FULL COST,"STARS -  Science, Technology, Analysis, Research & Strategy",BROOK STREET (UK) LTD,1283022-30154712-22-100385-83723,1004.68
Home Office,Home Office,02/12/2022,FULL COST,"STARS -  Science, Technology, Analysis, Research & Strategy",BROOK STREET (UK) LTD,1492000-30154712-22-100385-127465,1529.58
Home Office,Home Office,02/12/2022,FULL COST,"STARS -  Science, Technology, Analysis, Research & Strategy",BROOK STREET (UK) LTD,1771094-30154712-22-100385-7343,881.16
Home Office,Home Office,02/12/2022,FULL COST,"STARS -  Science, Technology, Analysis, Research & Strategy",BROOK STREET (UK) LTD,1805091-30154712-22-100385-184368,2212.42
Home Office,Home Office,05/12/2022,CONTINGENT LABOUR OTHER,"STARS -  Science, Technology, Analysis, Research & Strategy",ALEXANDER MANN SOLUTIONS LIMITED,1805055-2695729-560478-456235,5474.82
Home Office,Home Office,05/12/2022,CONTINGENT LABOUR OTHER,"STARS -  Science, Technology, Analysis, Research & Strategy",ALEXANDER MANN SOLUTIONS LIMITED,1805091-2695729-560478-66726,800.71
Home Office,Home Office,07/12/2022,TRANSLATOR,"STARS -  Science, Technology, Analysis, Research & Strategy",BIG WORD INTERPRETING SERVICES LTD (THE),1283022-INV20266298-105469-39950,39950.00
Home Office,Home Office,07/12/2022,TRANSLATOR,"STARS -  Science, Technology, Analysis, Research & Strategy",BIG WORD INTERPRETING SERVICES LTD (THE),1283022-INV20266937-105469-39950,39950.00
Home Office,Home Office,07/12/2022,RESEARCH AND DEVELOPMENT,"STARS -  Science, Technology, Analysis, Research & Strategy",CT CENTRE (MOD) LTD T/A DSTL,1800810-SW000054-208273-45354,45354.00
Home Office,Home Office,07/12/2022,RESEARCH AND DEVELOPMENT,"STARS -  Science, Technology, Analysis, Research & Strategy",CT CENTRE (MOD) LTD T/A DSTL,1800810-SW000056-208273-95856,95856.00
Home Office,Home Office,07/12/2022,RESEARCH AND DEVELOPMENT,"STARS -  Science, Technology, Analysis, Research & Strategy",CT CENTRE (MOD) LTD T/A DSTL,1800810-SW000055-208273-301584,301584.00
Home Office,Home Office,07/12/2022,RESEARCH AND DEVELOPMENT,"STARS -  Science, Technology, Analysis, Research & Strategy",CT CENTRE (MOD) LTD T/A DSTL,1800810-SW000053-208273-660118,660118.00
Home Office,Home Office,07/12/2022,SYSTEM CLEARING,"STARS -  Science, Technology, Analysis, Research & Strategy",IBM UNITED KINGDOM LTD,1492000-5811221099-101457-35600,35600.00
Home Office,Home Office,09/12/2022,CONTINGENT LABOUR OTHER,"STARS -  Science, Technology, Analysis, Research & Strategy",ALEXANDER MANN SOLUTIONS LIMITED,1805055-2700542-560478-456235,5474.82
Home Office,Home Office,09/12/2022,CONTINGENT LABOUR OTHER,"STARS -  Science, Technology, Analysis, Research & Strategy",ALEXANDER MANN SOLUTIONS LIMITED,1805091-2700542-560478-150134,1801.61
Home Office,Home Office,09/12/2022,ADVICE,"STARS -  Science, Technology, Analysis, Research & Strategy",BIG WORD INTERPRETING SERVICES LTD (THE),1283022-INV20269677-105469-3456543,41478.52
Home Office,Home Office,12/12/2022,FULL COST,"STARS -  Science, Technology, Analysis, Research & Strategy",BROOK STREET (UK) LTD,1283022-30166256-22-100385-92536,1110.43
Home Office,Home Office,12/12/2022,FULL COST,"STARS -  Science, Technology, Analysis, Research & Strategy",BROOK STREET (UK) LTD,1492000-30166256-22-100385-104047,1248.56
Home Office,Home Office,12/12/2022,FULL COST,"STARS -  Science, Technology, Analysis, Research & Strategy",BROOK STREET (UK) LTD,1771094-30166256-22-100385-7343,881.16
Home Office,Home Office,12/12/2022,FULL COST,"STARS -  Science, Technology, Analysis, Research & Strategy",BROOK STREET (UK) LTD,1805091-30166256-22-100385-168625,2023.50
Home Office,Home Office,12/12/2022,ADVICE,"STARS -  Science, Technology, Analysis, Research & Strategy",DELOITTE LLP,1295051-8003106613-112904-307125,36855.00
Home Office,Home Office,12/12/2022,RESEARCH AND DEVELOPMENT,"STARS -  Science, Technology, Analysis, Research & Strategy",ECORYS UK LTD,1805055-7006391-51235-143319,171982.80
Home Office,Home Office,13/12/2022,OTHER GOVERNMENT DEPARTMENTS,"STARS -  Science, Technology, Analysis, Research & Strategy",CT CENTRE (MOD) LTD T/A DSTL,1800834-900179-208273-2857268,28572.68
Home Office,Home Office,13/12/2022,BASIC SALARY,"STARS -  Science, Technology, Analysis, Research & Strategy",POLICE & CRIME COMMISSIONER FOR HAMPSHIRE,1295052-3680021296-100220-3023607,30236.07
Home Office,Home Office,15/12/2022,ADVICE,"STARS -  Science, Technology, Analysis, Research & Strategy",BLOOM PROCUREMENT SERVICES LIMITED,1283022-SIN038738-518536-2395116,28741.39
Home Office,Home Office,15/12/2022,ADVICE,"STARS -  Science, Technology, Analysis, Research & Strategy",BLOOM PROCUREMENT SERVICES LIMITED,1283022-SIN038739-518536-4131289,49575.47
Home Office,Home Office,15/12/2022,ADVICE,"STARS -  Science, Technology, Analysis, Research & Strategy",BLOOM PROCUREMENT SERVICES LIMITED,1283022-SIN038803-518536-7852271,94227.25
Home Office,Home Office,15/12/2022,RESEARCH AND DEVELOPMENT,"STARS -  Science, Technology, Analysis, Research & Strategy",IPSOS (MARKET RESEARCH) LTD,1270760-22003052-106668-576121,57612.10
Home Office,Home Office,15/12/2022,PUBLIC OPIN SURVEY,"STARS -  Science, Technology, Analysis, Research & Strategy",IPSOS (MARKET RESEARCH) LTD,1805034-22003045-106668-35775,35775.00
Home Office,Home Office,15/12/2022,ADVICE,"STARS -  Science, Technology, Analysis, Research & Strategy",PROMETHEUS POLICING SERVICES LTD,1283022-SI-72-53736-70000,84000.00
Home Office,Home Office,16/12/2022,CONTINGENT LABOUR OTHER,"STARS -  Science, Technology, Analysis, Research & Strategy",ALEXANDER MANN SOLUTIONS LIMITED,1805055-2705162-560478-456235,5474.82
Home Office,Home Office,16/12/2022,CONTINGENT LABOUR OTHER,"STARS -  Science, Technology, Analysis, Research & Strategy",ALEXANDER MANN SOLUTIONS LIMITED,1805091-2705162-560478-200178,2402.14
Home Office,Home Office,16/12/2022,FULL COST,"STARS -  Science, Technology, Analysis, Research & Strategy",BROOK STREET (UK) LTD,1283022-30178143-22-100385-17626,211.51
Home Office,Home Office,16/12/2022,FULL COST,"STARS -  Science, Technology, Analysis, Research & Strategy",BROOK STREET (UK) LTD,1492000-30178143-22-100385-114655,1375.86
Home Office,Home Office,16/12/2022,FULL COST,"STARS -  Science, Technology, Analysis, Research & Strategy",BROOK STREET (UK) LTD,1771094-30178143-22-100385-7343,881.16
Home Office,Home Office,16/12/2022,FULL COST,"STARS -  Science, Technology, Analysis, Research & Strategy",BROOK STREET (UK) LTD,1805091-30178143-22-100385-1675,2010.00
Home Office,Home Office,16/12/2022,ADVICE,"STARS -  Science, Technology, Analysis, Research & Strategy",INTERSEC CONSULTANCY LTD,1283022-1122-558638-97150,116580.00
Home Office,Home Office,16/12/2022,RESEARCH AND DEVELOPMENT,"STARS -  Science, Technology, Analysis, Research & Strategy",NATIONAL CENTRE FOR SOCIAL RESEARCH,1805055-0058322-118232-5994087,71929.04
Home Office,Home Office,16/12/2022,ADVICE,"STARS -  Science, Technology, Analysis, Research & Strategy",PROMETHEUS POLICING SERVICES LTD,1283022-SI-73-53736-192555,231066.00
Home Office,Home Office,19/12/2022,RESEARCH AND DEVELOPMENT,"STARS -  Science, Technology, Analysis, Research & Strategy",GLOBAL INITIATIVE,1771089-UK-CYBER.2810622-546058-35299,35299.00
Home Office,Home Office,20/12/2022,RESEARCH AND DEVELOPMENT,"STARS -  Science, Technology, Analysis, Research & Strategy",CT CENTRE (MOD) LTD T/A DSTL,1800810-SW000059-208273-56285,56285.00
Home Office,Home Office,20/12/2022,RESEARCH AND DEVELOPMENT,"STARS -  Science, Technology, Analysis, Research & Strategy",CT CENTRE (MOD) LTD T/A DSTL,1800810-SW000058-208273-757739,757739.00
Home Office,Home Office,20/12/2022,RESEARCH AND DEVELOPMENT,"STARS -  Science, Technology, Analysis, Research & Strategy",CT CENTRE (MOD) LTD T/A DSTL,1800810-SW000061-208273-116589,116589.00
Home Office,Home Office,20/12/2022,RESEARCH AND DEVELOPMENT,"STARS -  Science, Technology, Analysis, Research & Strategy",CT CENTRE (MOD) LTD T/A DSTL,1800810-SW000060-208273-327014,327014.00
Home Office,Home Office,20/12/2022,RESEARCH AND DEVELOPMENT,"STARS -  Science, Technology, Analysis, Research & Strategy",KANTAR PUBLIC UK LTD,1805052-262100838-57874-68780,68780.00
Home Office,Home Office,22/12/2022,CONTINGENT LABOUR OTHER,"STARS -  Science, Technology, Analysis, Research & Strategy",ALEXANDER MANN SOLUTIONS LIMITED,1805055-2709948-560478-456235,5474.82
Home Office,Home Office,22/12/2022,CONTINGENT LABOUR OTHER,"STARS -  Science, Technology, Analysis, Research & Strategy",ALEXANDER MANN SOLUTIONS LIMITED,1805091-2709948-560478-133452,1601.42
Home Office,Home Office,22/12/2022,ADVICE,"STARS -  Science, Technology, Analysis, Research & Strategy",ALEXANDER MANN SOLUTIONS LIMITED,1283022-2710981-560478-23100,27720.00
Home Office,Home Office,22/12/2022,ADVICE,"STARS -  Science, Technology, Analysis, Research & Strategy",ALEXANDER MANN SOLUTIONS LIMITED,1283022-2710982-560478-23100,27720.00
Home Office,Home Office,22/12/2022,ADVICE,"STARS -  Science, Technology, Analysis, Research & Strategy",ALEXANDER MANN SOLUTIONS LIMITED,1283022-2710983-560478-23100,27720.00
Home Office,Home Office,23/12/2022,FULL COST,"STARS -  Science, Technology, Analysis, Research & Strategy",BROOK STREET (UK) LTD,1492000-30190871-22-100385-121975,1463.70
Home Office,Home Office,23/12/2022,FULL COST,"STARS -  Science, Technology, Analysis, Research & Strategy",BROOK STREET (UK) LTD,1771046-30190871-22-100385-17626,211.51
Home Office,Home Office,23/12/2022,FULL COST,"STARS -  Science, Technology, Analysis, Research & Strategy",BROOK STREET (UK) LTD,1771094-30190871-22-100385-7343,881.16
Home Office,Home Office,23/12/2022,FULL COST,"STARS -  Science, Technology, Analysis, Research & Strategy",BROOK STREET (UK) LTD,1805091-30190871-22-100385-170874,2050.49
Home Office,Home Office,28/12/2022,OTHER ICT COSTS,"STARS -  Science, Technology, Analysis, Research & Strategy",NETCOMPANY UK LIMITED,1295051-NCUK60830-465524-66353,66353.00
Home Office,Home Office,30/12/2022,CONTINGENT LABOUR OTHER,"STARS -  Science, Technology, Analysis, Research & Strategy",ALEXANDER MANN SOLUTIONS LIMITED,1805055-2714359-560478-456235,5474.82
Home Office,Home Office,30/12/2022,CONTINGENT LABOUR OTHER,"STARS -  Science, Technology, Analysis, Research & Strategy",ALEXANDER MANN SOLUTIONS LIMITED,1805091-2714359-560478-166815,2001.78
Home Office,Home Office,30/12/2022,FULL COST,"STARS -  Science, Technology, Analysis, Research & Strategy",BROOK STREET (UK) LTD,1492000-30203681-22-100385-121975,1463.70
Home Office,Home Office,30/12/2022,FULL COST,"STARS -  Science, Technology, Analysis, Research & Strategy",BROOK STREET (UK) LTD,1771046-30203681-22-100385-20144,241.73
Home Office,Home Office,30/12/2022,FULL COST,"STARS -  Science, Technology, Analysis, Research & Strategy",BROOK STREET (UK) LTD,1805091-30203681-22-100385-206868,2482.42
Home Office,Home Office,01/12/2022,CONT OUT SERV OTHER,UKAP - Asylum & Protection,COMMERCIAL SERVICES KENT LTD,1771067-7100199111-56886-53845839,646150.07
Home Office,Home Office,02/12/2022,FULL COST,UKAP - Asylum & Protection,BROOK STREET (UK) LTD,1406668-30154712-22-100385-2376223,28514.69
Home Office,Home Office,02/12/2022,FULL COST,UKAP - Asylum & Protection,BROOK STREET (UK) LTD,1406677-30154712-22-100385-59755,717.06
Home Office,Home Office,02/12/2022,FULL COST,UKAP - Asylum & Protection,BROOK STREET (UK) LTD,1407004-30154712-22-100385-194821,2337.86
Home Office,Home Office,02/12/2022,FULL COST,UKAP - Asylum & Protection,BROOK STREET (UK) LTD,1407010-30154712-22-100385-642101,7705.21
Home Office,Home Office,02/12/2022,FULL COST,UKAP - Asylum & Protection,BROOK STREET (UK) LTD,1417905-30154712-22-100385-3307972,39695.62
Home Office,Home Office,02/12/2022,FULL COST,UKAP - Asylum & Protection,BROOK STREET (UK) LTD,1417918-30154712-22-100385-93892,1126.70
Home Office,Home Office,02/12/2022,FULL COST,UKAP - Asylum & Protection,BROOK STREET (UK) LTD,1421031-30154712-22-100385-432188,5186.25
Home Office,Home Office,02/12/2022,FULL COST,UKAP - Asylum & Protection,BROOK STREET (UK) LTD,1470031-30154712-22-100385-162393,1948.71
Home Office,Home Office,02/12/2022,FULL COST,UKAP - Asylum & Protection,BROOK STREET (UK) LTD,1771031-30154712-22-100385-13161,1579.32
Home Office,Home Office,02/12/2022,FULL COST,UKAP - Asylum & Protection,BROOK STREET (UK) LTD,1771059-30154712-22-100385-75485,905.82
Home Office,Home Office,02/12/2022,FULL COST,UKAP - Asylum & Protection,BROOK STREET (UK) LTD,1771068-30154712-22-100385-735443,8825.31
Home Office,Home Office,02/12/2022,FULL COST,UKAP - Asylum & Protection,BROOK STREET (UK) LTD,1406033-30154712-22-100385-1105439,13265.30
Home Office,Home Office,02/12/2022,FULL COST,UKAP - Asylum & Protection,BROOK STREET (UK) LTD,1406041-30154712-22-100385-178155,2137.86
Home Office,Home Office,02/12/2022,FULL COST,UKAP - Asylum & Protection,BROOK STREET (UK) LTD,1406061-30154712-22-100385-7305,876.60
Home Office,Home Office,02/12/2022,FULL COST,UKAP - Asylum & Protection,BROOK STREET (UK) LTD,1406066-30154712-22-100385-1470813,17649.74
Home Office,Home Office,02/12/2022,FULL COST,UKAP - Asylum & Protection,BROOK STREET (UK) LTD,1406163-30154712-22-100385-1319932,15839.20
Home Office,Home Office,02/12/2022,FULL COST,UKAP - Asylum & Protection,BROOK STREET (UK) LTD,1406402-30154712-22-100385-17420809,209049.73
Home Office,Home Office,02/12/2022,FULL COST,UKAP - Asylum & Protection,BROOK STREET (UK) LTD,1406404-30154712-22-100385-174945,2099.34
Home Office,Home Office,02/12/2022,FULL COST,UKAP - Asylum & Protection,BROOK STREET (UK) LTD,1406408-30154712-22-100385-131182,1574.18
Home Office,Home Office,02/12/2022,FULL COST,UKAP - Asylum & Protection,BROOK STREET (UK) LTD,1406415-30154712-22-100385-2001314,240157.69
Home Office,Home Office,02/12/2022,FULL COST,UKAP - Asylum & Protection,BROOK STREET (UK) LTD,1407011-30154712-22-100385-105016,1260.19
Home Office,Home Office,02/12/2022,FULL COST,UKAP - Asylum & Protection,BROOK STREET (UK) LTD,1417008-30154712-22-100385-5513937,66167.21
Home Office,Home Office,02/12/2022,FULL COST,UKAP - Asylum & Protection,BROOK STREET (UK) LTD,1417940-30154712-22-100385-142979,1715.75
Home Office,Home Office,02/12/2022,FULL COST,UKAP - Asylum & Protection,BROOK STREET (UK) LTD,1417941-30154712-22-100385-1692081,20304.94
Home Office,Home Office,02/12/2022,FULL COST,UKAP - Asylum & Protection,BROOK STREET (UK) LTD,1417943-30154712-22-100385-59385,712.62
Home Office,Home Office,02/12/2022,FULL COST,UKAP - Asylum & Protection,BROOK STREET (UK) LTD,1421422-30154712-22-100385-59385,712.62
Home Office,Home Office,02/12/2022,INITIAL ACCOMMODATION,UKAP - Asylum & Protection,CALDER CONFERENCES LTD,1406676-463776-112824-3865383,46384.60
Home Office,Home Office,02/12/2022,INITIAL ACCOMMODATION,UKAP - Asylum & Protection,CALDER CONFERENCES LTD,1406676-463691-112824-68997,82796.40
Home Office,Home Office,02/12/2022,INITIAL ACCOMMODATION,UKAP - Asylum & Protection,CALDER CONFERENCES LTD,1406676-463692-112824-77035,92442.00
Home Office,Home Office,02/12/2022,INITIAL ACCOMMODATION,UKAP - Asylum & Protection,CALDER CONFERENCES LTD,1406676-463697-112824-1339349,160721.88
Home Office,Home Office,02/12/2022,INITIAL ACCOMMODATION,UKAP - Asylum & Protection,CALDER CONFERENCES LTD,1406676-463694-112824-3705845,4447014.00
Home Office,Home Office,02/12/2022,INITIAL ACCOMMODATION,UKAP - Asylum & Protection,CALDER CONFERENCES LTD,1406676-464015-112824-5447726,65372.71
Home Office,Home Office,02/12/2022,INITIAL ACCOMMODATION,UKAP - Asylum & Protection,CALDER CONFERENCES LTD,1406676-464016-112824-2014800,2417760.00
Home Office,Home Office,02/12/2022,INITIAL ACCOMMODATION,UKAP - Asylum & Protection,CALDER CONFERENCES LTD,1406676-464872-112824-699785,83974.20
Home Office,Home Office,05/12/2022,CONTINGENT LABOUR OTHER,UKAP - Asylum & Protection,ALEXANDER MANN SOLUTIONS LIMITED,1771067-2695729-560478-1124208,13490.50
Home Office,Home Office,06/12/2022,CONTINGENT LABOUR OTHER,UKAP - Asylum & Protection,ADECCO UK LTD,1406413-29411368-56679-36744925,440939.10
Home Office,Home Office,06/12/2022,CONTINGENT LABOUR OTHER,UKAP - Asylum & Protection,ADECCO UK LTD,1406413-29417016-56679-42596618,511159.42
Home Office,Home Office,06/12/2022,IT RUN COST,UKAP - Asylum & Protection,BUSINESS SYSTEMS (UK) LTD,1407011-04850-467495-10380861,124570.33
Home Office,Home Office,06/12/2022,SECURITY GUARDS,UKAP - Asylum & Protection,MITIE FM LTD,1771067-327652/92662538-56317-73063089,876757.07
Home Office,Home Office,07/12/2022,IT RUN COST,UKAP - Asylum & Protection,BUSINESS SYSTEMS (UK) LTD,1407011-04849-467495-31142583,373711.00
Home Office,Home Office,08/12/2022,INITIAL ACCOMMODATION,UKAP - Asylum & Protection,CALDER CONFERENCES LTD,1406668-BB14851-112824-1321090258,15851746.03
Home Office,Home Office,08/12/2022,CONT OUT SERV OTHER,UKAP - Asylum & Protection,TRIPOD PARTNERS LTD,1406402-TRI302675-54980-324008,32400.80
Home Office,Home Office,08/12/2022,CONTRACT OUT SERVICE,UKAP - Asylum & Protection,WAVENET LTD,1406676-864628-54736-6552785,78633.42
Home Office,Home Office,09/12/2022,INITIAL ACCOMMODATION,UKAP - Asylum & Protection,CALDER CONFERENCES LTD,1406676-465296-112824-24633,29559.60
Home Office,Home Office,09/12/2022,INITIAL ACCOMMODATION,UKAP - Asylum & Protection,CALDER CONFERENCES LTD,1406676-465295-112824-278644,33437.28
Home Office,Home Office,09/12/2022,INITIAL ACCOMMODATION,UKAP - Asylum & Protection,CALDER CONFERENCES LTD,1406676-465531-112824-3941983,47303.80
Home Office,Home Office,09/12/2022,INITIAL ACCOMMODATION,UKAP - Asylum & Protection,CALDER CONFERENCES LTD,1406676-465532-112824-13283207,159398.48
Home Office,Home Office,12/12/2022,FULL COST,UKAP - Asylum & Protection,BROOK STREET (UK) LTD,1406668-30166256-22-100385-2419404,29032.85
Home Office,Home Office,12/12/2022,FULL COST,UKAP - Asylum & Protection,BROOK STREET (UK) LTD,1406677-30166256-22-100385-59755,717.06
Home Office,Home Office,12/12/2022,FULL COST,UKAP - Asylum & Protection,BROOK STREET (UK) LTD,1407004-30166256-22-100385-165187,1982.24
Home Office,Home Office,12/12/2022,FULL COST,UKAP - Asylum & Protection,BROOK STREET (UK) LTD,1407010-30166256-22-100385-706492,8477.90
Home Office,Home Office,12/12/2022,FULL COST,UKAP - Asylum & Protection,BROOK STREET (UK) LTD,1417905-30166256-22-100385-3079239,36950.83
Home Office,Home Office,12/12/2022,FULL COST,UKAP - Asylum & Protection,BROOK STREET (UK) LTD,1417918-30166256-22-100385-81855,982.26
Home Office,Home Office,12/12/2022,FULL COST,UKAP - Asylum & Protection,BROOK STREET (UK) LTD,1421031-30166256-22-100385-273789,3285.46
Home Office,Home Office,12/12/2022,FULL COST,UKAP - Asylum & Protection,BROOK STREET (UK) LTD,1470031-30166256-22-100385-261423,3137.08
Home Office,Home Office,12/12/2022,FULL COST,UKAP - Asylum & Protection,BROOK STREET (UK) LTD,1771031-30166256-22-100385-11877,1425.24
Home Office,Home Office,12/12/2022,FULL COST,UKAP - Asylum & Protection,BROOK STREET (UK) LTD,1771059-30166256-22-100385-74256,891.07
Home Office,Home Office,12/12/2022,FULL COST,UKAP - Asylum & Protection,BROOK STREET (UK) LTD,1771068-30166256-22-100385-791634,9499.60
Home Office,Home Office,12/12/2022,FULL COST,UKAP - Asylum & Protection,BROOK STREET (UK) LTD,1406033-30166256-22-100385-1174722,14096.69
Home Office,Home Office,12/12/2022,FULL COST,UKAP - Asylum & Protection,BROOK STREET (UK) LTD,1406041-30166256-22-100385-234864,2818.37
Home Office,Home Office,12/12/2022,FULL COST,UKAP - Asylum & Protection,BROOK STREET (UK) LTD,1406061-30166256-22-100385-36513,438.16
Home Office,Home Office,12/12/2022,FULL COST,UKAP - Asylum & Protection,BROOK STREET (UK) LTD,1406066-30166256-22-100385-1176512,14118.12
Home Office,Home Office,12/12/2022,FULL COST,UKAP - Asylum & Protection,BROOK STREET (UK) LTD,1406163-30166256-22-100385-1308714,15704.59
Home Office,Home Office,12/12/2022,FULL COST,UKAP - Asylum & Protection,BROOK STREET (UK) LTD,1406402-30166256-22-100385-18562142,222745.72
Home Office,Home Office,12/12/2022,FULL COST,UKAP - Asylum & Protection,BROOK STREET (UK) LTD,1406404-30166256-22-100385-174945,2099.34
Home Office,Home Office,12/12/2022,FULL COST,UKAP - Asylum & Protection,BROOK STREET (UK) LTD,1406408-30166256-22-100385-122278,1467.33
Home Office,Home Office,12/12/2022,FULL COST,UKAP - Asylum & Protection,BROOK STREET (UK) LTD,1406413-30166256-22-100385-272573,3270.87
Home Office,Home Office,12/12/2022,FULL COST,UKAP - Asylum & Protection,BROOK STREET (UK) LTD,1406415-30166256-22-100385-25348931,304187.22
Home Office,Home Office,12/12/2022,FULL COST,UKAP - Asylum & Protection,BROOK STREET (UK) LTD,1407011-30166256-22-100385-101345,1216.14
Home Office,Home Office,12/12/2022,FULL COST,UKAP - Asylum & Protection,BROOK STREET (UK) LTD,1417008-30166256-22-100385-5438115,65257.31
Home Office,Home Office,12/12/2022,FULL COST,UKAP - Asylum & Protection,BROOK STREET (UK) LTD,1417940-30166256-22-100385-145438,1745.26
Home Office,Home Office,12/12/2022,FULL COST,UKAP - Asylum & Protection,BROOK STREET (UK) LTD,1417941-30166256-22-100385-171728,20607.34
Home Office,Home Office,12/12/2022,FULL COST,UKAP - Asylum & Protection,BROOK STREET (UK) LTD,1417943-30166256-22-100385-119821,1437.85
Home Office,Home Office,12/12/2022,FULL COST,UKAP - Asylum & Protection,BROOK STREET (UK) LTD,1421422-30166256-22-100385-59385,712.62
Home Office,Home Office,12/12/2022,INITIAL ACCOMMODATION,UKAP - Asylum & Protection,CALDER CONFERENCES LTD,1406676-465527-112824-686275,82353.00
Home Office,Home Office,12/12/2022,INITIAL ACCOMMODATION,UKAP - Asylum & Protection,CALDER CONFERENCES LTD,1406676-465880-112824-24357,29228.40
Home Office,Home Office,12/12/2022,INITIAL ACCOMMODATION,UKAP - Asylum & Protection,CALDER CONFERENCES LTD,1406676-465878-112824-290764,34891.68
Home Office,Home Office,12/12/2022,INITIAL ACCOMMODATION,UKAP - Asylum & Protection,CALDER CONFERENCES LTD,1406676-465881-112824-3335861,40030.32
Home Office,Home Office,12/12/2022,INITIAL ACCOMMODATION,UKAP - Asylum & Protection,CALDER CONFERENCES LTD,1406676-465879-112824-461895,55427.40
Home Office,Home Office,12/12/2022,INITIAL ACCOMMODATION,UKAP - Asylum & Protection,CALDER CONFERENCES LTD,1406676-465882-112824-7275067,87300.80
Home Office,Home Office,12/12/2022,CONT OUT SERV OTHER,UKAP - Asylum & Protection,TRIPOD PARTNERS LTD,1771067-TRI297961-54980-3968428,47621.14
Home Office,Home Office,12/12/2022,CONT OUT SERV OTHER,UKAP - Asylum & Protection,TRIPOD PARTNERS LTD,1771067-TRI298718-54980-4110066,49320.79
Home Office,Home Office,12/12/2022,CONT OUT SERV OTHER,UKAP - Asylum & Protection,TRIPOD PARTNERS LTD,1771067-TRI300297-54980-4653977,55847.72
Home Office,Home Office,12/12/2022,CONT OUT SERV OTHER,UKAP - Asylum & Protection,TRIPOD PARTNERS LTD,1771067-TRI302638-54980-5769937,69239.24
Home Office,Home Office,12/12/2022,CONT OUT SERV OTHER,UKAP - Asylum & Protection,TRIPOD PARTNERS LTD,1771067-TRI303432-54980-5514701,66176.41
Home Office,Home Office,13/12/2022,INITIAL ACCOMMODATION,UKAP - Asylum & Protection,CALDER CONFERENCES LTD,1406676-464871-112824-1347476,161697.12
Home Office,Home Office,13/12/2022,INITIAL ACCOMMODATION,UKAP - Asylum & Protection,CALDER CONFERENCES LTD,1406676-465529-112824-7707717,92492.60
Home Office,Home Office,13/12/2022,CONT OUT SERV OTHER,UKAP - Asylum & Protection,CORPORATE TRAVEL MANAGEMENT (NORTH),1406668-3128462-245986-85505,85505.00
Home Office,Home Office,13/12/2022,CONT OUT SERV OTHER,UKAP - Asylum & Protection,CORPORATE TRAVEL MANAGEMENT (NORTH),1406668-3128465-245986-126425,126425.00
Home Office,Home Office,13/12/2022,CONT OUT SERV OTHER,UKAP - Asylum & Protection,CORPORATE TRAVEL MANAGEMENT (NORTH),1406668-3128479-245986-150400,150400.00
Home Office,Home Office,13/12/2022,CASH SUPPORT,UKAP - Asylum & Protection,PREPAID FINANCIAL SERVICES,1421031-420-55118-560000,560000.00
Home Office,Home Office,13/12/2022,SECTION 4 VOUCHERS,UKAP - Asylum & Protection,PREPAID FINANCIAL SERVICES,1421031-419-55118-1360000,1360000.00
Home Office,Home Office,13/12/2022,CASH SUPPORT,UKAP - Asylum & Protection,PREPAID FINANCIAL SERVICES,1421031-418-55118-14080000,14080000.00
Home Office,Home Office,15/12/2022,TRANSLATOR,UKAP - Asylum & Protection,BIG WORD INTERPRETING SERVICES LTD (THE),1406402-701001-105469-6775568,67755.68
Home Office,Home Office,15/12/2022,RUN COST DEVICE PFI,UKAP - Asylum & Protection,CABINET OFFICE,1406413-3821535-113009-8997123,89971.23
Home Office,Home Office,15/12/2022,CONT OUT SERV OTHER,UKAP - Asylum & Protection,COMMERCIAL SERVICES KENT LTD,1771067-7100199763-56886-56597425,679169.10
Home Office,Home Office,15/12/2022,CONT OUT SERV OTHER,UKAP - Asylum & Protection,COMMERCIAL SERVICES KENT LTD,1771067-7100200401-56886-52971966,635663.59
Home Office,Home Office,15/12/2022,CONT OUT SERV OTHER,UKAP - Asylum & Protection,SANCTUARY PERSONNEL LTD,1771067-INV00709446-541862-3189019,31890.19
Home Office,Home Office,16/12/2022,CONTINGENT LABOUR OTHER,UKAP - Asylum & Protection,ALEXANDER MANN SOLUTIONS LIMITED,1771067-2705162-560478-220298,2643.58
Home Office,Home Office,16/12/2022,FULL COST,UKAP - Asylum & Protection,BROOK STREET (UK) LTD,1406668-30178143-22-100385-2347625,28171.52
Home Office,Home Office,16/12/2022,FULL COST,UKAP - Asylum & Protection,BROOK STREET (UK) LTD,1406677-30178143-22-100385-59755,717.06
Home Office,Home Office,16/12/2022,FULL COST,UKAP - Asylum & Protection,BROOK STREET (UK) LTD,1407004-30178143-22-100385-178584,2143.01
Home Office,Home Office,16/12/2022,FULL COST,UKAP - Asylum & Protection,BROOK STREET (UK) LTD,1407010-30178143-22-100385-764176,9170.11
Home Office,Home Office,16/12/2022,FULL COST,UKAP - Asylum & Protection,BROOK STREET (UK) LTD,1417905-30178143-22-100385-3290324,39483.87
Home Office,Home Office,16/12/2022,FULL COST,UKAP - Asylum & Protection,BROOK STREET (UK) LTD,1417918-30178143-22-100385-59385,712.62
Home Office,Home Office,16/12/2022,FULL COST,UKAP - Asylum & Protection,BROOK STREET (UK) LTD,1421031-30178143-22-100385-442678,5312.13
Home Office,Home Office,16/12/2022,FULL COST,UKAP - Asylum & Protection,BROOK STREET (UK) LTD,1470031-30178143-22-100385-218613,2623.35
Home Office,Home Office,16/12/2022,FULL COST,UKAP - Asylum & Protection,BROOK STREET (UK) LTD,1771031-30178143-22-100385-94694,1136.32
Home Office,Home Office,16/12/2022,FULL COST,UKAP - Asylum & Protection,BROOK STREET (UK) LTD,1771059-30178143-22-100385-75485,905.82
Home Office,Home Office,16/12/2022,FULL COST,UKAP - Asylum & Protection,BROOK STREET (UK) LTD,1771068-30178143-22-100385-849485,10193.81
Home Office,Home Office,16/12/2022,FULL COST,UKAP - Asylum & Protection,BROOK STREET (UK) LTD,1406033-30178143-22-100385-1167562,14010.77
Home Office,Home Office,16/12/2022,FULL COST,UKAP - Asylum & Protection,BROOK STREET (UK) LTD,1406041-30178143-22-100385-183621,2203.45
Home Office,Home Office,16/12/2022,FULL COST,UKAP - Asylum & Protection,BROOK STREET (UK) LTD,1406066-30178143-22-100385-1236058,14832.69
Home Office,Home Office,16/12/2022,FULL COST,UKAP - Asylum & Protection,BROOK STREET (UK) LTD,1406163-30178143-22-100385-94696,11363.54
Home Office,Home Office,16/12/2022,FULL COST,UKAP - Asylum & Protection,BROOK STREET (UK) LTD,1406165-30178143-22-100385-26748,3209.76
Home Office,Home Office,16/12/2022,FULL COST,UKAP - Asylum & Protection,BROOK STREET (UK) LTD,1406402-30178143-22-100385-17882054,214584.70
Home Office,Home Office,16/12/2022,FULL COST,UKAP - Asylum & Protection,BROOK STREET (UK) LTD,1406404-30178143-22-100385-174945,2099.34
Home Office,Home Office,16/12/2022,FULL COST,UKAP - Asylum & Protection,BROOK STREET (UK) LTD,1406408-30178143-22-100385-109523,1314.28
Home Office,Home Office,16/12/2022,FULL COST,UKAP - Asylum & Protection,BROOK STREET (UK) LTD,1406413-30178143-22-100385-269426,3233.11
Home Office,Home Office,16/12/2022,FULL COST,UKAP - Asylum & Protection,BROOK STREET (UK) LTD,1406415-30178143-22-100385-18814249,225771.02
Home Office,Home Office,16/12/2022,FULL COST,UKAP - Asylum & Protection,BROOK STREET (UK) LTD,1407011-30178143-22-100385-91379,1096.55
Home Office,Home Office,16/12/2022,FULL COST,UKAP - Asylum & Protection,BROOK STREET (UK) LTD,1417008-30178143-22-100385-4733523,56802.22
Home Office,Home Office,16/12/2022,FULL COST,UKAP - Asylum & Protection,BROOK STREET (UK) LTD,1417940-30178143-22-100385-142979,1715.75
Home Office,Home Office,16/12/2022,FULL COST,UKAP - Asylum & Protection,BROOK STREET (UK) LTD,1417941-30178143-22-100385-1852072,22224.84
Home Office,Home Office,16/12/2022,FULL COST,UKAP - Asylum & Protection,BROOK STREET (UK) LTD,1417943-30178143-22-100385-232171,2786.05
Home Office,Home Office,16/12/2022,FULL COST,UKAP - Asylum & Protection,BROOK STREET (UK) LTD,1421422-30178143-22-100385-59385,712.62
Home Office,Home Office,16/12/2022,INITIAL ACCOMMODATION,UKAP - Asylum & Protection,CALDER CONFERENCES LTD,1406668-465849-112824-21340,25608.00
Home Office,Home Office,16/12/2022,INITIAL ACCOMMODATION,UKAP - Asylum & Protection,CALDER CONFERENCES LTD,1406668-465872-112824-2253225,27038.70
Home Office,Home Office,16/12/2022,INITIAL ACCOMMODATION,UKAP - Asylum & Protection,CALDER CONFERENCES LTD,1406668-465852-112824-2354275,28251.30
Home Office,Home Office,16/12/2022,INITIAL ACCOMMODATION,UKAP - Asylum & Protection,CALDER CONFERENCES LTD,1406668-465855-112824-26285,31542.00
Home Office,Home Office,16/12/2022,INITIAL ACCOMMODATION,UKAP - Asylum & Protection,CALDER CONFERENCES LTD,1406668-465844-112824-2749417,32993.00
Home Office,Home Office,16/12/2022,INITIAL ACCOMMODATION,UKAP - Asylum & Protection,CALDER CONFERENCES LTD,1406668-465864-112824-2783001,33396.00
Home Office,Home Office,16/12/2022,INITIAL ACCOMMODATION,UKAP - Asylum & Protection,CALDER CONFERENCES LTD,1406668-465870-112824-28434,34120.80
Home Office,Home Office,16/12/2022,INITIAL ACCOMMODATION,UKAP - Asylum & Protection,CALDER CONFERENCES LTD,1406668-465876-112824-290044,34805.28
Home Office,Home Office,16/12/2022,INITIAL ACCOMMODATION,UKAP - Asylum & Protection,CALDER CONFERENCES LTD,1406668-465850-112824-29736,35683.20
Home Office,Home Office,16/12/2022,INITIAL ACCOMMODATION,UKAP - Asylum & Protection,CALDER CONFERENCES LTD,1406668-465859-112824-3192466,38309.60
Home Office,Home Office,16/12/2022,INITIAL ACCOMMODATION,UKAP - Asylum & Protection,CALDER CONFERENCES LTD,1406668-465838-112824-32070,38484.00
Home Office,Home Office,16/12/2022,INITIAL ACCOMMODATION,UKAP - Asylum & Protection,CALDER CONFERENCES LTD,1406668-465837-112824-3342333,40108.00
Home Office,Home Office,16/12/2022,INITIAL ACCOMMODATION,UKAP - Asylum & Protection,CALDER CONFERENCES LTD,1406668-465839-112824-3515683,42188.20
Home Office,Home Office,16/12/2022,INITIAL ACCOMMODATION,UKAP - Asylum & Protection,CALDER CONFERENCES LTD,1406668-465873-112824-36400,43680.00
Home Office,Home Office,16/12/2022,INITIAL ACCOMMODATION,UKAP - Asylum & Protection,CALDER CONFERENCES LTD,1406668-465851-112824-368545,44225.40
Home Office,Home Office,16/12/2022,INITIAL ACCOMMODATION,UKAP - Asylum & Protection,CALDER CONFERENCES LTD,1406668-465860-112824-37400,44880.00
Home Office,Home Office,16/12/2022,INITIAL ACCOMMODATION,UKAP - Asylum & Protection,CALDER CONFERENCES LTD,1406668-465854-112824-3839329,46071.95
Home Office,Home Office,16/12/2022,INITIAL ACCOMMODATION,UKAP - Asylum & Protection,CALDER CONFERENCES LTD,1406668-465858-112824-4067917,48815.00
Home Office,Home Office,16/12/2022,INITIAL ACCOMMODATION,UKAP - Asylum & Protection,CALDER CONFERENCES LTD,1406668-465877-112824-4662533,55950.40
Home Office,Home Office,16/12/2022,INITIAL ACCOMMODATION,UKAP - Asylum & Protection,CALDER CONFERENCES LTD,1406668-465856-112824-5065567,60786.80
Home Office,Home Office,16/12/2022,INITIAL ACCOMMODATION,UKAP - Asylum & Protection,CALDER CONFERENCES LTD,1406668-465836-112824-50708,60849.60
Home Office,Home Office,16/12/2022,INITIAL ACCOMMODATION,UKAP - Asylum & Protection,CALDER CONFERENCES LTD,1406668-465845-112824-5349033,64188.40
Home Office,Home Office,16/12/2022,INITIAL ACCOMMODATION,UKAP - Asylum & Protection,CALDER CONFERENCES LTD,1406668-465868-112824-557655,66918.60
Home Office,Home Office,16/12/2022,INITIAL ACCOMMODATION,UKAP - Asylum & Protection,CALDER CONFERENCES LTD,1406668-465840-112824-5897455,70104.46
Home Office,Home Office,16/12/2022,INITIAL ACCOMMODATION,UKAP - Asylum & Protection,CALDER CONFERENCES LTD,1406668-465846-112824-6157386,73888.64
Home Office,Home Office,16/12/2022,INITIAL ACCOMMODATION,UKAP - Asylum & Protection,CALDER CONFERENCES LTD,1406668-465871-112824-6904467,82853.60
Home Office,Home Office,16/12/2022,INITIAL ACCOMMODATION,UKAP - Asylum & Protection,CALDER CONFERENCES LTD,1406668-465863-112824-778375,93405.00
Home Office,Home Office,16/12/2022,INITIAL ACCOMMODATION,UKAP - Asylum & Protection,CALDER CONFERENCES LTD,1406668-465862-112824-135010,162012.00
Home Office,Home Office,16/12/2022,INITIAL ACCOMMODATION,UKAP - Asylum & Protection,CALDER CONFERENCES LTD,1406668-465867-112824-620100,744120.00
Home Office,Home Office,16/12/2022,CONTRACT OUT SERVICE,UKAP - Asylum & Protection,PREPAID FINANCIAL SERVICES,1421031-76289-55118-2110035,253204.20
Home Office,Home Office,16/12/2022,CONT OUT SERV OTHER,UKAP - Asylum & Protection,TRIPOD PARTNERS LTD,1406402-TRI304239-54980-3608393,36083.93
Home Office,Home Office,19/12/2022,INITIAL ACCOMMODATION,UKAP - Asylum & Protection,CALDER CONFERENCES LTD,1406676-458171-112824-698735,83848.20
Home Office,Home Office,19/12/2022,INITIAL ACCOMMODATION,UKAP - Asylum & Protection,CALDER CONFERENCES LTD,1406676-466409-112824-2527992,30335.90
Home Office,Home Office,19/12/2022,INITIAL ACCOMMODATION,UKAP - Asylum & Protection,CALDER CONFERENCES LTD,1406676-466410-112824-46277,55532.40
Home Office,Home Office,19/12/2022,INITIAL ACCOMMODATION,UKAP - Asylum & Protection,CALDER CONFERENCES LTD,1406676-466405-112824-693505,83220.60
Home Office,Home Office,19/12/2022,INITIAL ACCOMMODATION,UKAP - Asylum & Protection,CALDER CONFERENCES LTD,1406676-466407-112824-7424333,89092.00
Home Office,Home Office,19/12/2022,INITIAL ACCOMMODATION,UKAP - Asylum & Protection,CALDER CONFERENCES LTD,1406676-466404-112824-13223674,158684.08
Home Office,Home Office,20/12/2022,SYSTEM CLEARING,UKAP - Asylum & Protection,BJSS LIMITED,1771059-INV-UK022595-508104-212625,21262.50
Home Office,Home Office,20/12/2022,SYSTEM CLEARING,UKAP - Asylum & Protection,BJSS LIMITED,1771059-INV-UK022594-508104-220625,22062.50
Home Office,Home Office,20/12/2022,INTERGRATION LOAN SCHEME,UKAP - Asylum & Protection,DEPARTMENT FOR WORK & PENSIONS (DWP),1406668-1110-30-148757-88160,88160.00
Home Office,Home Office,20/12/2022,EXTERNAL,UKAP - Asylum & Protection,ERNST AND YOUNG LLP,1417922-GB01G000369500-113852-23750688,237506.88
Home Office,Home Office,20/12/2022,SECURITY GUARDS,UKAP - Asylum & Protection,MITIE FM LTD,1406668-327652/92662552-56317-435738335,4357383.35
Home Office,Home Office,21/12/2022,TRANSLATOR,UKAP - Asylum & Protection,BIG WORD INTERPRETING SERVICES LTD (THE),1406402-703701-105469-11067845,110678.45
Home Office,Home Office,21/12/2022,TRANSLATOR,UKAP - Asylum & Protection,BIG WORD INTERPRETING SERVICES LTD (THE),1406402-706084-105469-13998697,139986.97
Home Office,Home Office,21/12/2022,TRANSLATOR,UKAP - Asylum & Protection,BIG WORD INTERPRETING SERVICES LTD (THE),1406402-708740-105469-10243993,102439.93
Home Office,Home Office,21/12/2022,TRANSLATOR,UKAP - Asylum & Protection,BIG WORD INTERPRETING SERVICES LTD (THE),1406402-711647-105469-1065253,106525.30
Home Office,Home Office,21/12/2022,CONT OUT SERV OTHER,UKAP - Asylum & Protection,TRIPOD PARTNERS LTD,1406402-TRI304974-54980-3157514,31575.14
Home Office,Home Office,22/12/2022,INITIAL ACCOMMODATION,UKAP - Asylum & Protection,CALDER CONFERENCES LTD,1406668-466673-112824-2234975,26819.70
Home Office,Home Office,22/12/2022,INITIAL ACCOMMODATION,UKAP - Asylum & Protection,CALDER CONFERENCES LTD,1406668-466687-112824-23660,28392.00
Home Office,Home Office,22/12/2022,INITIAL ACCOMMODATION,UKAP - Asylum & Protection,CALDER CONFERENCES LTD,1406668-466684-112824-23730,28476.00
Home Office,Home Office,22/12/2022,INITIAL ACCOMMODATION,UKAP - Asylum & Protection,CALDER CONFERENCES LTD,1406668-466662-112824-2641433,31697.20
Home Office,Home Office,22/12/2022,INITIAL ACCOMMODATION,UKAP - Asylum & Protection,CALDER CONFERENCES LTD,1406668-466678-112824-27594,33112.80
Home Office,Home Office,22/12/2022,INITIAL ACCOMMODATION,UKAP - Asylum & Protection,CALDER CONFERENCES LTD,1406668-466663-112824-28452,34142.40
Home Office,Home Office,22/12/2022,INITIAL ACCOMMODATION,UKAP - Asylum & Protection,CALDER CONFERENCES LTD,1406668-466650-112824-3064666,36776.00
Home Office,Home Office,22/12/2022,INITIAL ACCOMMODATION,UKAP - Asylum & Protection,CALDER CONFERENCES LTD,1406668-466688-112824-3099938,37199.25
Home Office,Home Office,22/12/2022,INITIAL ACCOMMODATION,UKAP - Asylum & Protection,CALDER CONFERENCES LTD,1406668-466647-112824-31920,38304.00
Home Office,Home Office,22/12/2022,INITIAL ACCOMMODATION,UKAP - Asylum & Protection,CALDER CONFERENCES LTD,1406668-466670-112824-33435,40122.00
Home Office,Home Office,22/12/2022,INITIAL ACCOMMODATION,UKAP - Asylum & Protection,CALDER CONFERENCES LTD,1406668-466652-112824-34363,41235.60
Home Office,Home Office,22/12/2022,INITIAL ACCOMMODATION,UKAP - Asylum & Protection,CALDER CONFERENCES LTD,1406668-466664-112824-37260,44712.00
Home Office,Home Office,22/12/2022,INITIAL ACCOMMODATION,UKAP - Asylum & Protection,CALDER CONFERENCES LTD,1406668-466669-112824-3746173,44954.07
Home Office,Home Office,22/12/2022,INITIAL ACCOMMODATION,UKAP - Asylum & Protection,CALDER CONFERENCES LTD,1406668-466653-112824-41265,49518.00
Home Office,Home Office,22/12/2022,INITIAL ACCOMMODATION,UKAP - Asylum & Protection,CALDER CONFERENCES LTD,1406668-466668-112824-41680,50016.00
Home Office,Home Office,22/12/2022,INITIAL ACCOMMODATION,UKAP - Asylum & Protection,CALDER CONFERENCES LTD,1406668-466651-112824-4488467,53861.60
Home Office,Home Office,22/12/2022,INITIAL ACCOMMODATION,UKAP - Asylum & Protection,CALDER CONFERENCES LTD,1406668-466665-112824-4813725,57764.70
Home Office,Home Office,22/12/2022,INITIAL ACCOMMODATION,UKAP - Asylum & Protection,CALDER CONFERENCES LTD,1406668-466675-112824-4969558,59634.70
Home Office,Home Office,22/12/2022,INITIAL ACCOMMODATION,UKAP - Asylum & Protection,CALDER CONFERENCES LTD,1406668-466657-112824-5350517,64206.20
Home Office,Home Office,22/12/2022,INITIAL ACCOMMODATION,UKAP - Asylum & Protection,CALDER CONFERENCES LTD,1406668-466654-112824-537667,64520.04
Home Office,Home Office,22/12/2022,INITIAL ACCOMMODATION,UKAP - Asylum & Protection,CALDER CONFERENCES LTD,1406668-466659-112824-54408,65289.60
Home Office,Home Office,22/12/2022,INITIAL ACCOMMODATION,UKAP - Asylum & Protection,CALDER CONFERENCES LTD,1406668-466672-112824-5563217,66758.60
Home Office,Home Office,22/12/2022,INITIAL ACCOMMODATION,UKAP - Asylum & Protection,CALDER CONFERENCES LTD,1406668-466685-112824-5905375,70199.50
Home Office,Home Office,22/12/2022,INITIAL ACCOMMODATION,UKAP - Asylum & Protection,CALDER CONFERENCES LTD,1406668-466671-112824-6150637,73807.65
Home Office,Home Office,22/12/2022,INITIAL ACCOMMODATION,UKAP - Asylum & Protection,CALDER CONFERENCES LTD,1406668-466680-112824-6511983,78143.80
Home Office,Home Office,22/12/2022,INITIAL ACCOMMODATION,UKAP - Asylum & Protection,CALDER CONFERENCES LTD,1406668-466674-112824-7044267,84531.20
Home Office,Home Office,22/12/2022,INITIAL ACCOMMODATION,UKAP - Asylum & Protection,CALDER CONFERENCES LTD,1406668-466661-112824-70948,85137.60
Home Office,Home Office,22/12/2022,INITIAL ACCOMMODATION,UKAP - Asylum & Protection,CALDER CONFERENCES LTD,1406668-466649-112824-82425,98910.00
Home Office,Home Office,22/12/2022,INITIAL ACCOMMODATION,UKAP - Asylum & Protection,CALDER CONFERENCES LTD,1406668-466677-112824-10239583,122875.00
Home Office,Home Office,22/12/2022,INITIAL ACCOMMODATION,UKAP - Asylum & Protection,CALDER CONFERENCES LTD,1406668-466689-112824-104625,125550.00
Home Office,Home Office,22/12/2022,INITIAL ACCOMMODATION,UKAP - Asylum & Protection,CALDER CONFERENCES LTD,1406668-466655-112824-3133452,3760142.40
Home Office,Home Office,22/12/2022,CONT OUT SERV OTHER,UKAP - Asylum & Protection,TRIPOD PARTNERS LTD,1771067-TRI304207-54980-4378148,52537.78
Home Office,Home Office,22/12/2022,CONT OUT SERV OTHER,UKAP - Asylum & Protection,TRIPOD PARTNERS LTD,1771067-TRI304946-54980-4693355,56320.26
Home Office,Home Office,23/12/2022,FULL COST,UKAP - Asylum & Protection,BROOK STREET (UK) LTD,1406668-30190871-22-100385-2504996,30059.97
Home Office,Home Office,23/12/2022,FULL COST,UKAP - Asylum & Protection,BROOK STREET (UK) LTD,1406677-30190871-22-100385-59755,717.06
Home Office,Home Office,23/12/2022,FULL COST,UKAP - Asylum & Protection,BROOK STREET (UK) LTD,1407004-30190871-22-100385-1746,2095.20
Home Office,Home Office,23/12/2022,FULL COST,UKAP - Asylum & Protection,BROOK STREET (UK) LTD,1407010-30190871-22-100385-804937,9659.25
Home Office,Home Office,23/12/2022,FULL COST,UKAP - Asylum & Protection,BROOK STREET (UK) LTD,1417905-30190871-22-100385-3201384,38416.58
Home Office,Home Office,23/12/2022,FULL COST,UKAP - Asylum & Protection,BROOK STREET (UK) LTD,1417918-30190871-22-100385-59385,712.62
Home Office,Home Office,23/12/2022,FULL COST,UKAP - Asylum & Protection,BROOK STREET (UK) LTD,1421031-30190871-22-100385-354562,4254.74
Home Office,Home Office,23/12/2022,FULL COST,UKAP - Asylum & Protection,BROOK STREET (UK) LTD,1470031-30190871-22-100385-239403,2872.83
Home Office,Home Office,23/12/2022,FULL COST,UKAP - Asylum & Protection,BROOK STREET (UK) LTD,1771031-30190871-22-100385-178155,2137.86
Home Office,Home Office,23/12/2022,FULL COST,UKAP - Asylum & Protection,BROOK STREET (UK) LTD,1771059-30190871-22-100385-75485,905.82
Home Office,Home Office,23/12/2022,FULL COST,UKAP - Asylum & Protection,BROOK STREET (UK) LTD,1771068-30190871-22-100385-969393,11632.70
Home Office,Home Office,23/12/2022,FULL COST,UKAP - Asylum & Protection,BROOK STREET (UK) LTD,1406033-30190871-22-100385-1053601,12643.23
Home Office,Home Office,23/12/2022,FULL COST,UKAP - Asylum & Protection,BROOK STREET (UK) LTD,1406041-30190871-22-100385-16692,2003.04
Home Office,Home Office,23/12/2022,FULL COST,UKAP - Asylum & Protection,BROOK STREET (UK) LTD,1406066-30190871-22-100385-1194557,14334.67
Home Office,Home Office,23/12/2022,FULL COST,UKAP - Asylum & Protection,BROOK STREET (UK) LTD,1406163-30190871-22-100385-989497,11873.98
Home Office,Home Office,23/12/2022,FULL COST,UKAP - Asylum & Protection,BROOK STREET (UK) LTD,1406165-30190871-22-100385-290632,3487.58
Home Office,Home Office,23/12/2022,FULL COST,UKAP - Asylum & Protection,BROOK STREET (UK) LTD,1406402-30190871-22-100385-17205901,206470.90
Home Office,Home Office,23/12/2022,FULL COST,UKAP - Asylum & Protection,BROOK STREET (UK) LTD,1406404-30190871-22-100385-174945,2099.34
Home Office,Home Office,23/12/2022,FULL COST,UKAP - Asylum & Protection,BROOK STREET (UK) LTD,1406408-30190871-22-100385-61259,735.11
Home Office,Home Office,23/12/2022,FULL COST,UKAP - Asylum & Protection,BROOK STREET (UK) LTD,1406413-30190871-22-100385-288311,3459.73
Home Office,Home Office,23/12/2022,FULL COST,UKAP - Asylum & Protection,BROOK STREET (UK) LTD,1406415-30190871-22-100385-18685345,224224.16
Home Office,Home Office,23/12/2022,FULL COST,UKAP - Asylum & Protection,BROOK STREET (UK) LTD,1407011-30190871-22-100385-10082,1209.84
Home Office,Home Office,23/12/2022,FULL COST,UKAP - Asylum & Protection,BROOK STREET (UK) LTD,1417008-30190871-22-100385-4533299,54399.53
Home Office,Home Office,23/12/2022,FULL COST,UKAP - Asylum & Protection,BROOK STREET (UK) LTD,1417940-30190871-22-100385-137357,1648.28
Home Office,Home Office,23/12/2022,FULL COST,UKAP - Asylum & Protection,BROOK STREET (UK) LTD,1417941-30190871-22-100385-2081444,24977.29
Home Office,Home Office,23/12/2022,FULL COST,UKAP - Asylum & Protection,BROOK STREET (UK) LTD,1417943-30190871-22-100385-186982,2243.78
Home Office,Home Office,23/12/2022,FULL COST,UKAP - Asylum & Protection,BROOK STREET (UK) LTD,1421422-30190871-22-100385-59385,712.62
Home Office,Home Office,23/12/2022,INITIAL ACCOMMODATION,UKAP - Asylum & Protection,CALDER CONFERENCES LTD,1406676-466406-112824-955500,1146600.00
Home Office,Home Office,23/12/2022,INITIAL ACCOMMODATION,UKAP - Asylum & Protection,CALDER CONFERENCES LTD,1406676-466403-112824-568375077,6820500.93
Home Office,Home Office,23/12/2022,INITIAL ACCOMMODATION,UKAP - Asylum & Protection,CALDER CONFERENCES LTD,1406676-466692-112824-22383,26859.60
Home Office,Home Office,23/12/2022,BASIC SALARY,UKAP - Asylum & Protection,HM REVENUE & CUSTOMS,1421031-18000041642022-187546-28056,33667.20
Home Office,Home Office,23/12/2022,CONT OUT SERV OTHER,UKAP - Asylum & Protection,SANCTUARY PERSONNEL LTD,1771067-INV00715076-541862-3973734,39737.34
Home Office,Home Office,29/12/2022,CONT OUT SERV OTHER,UKAP - Asylum & Protection,COMMERCIAL SERVICES KENT LTD,1771067-7100200988-56886-63223515,758682.18
Home Office,Home Office,30/12/2022,CONTINGENT LABOUR OTHER,UKAP - Asylum & Protection,ALEXANDER MANN SOLUTIONS LIMITED,1771067-2714359-560478-2021883,24262.61
Home Office,Home Office,30/12/2022,FULL COST,UKAP - Asylum & Protection,BROOK STREET (UK) LTD,1406668-30203681-22-100385-2013594,24163.14
Home Office,Home Office,30/12/2022,FULL COST,UKAP - Asylum & Protection,BROOK STREET (UK) LTD,1406677-30203681-22-100385-59755,717.06
Home Office,Home Office,30/12/2022,FULL COST,UKAP - Asylum & Protection,BROOK STREET (UK) LTD,1407004-30203681-22-100385-176606,2119.28
Home Office,Home Office,30/12/2022,FULL COST,UKAP - Asylum & Protection,BROOK STREET (UK) LTD,1407010-30203681-22-100385-688094,8257.13
Home Office,Home Office,30/12/2022,FULL COST,UKAP - Asylum & Protection,BROOK STREET (UK) LTD,1417905-30203681-22-100385-305481,36657.70
Home Office,Home Office,30/12/2022,FULL COST,UKAP - Asylum & Protection,BROOK STREET (UK) LTD,1417918-30203681-22-100385-59385,712.62
Home Office,Home Office,30/12/2022,FULL COST,UKAP - Asylum & Protection,BROOK STREET (UK) LTD,1421031-30203681-22-100385-295818,3549.81
Home Office,Home Office,30/12/2022,FULL COST,UKAP - Asylum & Protection,BROOK STREET (UK) LTD,1470031-30203681-22-100385-25814,3097.68
Home Office,Home Office,30/12/2022,FULL COST,UKAP - Asylum & Protection,BROOK STREET (UK) LTD,1771031-30203681-22-100385-14445,1733.40
Home Office,Home Office,30/12/2022,FULL COST,UKAP - Asylum & Protection,BROOK STREET (UK) LTD,1771059-30203681-22-100385-79174,950.09
Home Office,Home Office,30/12/2022,FULL COST,UKAP - Asylum & Protection,BROOK STREET (UK) LTD,1771068-30203681-22-100385-741594,8899.12
Home Office,Home Office,30/12/2022,FULL COST,UKAP - Asylum & Protection,BROOK STREET (UK) LTD,1406033-30203681-22-100385-997897,11974.77
Home Office,Home Office,30/12/2022,FULL COST,UKAP - Asylum & Protection,BROOK STREET (UK) LTD,1406041-30203681-22-100385-106732,1280.78
Home Office,Home Office,30/12/2022,FULL COST,UKAP - Asylum & Protection,BROOK STREET (UK) LTD,1406066-30203681-22-100385-104719,12566.26
Home Office,Home Office,30/12/2022,FULL COST,UKAP - Asylum & Protection,BROOK STREET (UK) LTD,1406163-30203681-22-100385-1073722,12884.71
Home Office,Home Office,30/12/2022,FULL COST,UKAP - Asylum & Protection,BROOK STREET (UK) LTD,1406165-30203681-22-100385-173362,2080.34
Home Office,Home Office,30/12/2022,FULL COST,UKAP - Asylum & Protection,BROOK STREET (UK) LTD,1406402-30203681-22-100385-16020981,192251.78
Home Office,Home Office,30/12/2022,FULL COST,UKAP - Asylum & Protection,BROOK STREET (UK) LTD,1406404-30203681-22-100385-14124,1694.88
Home Office,Home Office,30/12/2022,FULL COST,UKAP - Asylum & Protection,BROOK STREET (UK) LTD,1406408-30203681-22-100385-130567,1566.80
Home Office,Home Office,30/12/2022,FULL COST,UKAP - Asylum & Protection,BROOK STREET (UK) LTD,1406413-30203681-22-100385-256836,3082.03
Home Office,Home Office,30/12/2022,FULL COST,UKAP - Asylum & Protection,BROOK STREET (UK) LTD,1406415-30203681-22-100385-155317,186380.38
Home Office,Home Office,30/12/2022,FULL COST,UKAP - Asylum & Protection,BROOK STREET (UK) LTD,1407011-30203681-22-100385-98198,1178.38
Home Office,Home Office,30/12/2022,FULL COST,UKAP - Asylum & Protection,BROOK STREET (UK) LTD,1417008-30203681-22-100385-4276715,51320.54
Home Office,Home Office,30/12/2022,FULL COST,UKAP - Asylum & Protection,BROOK STREET (UK) LTD,1417940-30203681-22-100385-142364,1708.37
Home Office,Home Office,30/12/2022,FULL COST,UKAP - Asylum & Protection,BROOK STREET (UK) LTD,1417941-30203681-22-100385-1966026,23592.27
Home Office,Home Office,30/12/2022,FULL COST,UKAP - Asylum & Protection,BROOK STREET (UK) LTD,1417943-30203681-22-100385-23433,2811.96
Home Office,Home Office,30/12/2022,FULL COST,UKAP - Asylum & Protection,BROOK STREET (UK) LTD,1421422-30203681-22-100385-47347,568.16
Home Office,Home Office,30/12/2022,CONT OUT SERV OTHER,UKAP - Asylum & Protection,TRIPOD PARTNERS LTD,1771067-TRI305676-54980-6444429,77333.15
Home Office,Home Office,01/12/2022,CAR PARKING,UKBE - UK Borders & Enforcement,GATWICK AIRPORT LTD,1431770-4400065315-226967-115836,1390.03
Home Office,Home Office,01/12/2022,CAR PARKING,UKBE - UK Borders & Enforcement,GATWICK AIRPORT LTD,1431771-4400065315-226967-159964,1919.57
Home Office,Home Office,01/12/2022,CAR PARKING,UKBE - UK Borders & Enforcement,GATWICK AIRPORT LTD,1431861-4400065315-226967-71708,860.50
Home Office,Home Office,01/12/2022,CAR PARKING,UKBE - UK Borders & Enforcement,GATWICK AIRPORT LTD,1433618-4400065315-226967-16548,198.58
Home Office,Home Office,01/12/2022,CAR PARKING,UKBE - UK Borders & Enforcement,GATWICK AIRPORT LTD,1433566-4400065315-226967-5516,661.92
Home Office,Home Office,01/12/2022,CAR PARKING,UKBE - UK Borders & Enforcement,GATWICK AIRPORT LTD,1433567-4400065315-226967-5516,66.19
Home Office,Home Office,01/12/2022,CAR PARKING,UKBE - UK Borders & Enforcement,GATWICK AIRPORT LTD,1431663-4400065315-226967-3629528,43554.34
Home Office,Home Office,01/12/2022,CAR PARKING,UKBE - UK Borders & Enforcement,GATWICK AIRPORT LTD,1431668-4400065315-226967-2758,330.96
Home Office,Home Office,01/12/2022,CAR PARKING,UKBE - UK Borders & Enforcement,GATWICK AIRPORT LTD,1431884-4400065315-226967-187544,2250.53
Home Office,Home Office,01/12/2022,CAR PARKING,UKBE - UK Borders & Enforcement,GATWICK AIRPORT LTD,1433503-4400065315-226967-11032,132.38
Home Office,Home Office,01/12/2022,CAR PARKING,UKBE - UK Borders & Enforcement,GATWICK AIRPORT LTD,1418291-4400065315-226967-5516,66.19
Home Office,Home Office,01/12/2022,CAR PARKING,UKBE - UK Borders & Enforcement,GATWICK AIRPORT LTD,1431247-4400065315-226967-11032,132.38
Home Office,Home Office,01/12/2022,CAR PARKING,UKBE - UK Borders & Enforcement,GATWICK AIRPORT LTD,1418190-4400065315-226967-38612,463.34
Home Office,Home Office,01/12/2022,CAR PARKING,UKBE - UK Borders & Enforcement,GATWICK AIRPORT LTD,1418231-4400065315-226967-159964,1919.57
Home Office,Home Office,01/12/2022,LEGAL REPRESENTATION,UKBE - UK Borders & Enforcement,GOVERNMENT LEGAL DEPARTMENT,1431826-518804-113504-512767,6153.20
Home Office,Home Office,01/12/2022,LEGAL ADVICE,UKBE - UK Borders & Enforcement,GOVERNMENT LEGAL DEPARTMENT,1431826-518804-113504-302226,36267.12
Home Office,Home Office,01/12/2022,SYSTEM CLEARING,UKBE - UK Borders & Enforcement,MERSEYSIDE DOCKS & HARBOUR COMPANY (THE),1433051-900038025-200132-3783199,45398.39
Home Office,Home Office,01/12/2022,CURFEW & ELECTRONIC MONITORING,UKBE - UK Borders & Enforcement,MINISTRY OF JUSTICE,1418258-2253275-199603-3421902,41062.82
Home Office,Home Office,01/12/2022,SYSTEM CLEARING,UKBE - UK Borders & Enforcement,SERCO LTD,1418266-91881605-158586-11549159,138589.91
Home Office,Home Office,02/12/2022,CONTINGENT LABOUR OTHER,UKBE - UK Borders & Enforcement,BLOOM PROCUREMENT SERVICES LIMITED,1431397-SIN038501-518536-37635,45162.00
Home Office,Home Office,02/12/2022,FULL COST,UKBE - UK Borders & Enforcement,BROOK STREET (UK) LTD,1433544-30154712-22-100385-185614,2227.37
Home Office,Home Office,02/12/2022,FULL COST,UKBE - UK Borders & Enforcement,BROOK STREET (UK) LTD,1431711-30154712-22-100385-22022,2642.64
Home Office,Home Office,02/12/2022,FULL COST,UKBE - UK Borders & Enforcement,BROOK STREET (UK) LTD,1411457-30154712-22-100385-1410494,16925.97
Home Office,Home Office,02/12/2022,FULL COST,UKBE - UK Borders & Enforcement,BROOK STREET (UK) LTD,1418277-30154712-22-100385-831645,9979.74
Home Office,Home Office,02/12/2022,FULL COST,UKBE - UK Borders & Enforcement,BROOK STREET (UK) LTD,1433599-30154712-22-100385-94245,1130.94
Home Office,Home Office,02/12/2022,FULL COST,UKBE - UK Borders & Enforcement,BROOK STREET (UK) LTD,1470006-30154712-22-100385-77626,931.51
Home Office,Home Office,02/12/2022,FULL COST,UKBE - UK Borders & Enforcement,BROOK STREET (UK) LTD,1433548-30154712-22-100385-82657,991.88
Home Office,Home Office,02/12/2022,FULL COST,UKBE - UK Borders & Enforcement,BROOK STREET (UK) LTD,1418298-30154712-22-100385-256292,3075.50
Home Office,Home Office,02/12/2022,FULL COST,UKBE - UK Borders & Enforcement,BROOK STREET (UK) LTD,1418194-30154712-22-100385-280875,3370.50
Home Office,Home Office,02/12/2022,FULL COST,UKBE - UK Borders & Enforcement,BROOK STREET (UK) LTD,1417102-30154712-22-100385-561564,6738.77
Home Office,Home Office,02/12/2022,FULL COST,UKBE - UK Borders & Enforcement,BROOK STREET (UK) LTD,1417908-30154712-22-100385-60436,725.23
Home Office,Home Office,02/12/2022,RECRUITMENT ADVERTISING,UKBE - UK Borders & Enforcement,CABINET OFFICE,1418260-3823911-113009-2351233,23512.33
Home Office,Home Office,02/12/2022,ASYLUM CASES,UKBE - UK Borders & Enforcement,CWT UK GROUP LTD,1417122-R7065072221130-112726-4155958,41559.58
Home Office,Home Office,02/12/2022,ASYLUM CASES,UKBE - UK Borders & Enforcement,CWT UK GROUP LTD,1417122-R7065072221201-112726-3029857,30298.57
Home Office,Home Office,02/12/2022,MAINTENANCE REACTIVE,UKBE - UK Borders & Enforcement,MINISTRY OF JUSTICE,1411457-2333698-199603-10650473,106504.73
Home Office,Home Office,02/12/2022,PROJECT,UKBE - UK Borders & Enforcement,MINISTRY OF JUSTICE,1411457-2333697-199603-12944085,155329.02
Home Office,Home Office,02/12/2022,PROJECT,UKBE - UK Borders & Enforcement,MOTT MACDONALD LTD,1411401-100525905-112809-25494,30592.80
Home Office,Home Office,05/12/2022,CONTINGENT LABOUR OTHER,UKBE - UK Borders & Enforcement,ALEXANDER MANN SOLUTIONS LIMITED,1411002-2695729-560478-3217685,38612.23
Home Office,Home Office,05/12/2022,CONTINGENT LABOUR OTHER,UKBE - UK Borders & Enforcement,ALEXANDER MANN SOLUTIONS LIMITED,1433609-2695729-560478-256635,3079.62
Home Office,Home Office,05/12/2022,CONTINGENT LABOUR OTHER,UKBE - UK Borders & Enforcement,ALEXANDER MANN SOLUTIONS LIMITED,1418258-2695729-560478-21422,2570.64
Home Office,Home Office,05/12/2022,CONTINGENT LABOUR OTHER,UKBE - UK Borders & Enforcement,ALEXANDER MANN SOLUTIONS LIMITED,1418277-2695729-560478-10501,12601.20
Home Office,Home Office,05/12/2022,CONTINGENT LABOUR OTHER,UKBE - UK Borders & Enforcement,ALEXANDER MANN SOLUTIONS LIMITED,1433420-2695729-560478-513858,6166.30
Home Office,Home Office,05/12/2022,CONTINGENT LABOUR OTHER,UKBE - UK Borders & Enforcement,ALEXANDER MANN SOLUTIONS LIMITED,1431070-2695729-560478-2349939,28199.26
Home Office,Home Office,05/12/2022,IT RUN COST,UKBE - UK Borders & Enforcement,IBM UNITED KINGDOM LTD,1433424-5811222042-101457-61968,74361.60
Home Office,Home Office,05/12/2022,ELECTRICITY,UKBE - UK Borders & Enforcement,MINISTRY OF JUSTICE,1411457-2333702-199603-6634886,79618.63
Home Office,Home Office,05/12/2022,PROJECT,UKBE - UK Borders & Enforcement,MOTT MACDONALD LTD,1411453-100524224-112809-278056,33366.72
Home Office,Home Office,06/12/2022,IT RUN COST,UKBE - UK Borders & Enforcement,BLOOM PROCUREMENT SERVICES LIMITED,1431825-SIN038206-518536-213429,256114.80
Home Office,Home Office,06/12/2022,ASYLUM CASES,UKBE - UK Borders & Enforcement,CWT UK GROUP LTD,1417122-R7065072221202-112726-5743105,57431.05
Home Office,Home Office,06/12/2022,ASYLUM CASES,UKBE - UK Borders & Enforcement,CWT UK GROUP LTD,1417122-22-000-0057242-112726-7703342,77033.42
Home Office,Home Office,06/12/2022,ASYLUM CASES,UKBE - UK Borders & Enforcement,CWT UK GROUP LTD,1417122-R7065072221205-112726-8627867,86278.67
Home Office,Home Office,06/12/2022,IT RUN COST,UKBE - UK Borders & Enforcement,FUJITSU SERVICES LTD,1432008-1010003605-106173-450694,54083.28
Home Office,Home Office,06/12/2022,IT RUN COST,UKBE - UK Borders & Enforcement,FUJITSU SERVICES LTD,1431844-1010003571-106173-6719169,80630.03
Home Office,Home Office,06/12/2022,IT RUN COST,UKBE - UK Borders & Enforcement,IBM UNITED KINGDOM LTD,1432008-5811220653-101457-3631183,43574.20
Home Office,Home Office,06/12/2022,DEFENCE,UKBE - UK Borders & Enforcement,INTELLIGENT ENTERPRISE PRODUCTS LTD,1431829-SI-563-56413-200000,240000.00
Home Office,Home Office,06/12/2022,IT RUN COST,UKBE - UK Borders & Enforcement,MARLOWE CONSULTING LTD,1432008-912022-439582-85740,102888.00
Home Office,Home Office,06/12/2022,SERVICE REPAIR SPARES,UKBE - UK Borders & Enforcement,NUCTECH COMPANY LTD,1433606-NUC-SER-2022-0204-185777-40000,40000.00
Home Office,Home Office,06/12/2022,SERVICE REPAIR SPARES,UKBE - UK Borders & Enforcement,NUCTECH COMPANY LTD,1433606-NUC-SER-2022-0204(3)-185777-80000,80000.00
Home Office,Home Office,06/12/2022,IT RUN COST,UKBE - UK Borders & Enforcement,WE ARE SNOOK LTD,1432008-91466364-54458-21940,26328.00
Home Office,Home Office,06/12/2022,IT RUN COST,UKBE - UK Borders & Enforcement,WE ARE SNOOK LTD,1432008-91466934-54458-31000,37200.00
Home Office,Home Office,07/12/2022,ASYLUM CASES,UKBE - UK Borders & Enforcement,CWT UK GROUP LTD,1417122-R7065072221206-112726-7316363,73163.63
Home Office,Home Office,07/12/2022,IT RUN COST,UKBE - UK Borders & Enforcement,IBM UNITED KINGDOM LTD,1432008-5811220645-101457-5061379,60736.55
Home Office,Home Office,07/12/2022,IN COUNTRY ESCORT,UKBE - UK Borders & Enforcement,MITIE CARE & CUSTODY LTD,1433405-186797/92658597-243944-3170902,31709.02
Home Office,Home Office,07/12/2022,VOLUNTARY ASSISTED RETURNS,UKBE - UK Borders & Enforcement,PREPAID FINANCIAL SERVICES,1418194-417-55118-1000000,1000000.00
Home Office,Home Office,08/12/2022,VESSEL MAINTENANCE,UKBE - UK Borders & Enforcement,AEOLIAN OFFSHORE LTD,1411454-INV-0116-58438-107250,107250.00
Home Office,Home Office,08/12/2022,VESSEL MAINTENANCE,UKBE - UK Borders & Enforcement,AEOLIAN OFFSHORE LTD,1411454-INV-0117-58438-107250,107250.00
Home Office,Home Office,08/12/2022,VESSEL MAINTENANCE,UKBE - UK Borders & Enforcement,AEOLIAN OFFSHORE LTD,1411454-INV-0118-58438-107250,107250.00
Home Office,Home Office,08/12/2022,CAPITAL GRANTS TO CENTRAL GOVERNMENT,UKBE - UK Borders & Enforcement,ATOS IT SERVICES UK LTD,1418267-5584406976-108063-38710,46452.00
Home Office,Home Office,08/12/2022,SYSTEM CLEARING,UKBE - UK Borders & Enforcement,BARCODE WAREHOUSE LTD (THE),1411457-843838-527176-6418125,64181.25
Home Office,Home Office,08/12/2022,ASYLUM CASES,UKBE - UK Borders & Enforcement,CWT UK GROUP LTD,1417122-R7065072221207-112726-6895965,68959.65
Home Office,Home Office,08/12/2022,OTHER RECEIVABLES,UKBE - UK Borders & Enforcement,DHL SUPPLY CHAIN LTD,1431276-11540036-568378-22876835,274522.02
Home Office,Home Office,08/12/2022,IT RUN COST,UKBE - UK Borders & Enforcement,FUJITSU SERVICES LTD,1432008-1030005477-106173-15428465,185141.58
Home Office,Home Office,08/12/2022,CONTINGENT LABOUR OTHER,UKBE - UK Borders & Enforcement,MCGLAUGHLIN & HARVEY LTD,1411455-24918-50558-9298911,111586.93
Home Office,Home Office,08/12/2022,IT RUN COST,UKBE - UK Borders & Enforcement,METHODS  BUSINESS AND DIGITAL TECH LTD,1432008-SIN073154-119732-21692,26030.40
Home Office,Home Office,08/12/2022,IT RUN COST,UKBE - UK Borders & Enforcement,METHODS  BUSINESS AND DIGITAL TECH LTD,1432008-SIN073155-119732-35775,42930.00
Home Office,Home Office,08/12/2022,PROJECT,UKBE - UK Borders & Enforcement,MINISTRY OF JUSTICE,1411457-2333663-199603-4892634,58711.61
Home Office,Home Office,08/12/2022,SERVICE REPAIR SPARES,UKBE - UK Borders & Enforcement,NUVIA LTD,1433606-5466142-105749-3085548,30855.48
Home Office,Home Office,09/12/2022,IT RUN COST,UKBE - UK Borders & Enforcement,ACCENTURE (UK) LTD,1432008-3003585200-106767-8084063,97008.76
Home Office,Home Office,09/12/2022,CONTINGENT LABOUR OTHER,UKBE - UK Borders & Enforcement,ALEXANDER MANN SOLUTIONS LIMITED,1411002-2700542-560478-3121409,37456.91
Home Office,Home Office,09/12/2022,CONTINGENT LABOUR OTHER,UKBE - UK Borders & Enforcement,ALEXANDER MANN SOLUTIONS LIMITED,1433609-2700542-560478-256635,3079.62
Home Office,Home Office,09/12/2022,CONTINGENT LABOUR OTHER,UKBE - UK Borders & Enforcement,ALEXANDER MANN SOLUTIONS LIMITED,1418258-2700542-560478-21422,2570.64
Home Office,Home Office,09/12/2022,CONTINGENT LABOUR OTHER,UKBE - UK Borders & Enforcement,ALEXANDER MANN SOLUTIONS LIMITED,1433420-2700542-560478-256929,3083.15
Home Office,Home Office,09/12/2022,CONTINGENT LABOUR OTHER,UKBE - UK Borders & Enforcement,ALEXANDER MANN SOLUTIONS LIMITED,1431070-2700542-560478-803817,9645.80
Home Office,Home Office,09/12/2022,IT RUN COST,UKBE - UK Borders & Enforcement,ALEXANDER MANN SOLUTIONS LIMITED,1433424-2701604-560478-190000,190000.00
Home Office,Home Office,09/12/2022,IT RUN COST,UKBE - UK Borders & Enforcement,ALEXANDER MANN SOLUTIONS LIMITED,1433444-2701613-560478-312311,312311.00
Home Office,Home Office,09/12/2022,IT RUN COST,UKBE - UK Borders & Enforcement,BAE SYSTEMS APPLIED INTELLIGENCE LIMITED,1432008-1001050781-136604-2557089,30685.07
Home Office,Home Office,09/12/2022,IT RUN COST,UKBE - UK Borders & Enforcement,BAE SYSTEMS APPLIED INTELLIGENCE LIMITED,1432008-1001050977-136604-405000,486000.00
Home Office,Home Office,09/12/2022,IT RUN COST,UKBE - UK Borders & Enforcement,BAE SYSTEMS APPLIED INTELLIGENCE LIMITED,1432008-1001051546-136604-405000,486000.00
Home Office,Home Office,09/12/2022,DEFENCE,UKBE - UK Borders & Enforcement,BAE SYSTEMS CORDA,1431829-9400004104-513759-34076562,408918.74
Home Office,Home Office,09/12/2022,ASYLUM CASES,UKBE - UK Borders & Enforcement,CWT UK GROUP LTD,1417122-R7065072221208-112726-3769635,37696.35
Home Office,Home Office,09/12/2022,CURRENT GRANTS TO CENTRAL GOVERNMENT,UKBE - UK Borders & Enforcement,HM REVENUE & CUSTOMS,1433020-18000038372022-187546-49537,49537.00
Home Office,Home Office,09/12/2022,SYSTEM CLEARING,UKBE - UK Borders & Enforcement,MINISTRY OF DEFENCE,1431829-7715668-192639-29333333,293333.33
Home Office,Home Office,09/12/2022,RUN COSTS,UKBE - UK Borders & Enforcement,MITIE CARE & CUSTODY LTD,1411444-30118/92640022-243944-53900,53900.00
Home Office,Home Office,12/12/2022,FULL COST,UKBE - UK Borders & Enforcement,BROOK STREET (UK) LTD,1433544-30166256-22-100385-173881,2086.56
Home Office,Home Office,12/12/2022,FULL COST,UKBE - UK Borders & Enforcement,BROOK STREET (UK) LTD,1431711-30166256-22-100385-216216,2594.60
Home Office,Home Office,12/12/2022,FULL COST,UKBE - UK Borders & Enforcement,BROOK STREET (UK) LTD,1411457-30166256-22-100385-1775813,21309.81
Home Office,Home Office,12/12/2022,FULL COST,UKBE - UK Borders & Enforcement,BROOK STREET (UK) LTD,1418277-30166256-22-100385-1154632,13855.58
Home Office,Home Office,12/12/2022,FULL COST,UKBE - UK Borders & Enforcement,BROOK STREET (UK) LTD,1433599-30166256-22-100385-11529,1383.48
Home Office,Home Office,12/12/2022,FULL COST,UKBE - UK Borders & Enforcement,BROOK STREET (UK) LTD,1470006-30166256-22-100385-4668,560.16
Home Office,Home Office,12/12/2022,FULL COST,UKBE - UK Borders & Enforcement,BROOK STREET (UK) LTD,1433548-30166256-22-100385-11877,1425.24
Home Office,Home Office,12/12/2022,FULL COST,UKBE - UK Borders & Enforcement,BROOK STREET (UK) LTD,1418298-30166256-22-100385-231196,2774.35
Home Office,Home Office,12/12/2022,FULL COST,UKBE - UK Borders & Enforcement,BROOK STREET (UK) LTD,1418194-30166256-22-100385-207847,2494.16
Home Office,Home Office,12/12/2022,FULL COST,UKBE - UK Borders & Enforcement,BROOK STREET (UK) LTD,1417102-30166256-22-100385-642043,7704.52
Home Office,Home Office,12/12/2022,FULL COST,UKBE - UK Borders & Enforcement,BROOK STREET (UK) LTD,1417908-30166256-22-100385-69936,839.23
Home Office,Home Office,12/12/2022,VESSEL MAINTENANCE,UKBE - UK Borders & Enforcement,CWIND LTD,1411454-10246-56497-122250,122250.00
Home Office,Home Office,12/12/2022,VESSEL MAINTENANCE,UKBE - UK Borders & Enforcement,CWIND LTD,1411454-10243-56497-130500,130500.00
Home Office,Home Office,12/12/2022,PROJECT,UKBE - UK Borders & Enforcement,FAITHFUL AND GOULD,1411010-22050045-53010-231044,277252.80
Home Office,Home Office,12/12/2022,PROJECT,UKBE - UK Borders & Enforcement,INTERSERVE (FACILITIES MANAGEMENT) LTD,1433609-229920/92631595-100369-277322,33278.64
Home Office,Home Office,12/12/2022,PROJECT,UKBE - UK Borders & Enforcement,INTERSERVE (FACILITIES MANAGEMENT) LTD,1432008-229920/92631584-100369-2329281,27951.37
Home Office,Home Office,12/12/2022,ARIEL SURVEILLANCE,UKBE - UK Borders & Enforcement,TEKEVER LTD,1411454-161-53326-6541578,654157.80
Home Office,Home Office,13/12/2022,IT RUN COST,UKBE - UK Borders & Enforcement,CACI LTD,1432008-039094-149473-55785773,669429.28
Home Office,Home Office,13/12/2022,ASYLUM CASES,UKBE - UK Borders & Enforcement,CWT UK GROUP LTD,1417122-R7065072221209-112726-6610232,66102.32
Home Office,Home Office,13/12/2022,ASYLUM CASES,UKBE - UK Borders & Enforcement,CWT UK GROUP LTD,1417122-R7065072221212-112726-6501853,65018.53
Home Office,Home Office,13/12/2022,IT RUN COST,UKBE - UK Borders & Enforcement,IBM UNITED KINGDOM LTD,1433424-5811222041-101457-36649563,439794.76
Home Office,Home Office,13/12/2022,SYSTEM CLEARING,UKBE - UK Borders & Enforcement,ZAIZI LTD,1432031-INV-096838-348829-17685807,212229.68
Home Office,Home Office,14/12/2022,VOLUNTARY ASSISTED RETURNS,UKBE - UK Borders & Enforcement,PREPAID FINANCIAL SERVICES,1418165-416-55118-355140,355140.00
Home Office,Home Office,14/12/2022,VOLUNTARY ASSISTED RETURNS,UKBE - UK Borders & Enforcement,PREPAID FINANCIAL SERVICES,1418165-421-55118-500000,500000.00
Home Office,Home Office,14/12/2022,PROJECT,UKBE - UK Borders & Enforcement,SECURITY SERVICES GROUP,1433051-OP/I119078-113487-4077209,48926.51
Home Office,Home Office,15/12/2022,IT RUN COST,UKBE - UK Borders & Enforcement,6POINT6 LTD,1432008-3378-338678-126495,151794.00
Home Office,Home Office,15/12/2022,IT RUN COST,UKBE - UK Borders & Enforcement,6POINT6 LTD,1432008-3387-338678-239320,287184.00
Home Office,Home Office,15/12/2022,IT RUN COST,UKBE - UK Borders & Enforcement,BAE SYSTEMS APPLIED INTELLIGENCE LIMITED,1432008-1001050939-136604-84214832,1010577.98
Home Office,Home Office,15/12/2022,IT RUN COST,UKBE - UK Borders & Enforcement,BAE SYSTEMS APPLIED INTELLIGENCE LIMITED,1432008-1001051388-136604-84333364,1012000.37
Home Office,Home Office,15/12/2022,IT RUN COST,UKBE - UK Borders & Enforcement,BAE SYSTEMS APPLIED INTELLIGENCE LIMITED,1432008-1001051798-136604-8717042,1046045.04
Home Office,Home Office,15/12/2022,IT RUN COST,UKBE - UK Borders & Enforcement,CAPGEMINI UK PLC,1432008-2600110346074-112696-4964204,595704.47
Home Office,Home Office,15/12/2022,IT RUN COST,UKBE - UK Borders & Enforcement,CAPGEMINI UK PLC,1432008-2600110346066-112696-5000536,600064.33
Home Office,Home Office,15/12/2022,IT RUN COST,UKBE - UK Borders & Enforcement,FUJITSU SERVICES LTD,1432008-1030006167-106173-8222225,98666.70
Home Office,Home Office,15/12/2022,LEGAL REPRESENTATION,UKBE - UK Borders & Enforcement,GOVERNMENT LEGAL DEPARTMENT,1431826-519330-113504-3186016,38232.19
Home Office,Home Office,15/12/2022,LEGAL ADVICE,UKBE - UK Borders & Enforcement,GOVERNMENT LEGAL DEPARTMENT,1431826-519330-113504-4992068,59904.82
Home Office,Home Office,15/12/2022,IT RUN COST,UKBE - UK Borders & Enforcement,METHODS  BUSINESS AND DIGITAL TECH LTD,1432008-SIN073284-119732-21912,26294.40
Home Office,Home Office,15/12/2022,IT RUN COST,UKBE - UK Borders & Enforcement,METHODS  BUSINESS AND DIGITAL TECH LTD,1432008-SIN073282-119732-22616,27139.20
Home Office,Home Office,15/12/2022,IT RUN COST,UKBE - UK Borders & Enforcement,METHODS  BUSINESS AND DIGITAL TECH LTD,1432008-SIN073304-119732-45770,54924.00
Home Office,Home Office,16/12/2022,CONTINGENT LABOUR OTHER,UKBE - UK Borders & Enforcement,ALEXANDER MANN SOLUTIONS LIMITED,1411002-2705162-560478-297791,35734.92
Home Office,Home Office,16/12/2022,CONTINGENT LABOUR OTHER,UKBE - UK Borders & Enforcement,ALEXANDER MANN SOLUTIONS LIMITED,1433609-2705162-560478-153981,1847.77
Home Office,Home Office,16/12/2022,CONTINGENT LABOUR OTHER,UKBE - UK Borders & Enforcement,ALEXANDER MANN SOLUTIONS LIMITED,1418258-2705162-560478-21422,2570.64
Home Office,Home Office,16/12/2022,CONTINGENT LABOUR OTHER,UKBE - UK Borders & Enforcement,ALEXANDER MANN SOLUTIONS LIMITED,1418277-2705162-560478-472545,5670.54
Home Office,Home Office,16/12/2022,CONTINGENT LABOUR OTHER,UKBE - UK Borders & Enforcement,ALEXANDER MANN SOLUTIONS LIMITED,1433420-2705162-560478-256929,3083.15
Home Office,Home Office,16/12/2022,CONTINGENT LABOUR OTHER,UKBE - UK Borders & Enforcement,ALEXANDER MANN SOLUTIONS LIMITED,1431070-2705162-560478-819215,9830.58
Home Office,Home Office,16/12/2022,IT RUN COST,UKBE - UK Borders & Enforcement,ALEXANDER MANN SOLUTIONS LIMITED,1432008-2706162-560478-68688,82425.60
Home Office,Home Office,16/12/2022,CONTINGENT LABOUR OTHER,UKBE - UK Borders & Enforcement,BLOOM PROCUREMENT SERVICES LIMITED,1418236-SIN035481-518536-115015,138018.00
Home Office,Home Office,16/12/2022,FULL COST,UKBE - UK Borders & Enforcement,BROOK STREET (UK) LTD,1433544-30178143-22-100385-201135,2413.63
Home Office,Home Office,16/12/2022,FULL COST,UKBE - UK Borders & Enforcement,BROOK STREET (UK) LTD,1431711-30178143-22-100385-19019,2282.29
Home Office,Home Office,16/12/2022,FULL COST,UKBE - UK Borders & Enforcement,BROOK STREET (UK) LTD,1411457-30178143-22-100385-1672878,20074.56
Home Office,Home Office,16/12/2022,FULL COST,UKBE - UK Borders & Enforcement,BROOK STREET (UK) LTD,1418277-30178143-22-100385-1075484,12905.80
Home Office,Home Office,16/12/2022,FULL COST,UKBE - UK Borders & Enforcement,BROOK STREET (UK) LTD,1433599-30178143-22-100385-11529,1383.48
Home Office,Home Office,16/12/2022,FULL COST,UKBE - UK Borders & Enforcement,BROOK STREET (UK) LTD,1470006-30178143-22-100385-77626,931.51
Home Office,Home Office,16/12/2022,FULL COST,UKBE - UK Borders & Enforcement,BROOK STREET (UK) LTD,1433548-30178143-22-100385-11877,1425.24
Home Office,Home Office,16/12/2022,FULL COST,UKBE - UK Borders & Enforcement,BROOK STREET (UK) LTD,1418298-30178143-22-100385-218243,2618.91
Home Office,Home Office,16/12/2022,FULL COST,UKBE - UK Borders & Enforcement,BROOK STREET (UK) LTD,1418194-30178143-22-100385-261615,3139.38
Home Office,Home Office,16/12/2022,FULL COST,UKBE - UK Borders & Enforcement,BROOK STREET (UK) LTD,1411411-30178143-22-100385-69897,838.76
Home Office,Home Office,16/12/2022,FULL COST,UKBE - UK Borders & Enforcement,BROOK STREET (UK) LTD,1417102-30178143-22-100385-661424,7937.09
Home Office,Home Office,16/12/2022,FULL COST,UKBE - UK Borders & Enforcement,BROOK STREET (UK) LTD,1417908-30178143-22-100385-60436,725.23
Home Office,Home Office,16/12/2022,ASYLUM CASES,UKBE - UK Borders & Enforcement,CWT UK GROUP LTD,1417122-R7065072221215-112726-7808449,78084.49
Home Office,Home Office,16/12/2022,CONTINGENT LABOUR OTHER,UKBE - UK Borders & Enforcement,MCGLAUGHLIN & HARVEY LTD,1411455-25095-50558-1788282,214593.84
Home Office,Home Office,16/12/2022,IN COUNTRY ESCORT,UKBE - UK Borders & Enforcement,MITIE CARE & CUSTODY LTD,1411412-186797/92658593-243944-2861971,28619.71
Home Office,Home Office,16/12/2022,IN COUNTRY ESCORT,UKBE - UK Borders & Enforcement,MITIE CARE & CUSTODY LTD,1411412-186797/92657038-243944-4483507,44835.07
Home Office,Home Office,16/12/2022,IN COUNTRY ESCORT,UKBE - UK Borders & Enforcement,MITIE CARE & CUSTODY LTD,1411412-186797/92660048-243944-4510124,45101.24
Home Office,Home Office,16/12/2022,IN COUNTRY ESCORT,UKBE - UK Borders & Enforcement,MITIE CARE & CUSTODY LTD,1411412-186797/92657084-243944-5249151,52491.51
Home Office,Home Office,16/12/2022,IN COUNTRY ESCORT,UKBE - UK Borders & Enforcement,MITIE CARE & CUSTODY LTD,1411412-186797/92658602-243944-5667225,56672.25
Home Office,Home Office,16/12/2022,IN COUNTRY ESCORT,UKBE - UK Borders & Enforcement,MITIE CARE & CUSTODY LTD,1411412-186797/92662026-243944-7918484,79184.84
Home Office,Home Office,16/12/2022,IN COUNTRY ESCORT,UKBE - UK Borders & Enforcement,MITIE CARE & CUSTODY LTD,1411412-186797/92658590-243944-12960361,129603.61
Home Office,Home Office,16/12/2022,IN COUNTRY ESCORT,UKBE - UK Borders & Enforcement,MITIE CARE & CUSTODY LTD,1411412-186797/92658592-243944-14599065,145990.65
Home Office,Home Office,16/12/2022,IN COUNTRY ESCORT,UKBE - UK Borders & Enforcement,MITIE CARE & CUSTODY LTD,1411412-186797/92661981-243944-18901205,189012.05
Home Office,Home Office,16/12/2022,IN COUNTRY ESCORT,UKBE - UK Borders & Enforcement,MITIE CARE & CUSTODY LTD,1411412-186797/92662019-243944-36553661,365536.61
Home Office,Home Office,16/12/2022,IN COUNTRY ESCORT,UKBE - UK Borders & Enforcement,MITIE CARE & CUSTODY LTD,1411412-186797/92658588-243944-75335599,753355.99
Home Office,Home Office,16/12/2022,IN COUNTRY ESCORT,UKBE - UK Borders & Enforcement,MITIE CARE & CUSTODY LTD,1411412-186797/92658594-243944-99166842,991668.42
Home Office,Home Office,16/12/2022,IN COUNTRY ESCORT,UKBE - UK Borders & Enforcement,MITIE CARE & CUSTODY LTD,1411412-186797/92658591-243944-166636378,1666363.78
Home Office,Home Office,16/12/2022,OVERSEAS ESCORTS,UKBE - UK Borders & Enforcement,MITIE CARE & CUSTODY LTD,1411413-186797/92658598-243944-26201,26201.00
Home Office,Home Office,16/12/2022,OVERSEAS ESCORTS,UKBE - UK Borders & Enforcement,MITIE CARE & CUSTODY LTD,1411413-186797/92660115-243944-3864849,38648.49
Home Office,Home Office,16/12/2022,OVERSEAS ESCORTS,UKBE - UK Borders & Enforcement,MITIE CARE & CUSTODY LTD,1411413-186797/92657137-243944-4031071,40310.71
Home Office,Home Office,16/12/2022,OVERSEAS ESCORTS,UKBE - UK Borders & Enforcement,MITIE CARE & CUSTODY LTD,1411413-186797/92659924-243944-4458865,44588.65
Home Office,Home Office,16/12/2022,OVERSEAS ESCORTS,UKBE - UK Borders & Enforcement,MITIE CARE & CUSTODY LTD,1411413-186797/92660085-243944-534128,53412.80
Home Office,Home Office,16/12/2022,OVERSEAS ESCORTS,UKBE - UK Borders & Enforcement,MITIE CARE & CUSTODY LTD,1411413-186797/92656573-243944-11681024,116810.24
Home Office,Home Office,16/12/2022,OVERSEAS ESCORTS,UKBE - UK Borders & Enforcement,MITIE CARE & CUSTODY LTD,1411413-186797/92658589-243944-22027591,220275.91
Home Office,Home Office,16/12/2022,OVERSEAS ESCORTS,UKBE - UK Borders & Enforcement,MITIE CARE & CUSTODY LTD,1411413-186797/92656588-243944-54353509,543535.09
Home Office,Home Office,16/12/2022,CONTRACTS,UKBE - UK Borders & Enforcement,MITIE CARE & CUSTODY LTD,1411432-229181/92659259-243944-3280897,32808.97
Home Office,Home Office,16/12/2022,CONTRACTS,UKBE - UK Borders & Enforcement,MITIE CARE & CUSTODY LTD,1411432-229181/92647188-243944-73449714,734497.14
Home Office,Home Office,16/12/2022,CONTRACTS,UKBE - UK Borders & Enforcement,MITIE CARE & CUSTODY LTD,1411444-30118/92661513-243944-6517851,65178.51
Home Office,Home Office,16/12/2022,CONTRACTS,UKBE - UK Borders & Enforcement,MITIE CARE & CUSTODY LTD,1411444-30118/92658587-243944-214165361,2141653.61
Home Office,Home Office,16/12/2022,RUN COSTS,UKBE - UK Borders & Enforcement,MITIE CARE & CUSTODY LTD,1411453-229181/92658984-243944-15446728,154467.28
Home Office,Home Office,16/12/2022,CONTRACTS,UKBE - UK Borders & Enforcement,MITIE CARE & CUSTODY LTD,1411453-229181/92649588-243944-56347955,563479.55
Home Office,Home Office,16/12/2022,CONTRACTS,UKBE - UK Borders & Enforcement,SERCO LTD,1411431-91888418-158586-3319925,33199.25
Home Office,Home Office,16/12/2022,CONTRACTS,UKBE - UK Borders & Enforcement,SERCO LTD,1411431-91888416-158586-73807365,738073.65
Home Office,Home Office,16/12/2022,CONTRACTS,UKBE - UK Borders & Enforcement,SERCO LTD,1411447-91888152-158586-5792738,57927.38
Home Office,Home Office,16/12/2022,CONTRACTS,UKBE - UK Borders & Enforcement,SERCO LTD,1411447-91888421-158586-21045621,2104562.10
Home Office,Home Office,16/12/2022,SYSTEM CLEARING,UKBE - UK Borders & Enforcement,SYMETRICA SECURITY LTD,1433609-SI/0000492-50404-354000,424800.00
Home Office,Home Office,19/12/2022,IT RUN COST,UKBE - UK Borders & Enforcement,CAPGEMINI UK PLC,1432008-2600110350282-112696-47657655,571891.86
Home Office,Home Office,19/12/2022,IT RUN COST,UKBE - UK Borders & Enforcement,CAPGEMINI UK PLC,1432008-2600110350276-112696-543141,651769.20
Home Office,Home Office,19/12/2022,ASYLUM CASES,UKBE - UK Borders & Enforcement,CWT UK GROUP LTD,1417111-R7065072221216-112726-7051362,70513.62
Home Office,Home Office,19/12/2022,OTHER ICT COSTS,UKBE - UK Borders & Enforcement,FAITHFUL AND GOULD,1411010-22051436-53010-452535,54304.20
Home Office,Home Office,19/12/2022,PROJECT,UKBE - UK Borders & Enforcement,FAITHFUL AND GOULD,1411010-22051448-53010-171114,205336.80
Home Office,Home Office,19/12/2022,IT RUN COST,UKBE - UK Borders & Enforcement,FUJITSU SERVICES LTD,1432008-1030006298-106173-7759504,93114.05
Home Office,Home Office,19/12/2022,PROJECT,UKBE - UK Borders & Enforcement,MINISTRY OF JUSTICE,1411457-2333835-199603-2336585,28039.02
Home Office,Home Office,19/12/2022,PROJECT,UKBE - UK Borders & Enforcement,MINISTRY OF JUSTICE,1411457-2333834-199603-4069584,48835.01
Home Office,Home Office,19/12/2022,PROJECT,UKBE - UK Borders & Enforcement,MINISTRY OF JUSTICE,1411457-2333796-199603-446686,53602.32
Home Office,Home Office,19/12/2022,CURFEW & ELECTRONIC MONITORING,UKBE - UK Borders & Enforcement,MINISTRY OF JUSTICE,1418258-2258018-199603-734670,881604.00
Home Office,Home Office,19/12/2022,PROJECT,UKBE - UK Borders & Enforcement,MINISTRY OF JUSTICE,1431058-2333840-199603-23572136,282865.63
Home Office,Home Office,20/12/2022,SYSTEM CLEARING,UKBE - UK Borders & Enforcement,BJSS LIMITED,1418267-INV-UK022596-508104-226125,271350.00
Home Office,Home Office,20/12/2022,RUN COSTS,UKBE - UK Borders & Enforcement,EDF ENERGY,1411442-000013928197-153766-3751699,37516.99
Home Office,Home Office,20/12/2022,PROJECT,UKBE - UK Borders & Enforcement,FAITHFUL AND GOULD,1411455-22051255-53010-97834,117400.80
Home Office,Home Office,20/12/2022,IT RUN COST,UKBE - UK Borders & Enforcement,MARLOWE CONSULTING LTD,1432008-1052022-439582-45660,54792.00
Home Office,Home Office,20/12/2022,BASIC SALARY,UKBE - UK Borders & Enforcement,OFFICE OF THE KENT POLICE & CRIME COMMISSIONER,1418260-1800041989-101723-6805869,68058.69
Home Office,Home Office,21/12/2022,CONT OUT SERV OTHER,UKBE - UK Borders & Enforcement,FAITHFUL AND GOULD,1411455-22045760-53010-3862718,46352.61
Home Office,Home Office,21/12/2022,CONTRACTS,UKBE - UK Borders & Enforcement,SERCO LTD,1411447-91890373-158586-4844809,48448.09
Home Office,Home Office,22/12/2022,CONTINGENT LABOUR OTHER,UKBE - UK Borders & Enforcement,ALEXANDER MANN SOLUTIONS LIMITED,1411002-2709948-560478-3192507,38310.08
Home Office,Home Office,22/12/2022,CONTINGENT LABOUR OTHER,UKBE - UK Borders & Enforcement,ALEXANDER MANN SOLUTIONS LIMITED,1433609-2709948-560478-205308,2463.70
Home Office,Home Office,22/12/2022,CONTINGENT LABOUR OTHER,UKBE - UK Borders & Enforcement,ALEXANDER MANN SOLUTIONS LIMITED,1432008-2709948-560478-221568,2658.83
Home Office,Home Office,22/12/2022,CONTINGENT LABOUR OTHER,UKBE - UK Borders & Enforcement,ALEXANDER MANN SOLUTIONS LIMITED,1418258-2709948-560478-21422,2570.64
Home Office,Home Office,22/12/2022,CONTINGENT LABOUR OTHER,UKBE - UK Borders & Enforcement,ALEXANDER MANN SOLUTIONS LIMITED,1418277-2709948-560478-262525,3150.30
Home Office,Home Office,22/12/2022,CONTINGENT LABOUR OTHER,UKBE - UK Borders & Enforcement,ALEXANDER MANN SOLUTIONS LIMITED,1433420-2709948-560478-256929,3083.15
Home Office,Home Office,22/12/2022,CONTINGENT LABOUR OTHER,UKBE - UK Borders & Enforcement,ALEXANDER MANN SOLUTIONS LIMITED,1431070-2709948-560478-776504,9318.05
Home Office,Home Office,22/12/2022,IT RUN COST,UKBE - UK Borders & Enforcement,ALEXANDER MANN SOLUTIONS LIMITED,1433444-2710979-560478-163963,163963.00
Home Office,Home Office,22/12/2022,EXTERNAL,UKBE - UK Borders & Enforcement,BLOOM PROCUREMENT SERVICES LIMITED,1431270-SIN039014-518536-21954,21954.00
Home Office,Home Office,22/12/2022,EXTERNAL,UKBE - UK Borders & Enforcement,ERNST AND YOUNG LLP,1433403-GB01G000370130-113852-13473563,134735.63
Home Office,Home Office,22/12/2022,IT RUN COST,UKBE - UK Borders & Enforcement,FUJITSU SERVICES LTD,1432008-1030003910-106173-132828,159393.60
Home Office,Home Office,22/12/2022,LEGAL REPRESENTATION,UKBE - UK Borders & Enforcement,GOVERNMENT LEGAL DEPARTMENT,1431826-519740-113504-74067,8888.04
Home Office,Home Office,22/12/2022,LEGAL ADVICE,UKBE - UK Borders & Enforcement,GOVERNMENT LEGAL DEPARTMENT,1431826-519740-113504-435131,52215.72
Home Office,Home Office,22/12/2022,BASIC SALARY,UKBE - UK Borders & Enforcement,HM REVENUE & CUSTOMS,1411455-18000041302022-187546-24020,28824.00
Home Office,Home Office,22/12/2022,CAR PARKING,UKBE - UK Borders & Enforcement,LONDON LUTON AIRPORT LIMITED,1431263-1052740-101109-25000,30000.00
Home Office,Home Office,22/12/2022,SERVICE REPAIR SPARES,UKBE - UK Borders & Enforcement,RAPISCAN SYSTEMS LTD,1433606-1241850-101000-1390125,139012.50
Home Office,Home Office,23/12/2022,FULL COST,UKBE - UK Borders & Enforcement,BROOK STREET (UK) LTD,1433544-30190871-22-100385-110763,1329.16
Home Office,Home Office,23/12/2022,FULL COST,UKBE - UK Borders & Enforcement,BROOK STREET (UK) LTD,1431711-30190871-22-100385-24024,2882.89
Home Office,Home Office,23/12/2022,FULL COST,UKBE - UK Borders & Enforcement,BROOK STREET (UK) LTD,1411457-30190871-22-100385-1991266,23895.23
Home Office,Home Office,23/12/2022,FULL COST,UKBE - UK Borders & Enforcement,BROOK STREET (UK) LTD,1418277-30190871-22-100385-1232027,14784.32
Home Office,Home Office,23/12/2022,FULL COST,UKBE - UK Borders & Enforcement,BROOK STREET (UK) LTD,1433432-30190871-22-100385--116848,-1402.18
Home Office,Home Office,23/12/2022,FULL COST,UKBE - UK Borders & Enforcement,BROOK STREET (UK) LTD,1433599-30190871-22-100385-5124,614.88
Home Office,Home Office,23/12/2022,FULL COST,UKBE - UK Borders & Enforcement,BROOK STREET (UK) LTD,1470006-30190871-22-100385-77626,931.51
Home Office,Home Office,23/12/2022,FULL COST,UKBE - UK Borders & Enforcement,BROOK STREET (UK) LTD,1433548-30190871-22-100385-11877,1425.24
Home Office,Home Office,23/12/2022,FULL COST,UKBE - UK Borders & Enforcement,BROOK STREET (UK) LTD,1418298-30190871-22-100385-225315,2703.78
Home Office,Home Office,23/12/2022,FULL COST,UKBE - UK Borders & Enforcement,BROOK STREET (UK) LTD,1418194-30190871-22-100385-296925,3563.10
Home Office,Home Office,23/12/2022,FULL COST,UKBE - UK Borders & Enforcement,BROOK STREET (UK) LTD,1411411-30190871-22-100385-72936,875.23
Home Office,Home Office,23/12/2022,FULL COST,UKBE - UK Borders & Enforcement,BROOK STREET (UK) LTD,1417102-30190871-22-100385-683184,8198.21
Home Office,Home Office,23/12/2022,FULL COST,UKBE - UK Borders & Enforcement,BROOK STREET (UK) LTD,1417908-30190871-22-100385-8189,982.68
Home Office,Home Office,23/12/2022,IT RUN COST,UKBE - UK Borders & Enforcement,CACI LTD,1432008-039577-149473-28545057,342540.68
Home Office,Home Office,23/12/2022,ASYLUM CASES,UKBE - UK Borders & Enforcement,CWT UK GROUP LTD,1417111-R7065072221219-112726-3557726,35577.26
Home Office,Home Office,23/12/2022,ASYLUM CASES,UKBE - UK Borders & Enforcement,CWT UK GROUP LTD,1417111-R7065072221222-112726-4421555,44215.55
Home Office,Home Office,23/12/2022,IT RUN COST,UKBE - UK Borders & Enforcement,FUJITSU SERVICES LTD,1432008-1010004191-106173-35787,42944.40
